Workbook

Sheet Armée
AO2: TABLEAU DE REFERENCE SELON LE POURCENTAGE QUE VOUS DEVEZ PONDRE ET EN FONCTION DE VOTRE TEMPS DE PONTE RENSEIGNE (Exprimé en sec puis Jr-hr-min environ)
B3: DATE : | D3: 2013-11-24 | AF3: tableau de calcul perso
B4: (2) voir tableau de calcul perso avant de remplir | F4: (1) à effectuer en 1er
B5: OBJECTIF d'ARMEE SOUHAITEE (notez ici) | D5: Reste à pondre/ sur votre prévision initiale | F5: Actuellement j'ai : (notez si dessous) | G5: En ponte lancée N°1 de (notez si dessous) | M5: En ponte lancée N°2 de (notez si dessous) | O5: En ponte lancée N°3 de (notez si dessous) | Q5: dénomination : | S5: TOTAL FINAL APRES PONTE | U5: votre armée totale comporte actuellement | W5: idéal de ponte (selon i-sork) -Début de serveur- Chasseur : Sur 100% de JSN 80 à 90% de JS 20 à 30% d'ARTI | AF5: calcul perso : | AG5: sur | AH5: soit pour | AP5: temps de ponte actuel de base | AQ5: en ponte actuellement pour la jsn en sec | AR5: conversion en heure min | AS5: temps en sec pour 90% | AT5: temps en h/m/s pour 90% | AU5: temps en sec pour 80% | AV5: temps en h/m/s pour 80% | AW5: temps en sec pour 70% | AX5: temps en h/m/s pour 70% | AY5: temps en sec pour 60% | AZ5: temps en h/m/s pour 60% | BA5: temps en sec pour 50% | BB5: temps en h/m/s pour 50% | BC5: temps en sec pour 40% | BD5: temps en h/m/s pour 40% | BE5: temps en sec pour 30% | BF5: temps en h/m/s pour 30% | BG5: temps en sec pour 20% | BH5: temps en h/m/s pour 20% | BI5: temps en sec pour 10% | BJ5: temps en h/m/s pour 10%
B6: 0 | D6: =B6-S6 -> 0 | F6: 0 | G6: 0 | M6: 0 | O6: 0 | Q6: jeunes Soldate naines | S6: =SUM(F6:O6) -> 0 | U6: =100 -> 100 | V6: % | AA6: modifier total JSN SOUHAITE | AE6: >> | AF6: JSN = >> | AG6: 1 | AH6: 0 | AI6: <ici | AO6: jeunes Soldate naines | AP6: =VLOOKUP(X59,tdp!A3:C102,3,FALSE) ->  | AQ6: =AP6*G6 ->  | AR6: =INT(AQ6/3600/24)&"j "&MOD(INT(AQ6/3600),24)&"h "&MOD(INT(AQ6/60),60)&"m " -> 
B7: 0 | D7: 0 | F7: 0 | G7: 0 | M7: 0 | O7: 0 | Q7: Soldates Naines | S7: =SUM(F7:O7) -> 0 | U7: =S7*100/S6 ->  | V7: % | AF7: vous devez pondre | AG7: en% | AH7: vous aurez | AO7: Soldates Naines | AP7: =VLOOKUP(X59,tdp!A3:D102,4,FALSE) ->  | AS7: =AP7*AF8 ->  | AT7: =INT(AS7/3600/24)&"j "&MOD(INT(AS7/3600),24)&"h "&MOD(INT(AS7/60),60)&"min env" ->  | AU7: =AP7*AF9 ->  | AV7: =INT(AU7/3600/24)&"j "&MOD(INT(AU7/3600),24)&"h "&MOD(INT(AU7/60),60)&"min env" ->  | AW7: =AP7*AF10 ->  | AX7: =INT(AW7/3600/24)&"j "&MOD(INT(AW7/3600),24)&"h "&MOD(INT(AW7/60),60)&"min env" ->  | AY7: =AP7*AF11 ->  | AZ7: =INT(AY7/3600/24)&"j "&MOD(INT(AY7/3600),24)&"h "&MOD(INT(AY7/60),60)&"min env" ->  | BA7: =AP7*AF12 ->  | BB7: =INT(BA7/3600/24)&"j "&MOD(INT(BA7/3600),24)&"h "&MOD(INT(BA7/60),60)&"min env" ->  | BC7: =AP7*AF13 ->  | BD7: =INT(BC7/3600/24)&"j "&MOD(INT(BC7/3600),24)&"h "&MOD(INT(BC7/60),60)&"min env" ->  | BE7: =AP7*AF14 ->  | BF7: =INT(BE7/3600/24)&"j "&MOD(INT(BE7/3600),24)&"h "&MOD(INT(BE7/60),60)&"min env" ->  | BG7: =AP7*AF15 ->  | BH7: =INT(BG7/3600/24)&"j "&MOD(INT(BG7/3600),24)&"h "&MOD(INT(BG7/60),60)&"min env" ->  | BI7: =AP7*AF16 ->  | BJ7: =INT(BI7/3600/24)&"j "&MOD(INT(BI7/3600),24)&"h "&MOD(INT(BI7/60),60)&"min env" -> 
B8: 0 | D8: 0 | F8: 0 | G8: 0 | M8: 0 | O8: 0 | Q8: Naines d'Elites | S8: 0 | U8: =S8*100/S6 ->  | V8: % | AF8: =AH8-AF23 -> 0 | AG8: 0.9 | AH8: =AH6*90/100 -> 0 | AI8: ← | AO8: Naines d'Elites | AP8: =VLOOKUP(X59,tdp!A3:E102,5,FALSE) ->  | AS8: =AP8*AF8 ->  | AT8: =INT(AS8/3600/24)&"j "&MOD(INT(AS8/3600),24)&"h "&MOD(INT(AS8/60),60)&"min env" ->  | AU8: =AP8*AF9 ->  | AV8: =INT(AU8/3600/24)&"j "&MOD(INT(AU8/3600),24)&"h "&MOD(INT(AU8/60),60)&"min env" ->  | AW8: =AP8*AF10 ->  | AX8: =INT(AW8/3600/24)&"j "&MOD(INT(AW8/3600),24)&"h "&MOD(INT(AW8/60),60)&"min env" ->  | AY8: =AP8*AF11 ->  | AZ8: =INT(AY8/3600/24)&"j "&MOD(INT(AY8/3600),24)&"h "&MOD(INT(AY8/60),60)&"min env" ->  | BA8: =AP8*AF12 ->  | BB8: =INT(BA8/3600/24)&"j "&MOD(INT(BA8/3600),24)&"h "&MOD(INT(BA8/60),60)&"min env" ->  | BC8: =AP8*AF13 ->  | BD8: =INT(BC8/3600/24)&"j "&MOD(INT(BC8/3600),24)&"h "&MOD(INT(BC8/60),60)&"min env" ->  | BE8: =AP8*AF14 ->  | BF8: =INT(BE8/3600/24)&"j "&MOD(INT(BE8/3600),24)&"h "&MOD(INT(BE8/60),60)&"min env" ->  | BG8: =AP8*AF15 ->  | BH8: =INT(BG8/3600/24)&"j "&MOD(INT(BG8/3600),24)&"h "&MOD(INT(BG8/60),60)&"min env" ->  | BI8: =AP8*AF16 ->  | BJ8: =INT(BI8/3600/24)&"j "&MOD(INT(BI8/3600),24)&"h "&MOD(INT(BI8/60),60)&"min env" -> 
B9: 0 | D9: =B9-S9 -> 0 | F9: 0 | G9: 0 | M9: 0 | O9: 0 | Q9: Jeunes Soldates | S9: 0 | U9: =S9*100/S6 ->  | V9: % | AF9: =AH9-AF23 -> 0 | AG9: 0.8 | AH9: =AH6*80/100 -> 0 | AI9: ← | AO9: Jeunes Soldates | AP9: =VLOOKUP(X59,tdp!A3:F102,6,FALSE) ->  | AS9: =AP9*AF8 ->  | AU9: =AP9*AF9 ->  | AW9: =AP9*AF10 ->  | AY9: =AP9*AF11 ->  | BA9: =AP9*AF12 ->  | BC9: =AP9*AF13 ->  | BE9: =AP9*AF14 ->  | BG9: =AP9*AF15 ->  | BI9: =AP9*AF16 -> 
B10: 0 | D10: 0 | F10: 0 | G10: 0 | M10: 0 | O10: 0 | Q10: Soldates | S10: 0 | U10: =F10*100/S6 ->  | V10: % | AF10: =AH10-AF23 -> 0 | AG10: 0.7 | AH10: =AH6*70/100 -> 0 | AI10: ← | AJ10: Conversion EN Tps | AO10: Soldates | AP10: =VLOOKUP(X59,tdp!A3:G102,7,FALSE) ->  | AS10: =AP10*AF8 ->  | AU10: =AP10*AF9 ->  | AW10: =AP10*AF10 ->  | AY10: =AP10*AF11 ->  | BA10: =AP10*AF12 ->  | BC10: =AP10*AF13 ->  | BE10: =AP10*AF14 ->  | BG10: =AP10*AF15 ->  | BI10: =AP10*AF16 -> 
B11: 0 | D11: 0 | F11: 0 | G11: 0 | M11: 0 | O11: 0 | Q11: Concierges | S11: 0 | U11: =S11*100/S6 ->  | V11: % | AF11: =AH11-AF23 -> 0 | AG11: 0.6 | AH11: =AH6*60/100 -> 0 | AI11: ← | AO11: Concierges | AP11: =VLOOKUP(X59,tdp!A3:H102,8,FALSE) ->  | AS11: =AP11*AF8 ->  | AU11: =AP11*AF9 ->  | AW11: =AP11*AF10 ->  | AY11: =AP11*AF11 ->  | BA11: =AP11*AF12 ->  | BC11: =AP11*AF13 ->  | BE11: =AP11*AF14 ->  | BG11: =AP11*AF15 ->  | BI11: =AP11*AF16 -> 
B12: 0 | D12: 0 | F12: 0 | G12: 0 | M12: 0 | O12: 0 | Q12: Concierges d'élites | S12: 0 | U12: =S12*100/S6 ->  | V12: % | AF12: =AH12-AF23 -> 0 | AG12: 0.5 | AH12: =AH6*50/100 -> 0 | AI12: ← | AO12: Artilleuses | AP12: =VLOOKUP(X59,tdp!A3:I102,9,FALSE) ->  | AS12: =AP12*AF8 ->  | AU12: =AP12*AF9 ->  | AW12: =AP12*AF10 ->  | AY12: =AP12*AF11 ->  | BA12: =AP12*AF12 ->  | BC12: =AP12*AF13 ->  | BE12: =AP12*AF14 ->  | BG12: =AP12*AF15 ->  | BI12: =AP12*AF16 -> 
B13: 0 | D13: =B13-S13 -> 0 | F13: 0 | G13: 0 | M13: 0 | O13: 0 | Q13: Artilleuses | S13: 0 | U13: =S13*100/S6 ->  | V13: % | AF13: =AH13-AF23 -> 0 | AG13: 0.4 | AH13: =AH6*40/100 -> 0 | AI13: ← | AO13: Artilleuses d'élites | AP13: =VLOOKUP(X59,tdp!A3:J102,10,FALSE) ->  | AS13: =AP13*AF8 ->  | AU13: =AP13*AF9 ->  | AW13: =AP13*AF10 ->  | AY13: =AP13*AF11 ->  | BA13: =AP13*AF12 ->  | BC13: =AP13*AF13 ->  | BE13: =AP13*AF14 ->  | BG13: =AP13*AF15 ->  | BI13: =AP13*AF16 -> 
B14: 0 | D14: 0 | F14: 0 | G14: 0 | M14: 0 | O14: 0 | Q14: Artilleuses d'élites | S14: 0 | U14: =S14*100/S6 ->  | V14: % | AF14: =AH14-AF23 -> 0 | AG14: 0.3 | AH14: =AH6*30/100 -> 0 | AI14: ← | AO14: Soldates d'élites | AP14: =VLOOKUP(X59,tdp!A3:K102,11,FALSE) ->  | AS14: =AP14*AF8 ->  | AU14: =AP14*AF9 ->  | AW14: =AP14*AF10 ->  | AY14: =AP14*AF11 ->  | BA14: =AP14*AF12 ->  | BC14: =AP14*AF13 ->  | BE14: =AP14*AF14 ->  | BG14: =AP14*AF15 ->  | BI14: =AP14*AF16 -> 
B15: 0 | D15: 0 | F15: 0 | G15: 0 | M15: 0 | O15: 0 | Q15: Soldates d'élites | S15: 0 | U15: =S15*100/S6 ->  | V15: % | AF15: =AH15-AF23 -> 0 | AG15: 0.2 | AH15: =AH6*20/100 -> 0 | AI15: ← | AO15: Tanks | AP15: =VLOOKUP(X59,tdp!A3:L102,12,FALSE) ->  | AS15: =AP15*AF8 ->  | AU15: =AP15*AF9 ->  | AW15: =AP15*AF10 ->  | AY15: =AP15*AF11 ->  | BA15: =AP15*AF12 ->  | BC15: =AP15*AF13 ->  | BE15: =AP15*AF14 ->  | BG15: =AP15*AF15 ->  | BI15: =AP15*AF16 -> 
B16: 0 | D16: 0 | F16: 0 | G16: 0 | M16: 0 | O16: 0 | Q16: Tanks | S16: 0 | U16: =S16*100/S6 ->  | V16: % | AF16: =AH16-AF23 -> 0 | AG16: 0.1 | AH16: =AH6*10/100 -> 0 | AI16: ← | AO16: Tueuses | AP16: =VLOOKUP(X59,tdp!A3:M102,13,FALSE) ->  | AS16: =AP16*AF8 ->  | AU16: =AP16*AF9 ->  | AW16: =AP16*AF10 ->  | AY16: =AP16*AF11 ->  | BA16: =AP16*AF12 ->  | BC16: =AP16*AF13 ->  | BE16: =AP16*AF14 ->  | BG16: =AP16*AF15 ->  | BI16: =AP16*AF16 -> 
B17: 0 | D17: 0 | F17: 0 | G17: 0 | M17: 0 | O17: 0 | Q17: Tanks d'élites | S17: =SUM(F17:O17) -> 0 | U17: =S17*100/S6 ->  | V17: % | AI17: ↑ | AO17: Tueuses d'élites | AP17: =VLOOKUP(X59,tdp!A3:N102,14,FALSE) ->  | AS17: =AP17*AF8 ->  | AU17: =AP17*AF9 ->  | AW17: =AP17*AF10 ->  | AY17: =AP17*AF11 ->  | BA17: =AP17*AF12 ->  | BC17: =AP17*AF13 ->  | BE17: =AP17*AF14 ->  | BG17: =AP17*AF15 ->  | BI17: =AP17*AF16 -> 
B18: 0 | D18: 0 | F18: 0 | G18: 0 | M18: 0 | O18: 0 | Q18: Tueuses | S18: 0 | U18: =S18*100/S6 ->  | V18: % | AF18: reportez la somme souhaitée si dessus en colonne B | AI18: ┘ | AO18: ne pas modifier si dessus | AQ18: ne pas modifier si dessus | AS18: ne pas modifier si dessus | AU18: ne pas modifier si dessus | AW18: ne pas modifier si dessus | AY18: ne pas modifier si dessus | BA18: ne pas modifier si dessus | BC18: ne pas modifier si dessus | BE18: ne pas modifier si dessus | BG18: ne pas modifier si dessus | BI18: ne pas modifier si dessus
B19: 0 | D19: 0 | F19: 0 | G19: 0 | M19: 0 | O19: 0 | Q19: Tueuses d'élites | S19: 0 | U19: =S19*100/S6 ->  | V19: % | AF19: Selectionnez dans le menu déroulant si dessous le type de fourmis que vous souhaitez créer | AO19: ex : si vous pondez X nombre d'artilleuses pour 90% la ligne artilleuses est en surbrillance et allez sur la colonne 90% donc pour pondre X il vous faudra le temps indiqué pour pondre
D20: ne pas modifier si dessus | Q20: ne pas modifier si dessus | S20: ne pas modifier si dessus | U20: ne pas modifier si dessus
B21: NOTE : veuillez noter votre armée actuelle dans un premier temps, puis notez votre objectif d'armée, si vous faites en fonction du pourcentage reportez vous au tableur dédié aux poucents et tdp | AF21: Jeunes Soldates | AI21: <=
AI22: <=
B23: mon ancienne armée sauvegarde | F23: FDF brut | H23: bonus AR | L23: ARME NIVEAU (notez si dessous) | S23: TOTAL DE FDF | U23: diff : fdf/vie | X23: diff : fdf/def | AF23: =IF(AF21="","",VLOOKUP(AF21,Q6:S19,3,0)) -> 0
B24: 0 | C24: jeunes Soldate naines | F24: =(S6*3)+(S7*5)+(S8*7)+(S9*10)+(S10*15)+(S11*1)+(S12*1)+(S13*30)+(S14*35)+(S15*24)+(S16*55)+(S17*80)+(S18*50)+(S19*55) -> 0 | H24: (+ | I24: =S24-F24 -> 0 | J24: ) | L24: 0 | S24: =F24*(10+L24)/10 -> 0 | U24: =((S24-S27)/S27)*100 ->  | V24: % | X24: =((S24-S30)/S30)*100 ->  | Y24: %
B25: 0 | C25: Soldates Naines | F25: ne pas modifier si dessus | I25: ne pas modifier si dessus | S25: ne pas modifier si dessus | U25: ne pas modifier si dessus | X25: ne pas modifier si dessus | AF25: ne pas modifier si dessus
B26: 0 | C26: Naines d'Elites | F26: VIE brut | H26: bonus BOU | L26: BOUCLIER NIVEAU (notez si dessous) | S26: TOTAL DE VIE en attaque | U26: diff : vie/fdf | X26: diff : vie/def
B27: 0 | C27: Jeunes Soldates | F27: =(S6*8)+(S7*10)+(S8*13)+(S9*16)+(S10*20)+(S11*30)+(S12*40)+(S13*10)+(S14*12)+(S15*27)+(S16*35)+(S17*50)+(S18*50)+(S19*55) -> 0 | H27: (+ | I27: =S27-F27 -> 0 | J27: ) | L27: 0 | S27: =F27*(10+L27)/10 -> 0 | U27: =((S27-S24)/S24)*100 ->  | V27: % | X27: =((S27-S30)/S30)*100 ->  | Y27: %
B28: 0 | C28: Soldates | F28: ne pas modifier si dessus | I28: ne pas modifier si dessus | S28: ne pas modifier si dessus | U28: ne pas modifier si dessus | X28: ne pas modifier si dessus
B29: 0 | C29: Concierges | F29: DEFENSE brut | H29: bonus AR | L29: EXE | S29: TOTAL DEFENSE | U29: diff : def/fdf | X29: diff : def/ vie
B30: 0 | C30: Concierges d'élites | F30: =(S6*2)+(S7*4)+(S8*6)+(S9*9)+(S10*14)+(S11*25)+(S12*35)+(S13*15)+(S14*18)+(S15*23)+(S16*1)+(S17*1)+(S18*50)+(S19*55) -> 0 | H30: (+ | I30: =S30-F30 -> 0 | J30: ) | S30: =F30*(10+L24)/10 -> 0 | U30: =((S30-S24)/S24)*100 ->  | V30: % | X30: =((S30-S27)/S27)*100 ->  | Y30: %
B31: 0 | C31: Artilleuses | F31: ne pas modifier si dessus | I31: ne pas modifier si dessus | S31: ne pas modifier si dessus | U31: ne pas modifier si dessus | X31: ne pas modifier si dessus
B32: 0 | C32: Artilleuses d'élites | F32: TOTAL DE FOURMIS | U32: DOME (notez si dessous) | X32: LOGE (notez si dessous)
B33: 0 | C33: Soldates d'élites | F33: =SUM(S6:S19) -> 0 | U33: 0 | X33: 0
B34: 0 | C34: Tanks | F34: ne pas modifier si dessus | S34: i-sork 2013
B35: 0 | C35: Tanks d'élites | F35: RESUME (si vous devez envoyer ces informations copiez/collez la zone blanche et envoyez par mp -ATTENTION REVELER SON ARMEE COMPORTE UN RISQUE restez vigilant-) | U35: Bonus de bouclier | X35: Bonus de bouclier
B36: 0 | C36: Tueuses | T36: + | U36: =U39-S27 -> 0 | W36: + | X36: =X39-S27 -> 0
B37: 0 | C37: Tueuses d'élites | U37: ne pas modifier si dessus | X37: ne pas modifier si dessus
F38: date : | I38: =D3 -> 2013-11-24 | U38: TOTAL DE VIE EN DOME | X38: TOTAL DE VIE EN LOGE
B39: fdf notez ici | C39: vie notez ici | F39: Vous avez actuellement un total de fourmis de : | U39: =F27*(1+0.1*L27+0.1+0.05*U33) -> 0 | X39: =F27*(1+0.1*L27+0.3+0.15*X33) -> 0
B40: 0 | C40: 0 | F40: =F33 -> 0
B41: def notez ici | F41: Vous avez actuellement : | U41: ne pas modifier si dessus | X41: ne pas modifier si dessus
B42: 0 | F42: =U44 -> 0 | G42: ouvrières | U42: NOMBRE D'OUVRIERES (notez si dessous)
F43: Avec un nombre total de :
U44: 0
F45: =S6 -> 0 | G45: jeunes Soldate naines-- | J45: soit | L45: =U6 -> 100 | M45: % | N45: ------- selon le ratio 100% JSN
F46: =S7 -> 0 | G46: Soldates Naines--------- | J46: soit | L46: =U7 ->  | M46: % | N46: ------- selon le ratio 100% JSN
F47: 0 | G47: Naines d'Elites---------- | J47: soit | L47: =U8 ->  | M47: % | N47: ------- selon le ratio 100% JSN | U47: VOTRE VA (notez si dessous)
F48: 0 | G48: Jeunes Soldates--------- | J48: soit | L48: =U9 ->  | M48: % | N48: ------- selon le ratio 100% JSN
F49: 0 | G49: Soldates------------------ | J49: soit | L49: =U10 ->  | M49: % | N49: ------- selon le ratio 100% JSN | U49: 0
F50: 0 | G50: Concierges--------------- | J50: soit | L50: =U11 ->  | M50: % | N50: ------- selon le ratio 100% JSN
F51: 0 | G51: Concierges d'élites----- | J51: soit | L51: =U12 ->  | M51: % | N51: ------- selon le ratio 100% JSN
F52: 0 | G52: Artilleuses---------------- | J52: soit | L52: =U13 ->  | M52: % | N52: ------- selon le ratio 100% JSN | U52: VOTRE VC (notez si dessous)
F53: 0 | G53: Artilleuses d'élites------ | J53: soit | L53: =U14 ->  | M53: % | N53: ------- selon le ratio 100% JSN
F54: 0 | G54: Soldates d'élites-------- | J54: soit | L54: =U15 ->  | M54: % | N54: ------- selon le ratio 100% JSN | U54: 0
F55: 0 | G55: Tanks --------------------- | J55: soit | L55: =U16 ->  | M55: % | N55: ------- selon le ratio 100% JSN
F56: 0 | G56: Tanks d'élites------------ | J56: soit | L56: =U17 ->  | M56: % | N56: ------- selon le ratio 100% JSN
F57: 0 | G57: Tueuses ------------------ | J57: soit | L57: =U18 ->  | M57: % | N57: ------- selon le ratio 100% JSN | U57: VOTRE Niveau de TDP (indiquez le niveau uniquement)
F58: 0 | G58: Tueuses d'élites--------- | J58: soit | L58: =U19 ->  | M58: % | N58: ------- selon le ratio 100% JSN
U59: =VLOOKUP(X59,tdp!A3:B102,2,FALSE) ->  | X59: 0
F60: Vous avez une arme de niveau : | I60: =L24 -> 0
F61: Vous avez un bouclier de niveau : | I61: =L27 -> 0 | U61: ne pas modifier si dessus | X61: notez si dessus
F62: Vous avez un Dôme de niveau : | I62: =U33 -> 0
F63: Vous avez une Loge Impèriale de niveau : | I63: =X33 -> 0
F65: Vous avez une bonus de vie en Dôme de : | H65: =U36 -> 0
F66: soit un total de vie en dôme de : | H66: =U39 -> 0
F67: Vous avez un bonus de vie en Loge de : | H67: =X36 -> 0
F68: soit un total de vie en loge de : | H68: =X39 -> 0
F70: Vous avez une force de frappe brut de : | H70: =F24 -> 0
F71: Vous avez une vie brut de : | H71: =F27 -> 0
F72: Vous avez une force de défense brut de : | H72: =F30 -> 0
F74: A cela s'ajoute :
F76: Le bonus d'arme en force de frappe de : | I76: =I24 -> 0
F77: Le bonus d'arme en défense de : | I77: =I30 -> 0
F78: Le bonus de bouclier en vie de : | I78: =I27 -> 0
F80: Soit :
F82: Une force de frappe totale de : | I82: =S24 -> 0
F83: Ce qui représente : | I83: =U24 ->  | J83: % | L83: de différence, entre, la force de frappe et la vie
F84: Aussi : | I84: =X24 ->  | J84: % | L84: de différence, entre, la force de frappe et la force de défense
F86: Une vie totale de : | I86: =S27 -> 0
F87: Ce qui représente : | I87: =U27 ->  | J87: % | L87: de différence, entre, la vie et la force de frappe
F88: Aussi : | I88: =X27 ->  | J88: % | L88: de différence, entre, la vie et la force de défense
F91: Une force de défense totale de : | I91: =S30 -> 0
F92: Ce qui représente : | I92: =U30 ->  | J92: % | L92: de différence, entre la force de défense et la force de frappe
F93: Aussi : | I93: =X30 ->  | J93: % | L93: de différence, entre la force de défense et la vie
F95: Votre niveau de vitesse d'Attaque est de : | I95: =U49 -> 0
F96: votre niveau de Vitesse de Chasse est de : | I96: =U54 -> 0
F98: Votre temps de ponte est d'actuellement : | I98: =U59 ->  | J98: pour 1 ouvrière
F99: niveau TDP | I99: =X59 -> 0

Sheet Auto sur sonde
B1: ANALYSE RC de sonde et CALCUL D'OPTI XP
B2: Rapport de sonde :
B4: Vous attaquez la fourmilière de polak60 Troupes en attaque:100 Jeunes Soldates Naines. Troupes en défense:40 156 Jeunes Soldates Naines, 7 328 Soldates Naines, 5 347 Naines d'Elites, 34 291 Jeunes Soldates, 12 274 Soldates, 9 450 Concierges, 9 403 Artilleuses, 247 Artilleuses d'élites, 585 Soldates d'élites. Vous infligez 300(+360) dégâts et tuez 31 ennemies. L’ennemie inflige 1 017 357(+1 119 093) dégâts à vos fourmis et en tue 100. Vous avez infiltré l’ennemi. Les informations sont bien rentrées... mais pas vos soldates ! Vos troupes ont échoué
B5: Supprimez le contenu de la cellule, puis copier un RC de sonde, qui a échoué (vous n'avez pas tué tous les ennemis^^) dans la cellule (et non sur la cellule -> double clic pour avoir le curseur texte)
B6: Ennemi : | N6: Extraction des données du RC :
B8: Type d'unité | C8: Nb unité | D8: Att HB | E8: Def HB | F8: Vie HB | G8: Modifier nb unité | I8: Mode d'emploi : | N8: Nb unité | O8: Nb tué | P8: Position | Q8: Suivant | R8: Texte à Analyser
B9: Jeune Soldate Naine | C9: =IF(G9>0,G9,N9-O9) -> 40125 | D9: =Data!C5*$N9 -> 120468 | E9: =Data!D5*$N9 -> 80312 | F9: =Data!E5*$N9 -> 321248 | N9: =IF((P9>0),VALUE(SUBSTITUTE(MID(R9,1,(P9-1))," ","")),0) -> 40156 | O9: =MIN(Q$26-0,N9) -> 31 | P9: =IF(ISERROR(SEARCH(Data!F5,R9)),IF(ISERROR(SEARCH(Data!G5,R9)),0,SEARCH(Data!G5,R9)),SEARCH(Data!F5,R9)) -> 8 | Q9: =IF(ISERROR(SEARCH(",",R9,P9)),IF(ISERROR(SEARCH(".",R9,P9)),0,(SEARCH(".",R9,P9)+2)),(SEARCH(",",R9,P9)+2)) -> 32 | R9: =MID(B4,(SEARCH("Troupes en défense",B4)+19),SEARCH(".",MID(B4,(SEARCH("Troupes en défense",B4)+19),1000))) -> 40 156 Jeunes Soldates Naines, 7 328 Soldates Naines, 5 347 Naines d'Elites, 34 291 Jeunes Soldates, 12 274 Soldates, 9 450 Concierges, 9 403 Artilleuses, 247 Artilleuses d'élites, 585 Soldates d'élites.
B10: Soldate Naine | D10: =Data!C6*$N10 -> 36640 | E10: =Data!D6*$N10 -> 29312 | F10: =Data!E6*$N10 -> 73280 | I10: 1/ Copier le RC de la sonde | N10: =IF((P10>0),VALUE(SUBSTITUTE(MID(R10,1,(P10-1))," ","")),0) -> 7328 | O10: =MIN(Q$26-SUM(O$9:O9),N10) -> 0 | P10: =IF(ISERROR(SEARCH(Data!F6,R10)),IF(ISERROR(SEARCH(Data!G6,R10)),0,SEARCH(Data!G6,R10)),SEARCH(Data!F6,R10)) -> 7 | Q10: 24 | R10: =IF(((P9+Q9)>0),MID(R9,Q9,5000),R9) -> 7 328 Soldates Naines, 5 347 Naines d'Elites, 34 291 Jeunes Soldates, 12 274 Soldates, 9 450 Concierges, 9 403 Artilleuses, 247 Artilleuses d'élites, 585 Soldates d'élites.
B11: Naine d'Elite | C11: =IF(G11>0,G11,N11-O11) -> 5347 | D11: =Data!C7*$N11 -> 37429 | E11: =Data!D7*$N11 -> 32082 | F11: =Data!E7*$N11 -> 69511 | I11: 2/ Renseigner "Mon niveau" Armes et Bouclier | N11: 5347 | O11: =MIN(Q$26-SUM(O$9:O10),N11) -> 0 | P11: =IF(ISERROR(SEARCH(Data!F7,R11)),IF(ISERROR(SEARCH(Data!G7,R11)),0,SEARCH(Data!G7,R11)),SEARCH(Data!F7,R11)) -> 7 | Q11: 24 | R11: 5 347 Naines d'Elites, 34 291 Jeunes Soldates, 12 274 Soldates, 9 450 Concierges, 9 403 Artilleuses, 247 Artilleuses d'élites, 585 Soldates d'élites.
B12: Jeune Soldate | C12: 34291 | D12: =Data!C8*$N12 -> 342910 | E12: =Data!D8*$N12 -> 308619 | F12: =Data!E8*$N12 -> 548656 | I12: 3/ Saisir les unités à envoyer | N12: 34291 | O12: =MIN(Q$26-SUM(O$9:O11),N12) -> 0 | P12: =IF(ISERROR(SEARCH(Data!F8,R12)),IF(ISERROR(SEARCH(Data!G8,R12)),0,SEARCH(Data!G8,R12)),SEARCH(Data!F8,R12)) -> 8 | Q12: 25 | R12: 34 291 Jeunes Soldates, 12 274 Soldates, 9 450 Concierges, 9 403 Artilleuses, 247 Artilleuses d'élites, 585 Soldates d'élites.
B13: Soldate | C13: 12274 | D13: =Data!C9*$N13 -> 184110 | E13: =Data!D9*$N13 -> 171836 | F13: =Data!E9*$N13 -> 245480 | N13: 12274 | O13: =MIN(Q$26-SUM(O$9:O12),N13) -> 0 | P13: =IF(ISERROR(SEARCH(Data!F9,R13)),IF(ISERROR(SEARCH(Data!G9,R13)),0,SEARCH(Data!G9,R13)),SEARCH(Data!F9,R13)) -> 8 | Q13: 18 | R13: 12 274 Soldates, 9 450 Concierges, 9 403 Artilleuses, 247 Artilleuses d'élites, 585 Soldates d'élites.
B14: Concierge | C14: 9450 | D14: =Data!C10*$N14 -> 9450 | E14: =Data!D10*$N14 -> 236250 | F14: =Data!E10*$N14 -> 283500 | G14: 0 | I14: Légende | N14: 9450 | O14: =MIN(Q$26-SUM(O$9:O13),N14) -> 0 | P14: =IF(ISERROR(SEARCH(Data!F10,R14)),IF(ISERROR(SEARCH(Data!G10,R14)),0,SEARCH(Data!G10,R14)),SEARCH(Data!F10,R14)) -> 7 | Q14: 19 | R14: 9 450 Concierges, 9 403 Artilleuses, 247 Artilleuses d'élites, 585 Soldates d'élites.
B15: Concierge d'élite | C15: 0 | D15: =Data!C11*$N15 -> 0 | E15: =Data!D11*$N15 -> 0 | F15: =Data!E11*$N15 -> 0 | N15: 0 | O15: =MIN(Q$26-SUM(O$9:O14),N15) -> 0 | P15: =IF(ISERROR(SEARCH(Data!F11,R15)),IF(ISERROR(SEARCH(Data!G11,R15)),0,SEARCH(Data!G11,R15)),SEARCH(Data!F11,R15)) -> 0 | Q15: 0 | R15: 9 403 Artilleuses, 247 Artilleuses d'élites, 585 Soldates d'élites.
B16: Artilleuse | C16: 9403 | D16: =Data!C12*$N16 -> 282090 | E16: =Data!D12*$N16 -> 141045 | F16: =Data!E12*$N16 -> 94030 | I16: cellule à renseigner | L16: (les seules à modifier) | N16: 9403 | O16: =MIN(Q$26-SUM(O$9:O15),N16) -> 0 | P16: =IF(ISERROR(SEARCH(Data!F12,R16)),IF(ISERROR(SEARCH(Data!G12,R16)),0,SEARCH(Data!G12,R16)),SEARCH(Data!F12,R16)) -> 7 | Q16: 20 | R16: 9 403 Artilleuses, 247 Artilleuses d'élites, 585 Soldates d'élites.
B17: Artilleuse d'élite | C17: 247 | D17: =Data!C13*$N17 -> 8645 | E17: =Data!D13*$N17 -> 4446 | F17: =Data!E13*$N17 -> 2964 | N17: 247 | O17: =MIN(Q$26-SUM(O$9:O16),N17) -> 0 | P17: =IF(ISERROR(SEARCH(Data!F13,R17)),IF(ISERROR(SEARCH(Data!G13,R17)),0,SEARCH(Data!G13,R17)),SEARCH(Data!F13,R17)) -> 5 | Q17: 27 | R17: 247 Artilleuses d'élites, 585 Soldates d'élites.
B18: Soldate d'élite | C18: 585 | D18: =Data!C14*$N18 -> 14040 | E18: =Data!D14*$N18 -> 13455 | F18: =Data!E14*$N18 -> 15795 | I18: résultat de calcul | N18: 585 | O18: =MIN(Q$26-SUM(O$9:O17),N18) -> 0 | P18: =IF(ISERROR(SEARCH(Data!F14,R18)),IF(ISERROR(SEARCH(Data!G14,R18)),0,SEARCH(Data!G14,R18)),SEARCH(Data!F14,R18)) -> 5 | Q18: 24 | R18: 585 Soldates d'élites.
B19: Tank | C19: 0 | D19: =Data!C15*$N19 -> 0 | E19: =Data!D15*$N19 -> 0 | F19: =Data!E15*$N19 -> 0 | N19: 0 | O19: =MIN(Q$26-SUM(O$9:O18),N19) -> 0 | P19: =IF(ISERROR(SEARCH(Data!F15,R19)),IF(ISERROR(SEARCH(Data!G15,R19)),0,SEARCH(Data!G15,R19)),SEARCH(Data!F15,R19)) -> 0 | Q19: 0
B20: Tank d'élite | C20: 0 | D20: =Data!C16*$N20 -> 0 | E20: =Data!D16*$N20 -> 0 | F20: =Data!E16*$N20 -> 0 | I20: Titre | N20: 0 | O20: =MIN(Q$26-SUM(O$9:O19),N20) -> 0 | P20: =IF(ISERROR(SEARCH(Data!F16,R20)),IF(ISERROR(SEARCH(Data!G16,R20)),0,SEARCH(Data!G16,R20)),SEARCH(Data!F16,R20)) -> 0 | Q20: 0
B21: Tueuse | C21: 0 | D21: =Data!C17*$N21 -> 0 | E21: =Data!D17*$N21 -> 0 | F21: =Data!E17*$N21 -> 0 | N21: 0 | O21: =MIN(Q$26-SUM(O$9:O20),N21) -> 0 | P21: =IF(ISERROR(SEARCH(Data!F17,R21)),IF(ISERROR(SEARCH(Data!G17,R21)),0,SEARCH(Data!G17,R21)),SEARCH(Data!F17,R21)) -> 0 | Q21: 0
B22: Tueuse d'élite | C22: 0 | D22: =Data!C18*$N22 -> 0 | E22: =Data!D18*$N22 -> 0 | F22: =Data!E18*$N22 -> 0 | I22: Titre ou résultat de calcul | N22: 0 | O22: =MIN(Q$26-SUM(O$9:O21),N22) -> 0 | P22: =IF(ISERROR(SEARCH(Data!F18,R22)),IF(ISERROR(SEARCH(Data!G18,R22)),0,SEARCH(Data!G18,R22)),SEARCH(Data!F18,R22)) -> 0 | Q22: 0
B23: TOTAUX : | C23: =SUM(N9:N22) -> 119081 | D23: =SUM(D9:D22) -> 1035782 | E23: =SUM(E9:E22) -> 1017357 | F23: =SUM(F9:F22) -> 1654464
Q24: Valeur | R24: Extraction du texte
P25: Dégâts sonde : | Q25: =VALUE(SUBSTITUTE(MID(R25,1,(SEARCH("(",R25)-1))," ","")+VALUE(SUBSTITUTE(MID(R25,(SEARCH("(",R25)+2),((SEARCH(")",R25)-SEARCH("(",R25))-2))," ",""))) -> 660 | R25: =MID(B4,(SEARCH("Vous infligez",B4)+14),((SEARCH("dégâts",B4)-SEARCH("Vous infligez",B4))-14)) -> 300(+360)
B26: Multiplicateur vie ennemi : | D26: =ROUND(((Q25/SUMPRODUCT(O9:O22,Data!E5:E18))*20),0)/20 -> 2.65 | E26: Vie HB x 3 : | G26: =F23*3 -> 4963392 | P26: Pertes ennemi : | Q26: =R26 -> 31 | R26: =VALUE(SUBSTITUTE(MID(B4,(SEARCH("dégâts",B4)+14),((SEARCH("ennemies.",B4)-SEARCH("dégâts",B4))-14))," ","")) -> 31
B27: =CONCATENATE("(",MID(MID(B4,(SEARCH("Vous attaquez",B4)+14),100),1,(SEARCH("de",MID(B4,(SEARCH("Vous attaquez",B4)+14),100))-2)),") ") -> (la fourmilière) | E27: Vie AB lieu de la sonde : | G27: =F23*D26 -> 4384329.6
D28: FdF AB nécessaire pour réplique 10% : | G28: =MAX(G26:H27) -> 4963392 | Q28: Valeur | R28: Extraction du texte
P29: Dégâts def AB : | Q29: =VALUE(SUBSTITUTE(MID(R29,1,(SEARCH("(",R29)-1))," ","")) + VALUE(SUBSTITUTE(MID(R29,(SEARCH("(",R29)+2),((SEARCH(")",R29)-SEARCH("(",R29))-2))," ","")) -> 2136450 | R29: =MID(B4,(SEARCH(" inflige ",B4)+9),((SEARCH("dégâts à vos",B4)-SEARCH(" inflige ",B4))-10)) -> 1 017 357(+1 119 093)
B30: Armes de l'ennemi : | D30: =ROUND((((Q29-Q30)/Q30)*10),0) -> 11 | F30: Défense AB : | G30: =E23*(1+(D30/10)) -> 2136449.7 | P30: Dégâts def HB : | Q30: =VALUE(SUBSTITUTE(MID(R29,1,(SEARCH("(",R29)-1))," ","")) -> 1017357
F31: Réplique 10% : | G31: =G30/10 -> 213644.97
B34: Calcul attaque à lancer :
B36: Mon niveau Armes : | C36: 12 | G36: Nb unité à ajouter pour compléter la FdF nécessaire
B37: Mon niveau Bouclier : | C37: 11
B39: Type d'unité | C39: Nb unité envoyées | E39: Att AB
B40: Jeune Soldate Naine | E40: =(Data!C5*$C40)*(1+(C$36/10)) -> 0 | G40: =IF((H$45>E$54),((H$45-E$54)/(Data!C5*(1+('Auto sur sonde'!C$36/10)))),"FdF suffisante") -> 752029.0909 | H40: JSN nécessaires en cas de réplique à 10% :
B41: Soldate Naine | E41: =(Data!C6*$C41)*(1+(C$36/10)) -> 0 | G41: =IF((H$45>E$54),((H$45-E$54)/(Data!C6*(1+('Auto sur sonde'!C$36/10)))),"FdF suffisante") -> 451217.4545 | H41: =ROUNDUP((G31/(Data!E5*(1+(C37/10)))),0) -> 12717 | K41: =IF((C40>H41),"OK","Alerte !") -> Alerte !
B42: Naine d'Elite | E42: =(Data!C7*$C42)*(1+(C$36/10)) -> 0 | G42: =IF((H$45>E$54),((H$45-E$54)/(Data!C7*(1+('Auto sur sonde'!C$36/10)))),"FdF suffisante") -> 322298.1818
B43: Jeune Soldate | E43: =(Data!C8*$C43)*(1+(C$36/10)) -> 0 | G43: =IF((H$45>E$54),((H$45-E$54)/(Data!C8*(1+('Auto sur sonde'!C$36/10)))),"FdF suffisante") -> 225608.7273
B44: Soldate | E44: =(Data!C9*$C44)*(1+(C$36/10)) -> 0 | G44: =IF((H$45>E$54),((H$45-E$54)/(Data!C9*(1+('Auto sur sonde'!C$36/10)))),"FdF suffisante") -> 150405.8182 | H44: FdF AB nécessaire pour réplique 10% :
B45: Concierge | E45: =(Data!C10*$C45)*(1+(C$36/10)) -> 0 | G45: =IF((H$45>E$54),((H$45-E$54)/(Data!C10*(1+('Auto sur sonde'!C$36/10)))),"FdF suffisante") -> 2256087.273 | H45: =G28 -> 4963392 | K45: =IF((E54>H45),"OK","Alerte !") -> Alerte !
B46: Concierge d'élite | E46: =(Data!C11*$C46)*(1+(C$36/10)) -> 0 | G46: =IF((H$45>E$54),((H$45-E$54)/(Data!C11*(1+('Auto sur sonde'!C$36/10)))),"FdF suffisante") -> 2256087.273
B47: Artilleuse | E47: =(Data!C12*$C47)*(1+(C$36/10)) -> 0 | G47: =IF((H$45>E$54),((H$45-E$54)/(Data!C12*(1+('Auto sur sonde'!C$36/10)))),"FdF suffisante") -> 75202.90909
B48: Artilleuse d'élite | E48: =(Data!C13*$C48)*(1+(C$36/10)) -> 0 | G48: =IF((H$45>E$54),((H$45-E$54)/(Data!C13*(1+('Auto sur sonde'!C$36/10)))),"FdF suffisante") -> 64459.63636
B49: Soldate d'élite | E49: =(Data!C14*$C49)*(1+(C$36/10)) -> 0 | G49: =IF((H$45>E$54),((H$45-E$54)/(Data!C14*(1+('Auto sur sonde'!C$36/10)))),"FdF suffisante") -> 94003.63636
B50: Tank | E50: =(Data!C15*$C50)*(1+(C$36/10)) -> 0 | G50: =IF((H$45>E$54),((H$45-E$54)/(Data!C15*(1+('Auto sur sonde'!C$36/10)))),"FdF suffisante") -> 41019.7686
B51: Tank d'élite | E51: =(Data!C16*$C51)*(1+(C$36/10)) -> 0 | G51: =IF((H$45>E$54),((H$45-E$54)/(Data!C16*(1+('Auto sur sonde'!C$36/10)))),"FdF suffisante") -> 28201.09091
B52: Tueuse | E52: =(Data!C17*$C52)*(1+(C$36/10)) -> 0 | G52: =IF((H$45>E$54),((H$45-E$54)/(Data!C17*(1+('Auto sur sonde'!C$36/10)))),"FdF suffisante") -> 45121.74545
B53: Tueuse d'élite | E53: =(Data!C18*$C53)*(1+(C$36/10)) -> 0 | G53: =IF((H$45>E$54),((H$45-E$54)/(Data!C18*(1+('Auto sur sonde'!C$36/10)))),"FdF suffisante") -> 41019.7686
B54: TOTAUX : | C54: =SUM(C40:C53) -> 0 | E54: =SUM(E40:E53) -> 0

Sheet Manuel
B1: Petit tableur pour calculer une opti d'Xp...
B2: Import d'armée :
B4: 40 156 Jeunes Soldates Naines, 7 328 Soldates Naines, 5 347 Naines d'Elites, 34 291 Jeunes Soldates, 12 274 Soldates, 9 450 Concierges, 9 403 Artilleuses, 247 Artilleuses d'élites, 585 Soldates d'élites.
B5: Supprimez le contenu de la cellule, puis copier une armée, unités séparées par des virgules ou points.
B6: Ennemi : | O6: Extraction des données armée :
B8: Type d'unité | C8: Nb unité | D8: Nb unité | E8: Att HB | F8: Def HB | G8: Vie HB | I8: Mode d'emploi : | O8: Position | P8: Suivant | Q8: Texte à Analyser
B9: Jeune Soldate Naine | D9: =IF(C9=0,IF((O9>0),VALUE(SUBSTITUTE(MID(Q9,1,(O9-1))," ","")),0),C9) -> 40156 | E9: =Data!C5*$D9 -> 120468 | F9: =Data!D5*$D9 -> 80312 | G9: =Data!E5*$D9 -> 321248 | O9: =IF(ISERROR(SEARCH(Data!F5,Q9)),IF(ISERROR(SEARCH(Data!G5,Q9)),0,SEARCH(Data!G5,Q9)),SEARCH(Data!F5,Q9)) -> 8 | P9: =IF(ISERROR(SEARCH(",",Q9,O9)),IF(ISERROR(SEARCH(".",Q9,O9)),0,(SEARCH(".",Q9,O9)+2)),(SEARCH(",",Q9,O9)+2)) -> 32 | Q9: =B4 -> 40 156 Jeunes Soldates Naines, 7 328 Soldates Naines, 5 347 Naines d'Elites, 34 291 Jeunes Soldates, 12 274 Soldates, 9 450 Concierges, 9 403 Artilleuses, 247 Artilleuses d'élites, 585 Soldates d'élites.
B10: Soldate Naine | D10: =IF(C10=0,IF((O10>0),VALUE(SUBSTITUTE(MID(Q10,1,(O10-1))," ","")),0),C10) -> 7328 | E10: =Data!C6*$D10 -> 36640 | F10: =Data!D6*$D10 -> 29312 | G10: =Data!E6*$D10 -> 73280 | I10: 1/ Copier l'armée ou remplir le nombre d'unité | O10: =IF(ISERROR(SEARCH(Data!F6,Q10)),IF(ISERROR(SEARCH(Data!G6,Q10)),0,SEARCH(Data!G6,Q10)),SEARCH(Data!F6,Q10)) -> 7 | P10: 24 | Q10: =IF(((O9+P9)>0),MID(Q9,P9,5000),Q9) -> 7 328 Soldates Naines, 5 347 Naines d'Elites, 34 291 Jeunes Soldates, 12 274 Soldates, 9 450 Concierges, 9 403 Artilleuses, 247 Artilleuses d'élites, 585 Soldates d'élites.
B11: Naine d'Elite | D11: 5347 | E11: =Data!C7*$D11 -> 37429 | F11: =Data!D7*$D11 -> 32082 | G11: =Data!E7*$D11 -> 69511 | I11: (les valeurs saisies ont la priorité sur les valeurs importées). | O11: =IF(ISERROR(SEARCH(Data!F7,Q11)),IF(ISERROR(SEARCH(Data!G7,Q11)),0,SEARCH(Data!G7,Q11)),SEARCH(Data!F7,Q11)) -> 7 | P11: 24 | Q11: 5 347 Naines d'Elites, 34 291 Jeunes Soldates, 12 274 Soldates, 9 450 Concierges, 9 403 Artilleuses, 247 Artilleuses d'élites, 585 Soldates d'élites.
B12: Jeune Soldate | D12: 34291 | E12: =Data!C8*$D12 -> 342910 | F12: =Data!D8*$D12 -> 308619 | G12: =Data!E8*$D12 -> 548656 | I12: 2/ Saisir armes, bouclier dome ou loge de l'ennemi | O12: =IF(ISERROR(SEARCH(Data!F8,Q12)),IF(ISERROR(SEARCH(Data!G8,Q12)),0,SEARCH(Data!G8,Q12)),SEARCH(Data!F8,Q12)) -> 8 | P12: 25 | Q12: 34 291 Jeunes Soldates, 12 274 Soldates, 9 450 Concierges, 9 403 Artilleuses, 247 Artilleuses d'élites, 585 Soldates d'élites.
B13: Soldate | D13: 12274 | E13: =Data!C9*$D13 -> 184110 | F13: =Data!D9*$D13 -> 171836 | G13: =Data!E9*$D13 -> 245480 | I13: 3/ Saisir vos niveaux d'arme et bouclier | O13: =IF(ISERROR(SEARCH(Data!F9,Q13)),IF(ISERROR(SEARCH(Data!G9,Q13)),0,SEARCH(Data!G9,Q13)),SEARCH(Data!F9,Q13)) -> 8 | P13: 18 | Q13: 12 274 Soldates, 9 450 Concierges, 9 403 Artilleuses, 247 Artilleuses d'élites, 585 Soldates d'élites.
B14: Concierge | D14: 9450 | E14: =Data!C10*$D14 -> 9450 | F14: =Data!D10*$D14 -> 236250 | G14: =Data!E10*$D14 -> 283500 | I14: 4/ Saisir vos unité à envoyer | O14: =IF(ISERROR(SEARCH(Data!F10,Q14)),IF(ISERROR(SEARCH(Data!G10,Q14)),0,SEARCH(Data!G10,Q14)),SEARCH(Data!F10,Q14)) -> 7 | P14: 19 | Q14: 9 450 Concierges, 9 403 Artilleuses, 247 Artilleuses d'élites, 585 Soldates d'élites.
B15: Concierge d'élite | D15: 0 | E15: =Data!C11*$D15 -> 0 | F15: =Data!D11*$D15 -> 0 | G15: =Data!E11*$D15 -> 0 | O15: =IF(ISERROR(SEARCH(Data!F11,Q15)),IF(ISERROR(SEARCH(Data!G11,Q15)),0,SEARCH(Data!G11,Q15)),SEARCH(Data!F11,Q15)) -> 0 | P15: 0 | Q15: 9 403 Artilleuses, 247 Artilleuses d'élites, 585 Soldates d'élites.
B16: Artilleuse | D16: 9403 | E16: =Data!C12*$D16 -> 282090 | F16: =Data!D12*$D16 -> 141045 | G16: =Data!E12*$D16 -> 94030 | I16: Légende : | O16: =IF(ISERROR(SEARCH(Data!F12,Q16)),IF(ISERROR(SEARCH(Data!G12,Q16)),0,SEARCH(Data!G12,Q16)),SEARCH(Data!F12,Q16)) -> 7 | P16: 20 | Q16: 9 403 Artilleuses, 247 Artilleuses d'élites, 585 Soldates d'élites.
B17: Artilleuse d'élite | D17: 247 | E17: =Data!C13*$D17 -> 8645 | F17: =Data!D13*$D17 -> 4446 | G17: =Data!E13*$D17 -> 2964 | I17: cellule à renseigner | L17: (les seules à modifier) | O17: =IF(ISERROR(SEARCH(Data!F13,Q17)),IF(ISERROR(SEARCH(Data!G13,Q17)),0,SEARCH(Data!G13,Q17)),SEARCH(Data!F13,Q17)) -> 5 | P17: 27 | Q17: 247 Artilleuses d'élites, 585 Soldates d'élites.
B18: Soldate d'élite | D18: 585 | E18: =Data!C14*$D18 -> 14040 | F18: =Data!D14*$D18 -> 13455 | G18: =Data!E14*$D18 -> 15795 | I18: résultat de calcul | O18: =IF(ISERROR(SEARCH(Data!F14,Q18)),IF(ISERROR(SEARCH(Data!G14,Q18)),0,SEARCH(Data!G14,Q18)),SEARCH(Data!F14,Q18)) -> 5 | P18: 24 | Q18: 585 Soldates d'élites.
B19: Tank | D19: 0 | E19: =Data!C15*$D19 -> 0 | F19: =Data!D15*$D19 -> 0 | G19: =Data!E15*$D19 -> 0 | I19: Titre | O19: =IF(ISERROR(SEARCH(Data!F15,Q19)),IF(ISERROR(SEARCH(Data!G15,Q19)),0,SEARCH(Data!G15,Q19)),SEARCH(Data!F15,Q19)) -> 0 | P19: 0
B20: Tank d'élite | D20: 0 | E20: =Data!C16*$D20 -> 0 | F20: =Data!D16*$D20 -> 0 | G20: =Data!E16*$D20 -> 0 | I20: Titre ou résultat de calcul | O20: =IF(ISERROR(SEARCH(Data!F16,Q20)),IF(ISERROR(SEARCH(Data!G16,Q20)),0,SEARCH(Data!G16,Q20)),SEARCH(Data!F16,Q20)) -> 0 | P20: 0
B21: Tueuse | D21: 0 | E21: =Data!C17*$D21 -> 0 | F21: =Data!D17*$D21 -> 0 | G21: =Data!E17*$D21 -> 0 | O21: =IF(ISERROR(SEARCH(Data!F17,Q21)),IF(ISERROR(SEARCH(Data!G17,Q21)),0,SEARCH(Data!G17,Q21)),SEARCH(Data!F17,Q21)) -> 0 | P21: 0
B22: Tueuse d'élite | D22: 0 | E22: =Data!C18*$D22 -> 0 | F22: =Data!D18*$D22 -> 0 | G22: =Data!E18*$D22 -> 0 | O22: =IF(ISERROR(SEARCH(Data!F18,Q22)),IF(ISERROR(SEARCH(Data!G18,Q22)),0,SEARCH(Data!G18,Q22)),SEARCH(Data!F18,Q22)) -> 0 | P22: 0
B23: TOTAUX : | C23: =SUM(C9:C22) -> 0 | D23: =SUM(D9:D22) -> 119081 | E23: =SUM(E9:E22) -> 1035782 | F23: =SUM(F9:F22) -> 1017357 | G23: =SUM(G9:G22) -> 1654464
B25: Armes : | D25: 11 | E25: Vie HB x 3 : | G25: =G23*3 -> 4963392 | I25: FdF AB nécessaire pour une réplique à 10%
B26: Bouclier : | D26: 11
B27: Dôme : | D27: 6 | E27: Vie AB Dome : | G27: =G23*D29 -> 4136160 | I27: En dôme : | K27: =MAX(G25,G27) -> 4963392
C28: Loge : | D28: 10 | E28: Vie AB Loge : | G28: =G23*D30 -> 6452409.6 | I28: En loge : | K28: =MAX(G25,G28) -> 6452409.6
B29: Multiplicateur vie Dome : | D29: =1+D26/10+0.1+0.05*D27 -> 2.5
B30: Multiplicateur vie Loge : | D30: =1+D26/10+0.3+0.15*D28 -> 3.9 | F30: Défense AB : | G30: =F23*(1+D25/10) -> 2136449.7
D31: FdF AB nécessaire pour réplique 10% : | F31: Réplique 10% : | G31: =G30/10 -> 213644.97
B37: Calcul attaque à lancer :
B39: Mon niveau Armes : | C39: 12 | G39: Nb unité à ajouter pour compléter la FdF nécessaire
B40: Mon niveau Bouclier : | C40: 11
B42: Type d'unité | C42: Nb unité envoyées | E42: Att AB | G42: Dôme | H42: Loge
B43: Jeune Soldate Naine | E43: =(Data!C5*$C43)*(1+(C$39/10)) -> 0 | G43: =IF((J$47>E$57),((J$47-E$57)/(Data!C5*(1+(Manuel!C$39/10)))),"FdF suffisante") -> 752029.0909 | H43: =IF((J$53>E$57),((J$53-E$57)/(Data!C5*(1+(C$39/10)))),"FdF suffisante") -> 977637.8182 | J43: Dôme
B44: Soldate Naine | E44: =(Data!C6*$C44)*(1+(C$39/10)) -> 0 | G44: =IF((J$47>E$57),((J$47-E$57)/(Data!C6*(1+(Manuel!C$39/10)))),"FdF suffisante") -> 451217.4545 | H44: =IF((J$53>E$57),((J$53-E$57)/(Data!C6*(1+(C$39/10)))),"FdF suffisante") -> 586582.6909 | J44: JSN nécessaires en cas de réplique à 10% :
B45: Naine d'Elite | E45: =(Data!C7*$C45)*(1+(C$39/10)) -> 0 | G45: =IF((J$47>E$57),((J$47-E$57)/(Data!C7*(1+(Manuel!C$39/10)))),"FdF suffisante") -> 322298.1818 | H45: =IF((J$53>E$57),((J$53-E$57)/(Data!C7*(1+(C$39/10)))),"FdF suffisante") -> 418987.6364 | J45: =ROUNDUP((G31/(Data!E5*(1+(C40/10)))),0) -> 12717 | M45: =IF((C43>J45),"OK","Alerte !") -> Alerte !
B46: Jeune Soldate | E46: =(Data!C8*$C46)*(1+(C$39/10)) -> 0 | G46: =IF((J$47>E$57),((J$47-E$57)/(Data!C8*(1+(Manuel!C$39/10)))),"FdF suffisante") -> 225608.7273 | H46: =IF((J$53>E$57),((J$53-E$57)/(Data!C8*(1+(C$39/10)))),"FdF suffisante") -> 293291.3455 | J46: FdF AB nécessaire pour réplique 10% :
B47: Soldate | E47: =(Data!C9*$C47)*(1+(C$39/10)) -> 0 | G47: =IF((J$47>E$57),((J$47-E$57)/(Data!C9*(1+(Manuel!C$39/10)))),"FdF suffisante") -> 150405.8182 | H47: =IF((J$53>E$57),((J$53-E$57)/(Data!C9*(1+(C$39/10)))),"FdF suffisante") -> 195527.5636 | J47: =K27 -> 4963392 | M47: =IF((E57>J47),"OK","Alerte !") -> Alerte !
B48: Concierge | E48: =(Data!C10*$C48)*(1+(C$39/10)) -> 0 | G48: =IF((J$47>E$57),((J$47-E$57)/(Data!C10*(1+(Manuel!C$39/10)))),"FdF suffisante") -> 2256087.273 | H48: =IF((J$53>E$57),((J$53-E$57)/(Data!C10*(1+(C$39/10)))),"FdF suffisante") -> 2932913.455
B49: Concierge d'élite | E49: =(Data!C11*$C49)*(1+(C$39/10)) -> 0 | G49: =IF((J$47>E$57),((J$47-E$57)/(Data!C11*(1+(Manuel!C$39/10)))),"FdF suffisante") -> 2256087.273 | H49: =IF((J$53>E$57),((J$53-E$57)/(Data!C11*(1+(C$39/10)))),"FdF suffisante") -> 2932913.455 | J49: Loge
B50: Artilleuse | E50: =(Data!C12*$C50)*(1+(C$39/10)) -> 0 | G50: =IF((J$47>E$57),((J$47-E$57)/(Data!C12*(1+(Manuel!C$39/10)))),"FdF suffisante") -> 75202.90909 | H50: =IF((J$53>E$57),((J$53-E$57)/(Data!C12*(1+(C$39/10)))),"FdF suffisante") -> 97763.78182 | J50: JSN nécessaires en cas de réplique à 10% :
B51: Artilleuse d'élite | E51: =(Data!C13*$C51)*(1+(C$39/10)) -> 0 | G51: =IF((J$47>E$57),((J$47-E$57)/(Data!C13*(1+(Manuel!C$39/10)))),"FdF suffisante") -> 64459.63636 | H51: =IF((J$53>E$57),((J$53-E$57)/(Data!C13*(1+(C$39/10)))),"FdF suffisante") -> 83797.52727 | J51: =ROUNDUP((G31/(Data!E5*(1+(C40/10)))),0) -> 12717 | M51: =IF((C43>J51),"OK","Alerte !") -> Alerte !
B52: Soldate d'élite | E52: =(Data!C14*$C52)*(1+(C$39/10)) -> 0 | G52: =IF((J$47>E$57),((J$47-E$57)/(Data!C14*(1+(Manuel!C$39/10)))),"FdF suffisante") -> 94003.63636 | H52: =IF((J$53>E$57),((J$53-E$57)/(Data!C14*(1+(C$39/10)))),"FdF suffisante") -> 122204.7273 | J52: FdF AB nécessaire pour réplique 10% :
B53: Tank | E53: =(Data!C15*$C53)*(1+(C$39/10)) -> 0 | G53: =IF((J$47>E$57),((J$47-E$57)/(Data!C15*(1+(Manuel!C$39/10)))),"FdF suffisante") -> 41019.7686 | H53: =IF((J$53>E$57),((J$53-E$57)/(Data!C15*(1+(C$39/10)))),"FdF suffisante") -> 53325.69917 | J53: =K28 -> 6452409.6 | M53: =IF((E65>J53),"OK","Alerte !") -> Alerte !
B54: Tank d'élite | E54: =(Data!C16*$C54)*(1+(C$39/10)) -> 0 | G54: =IF((J$47>E$57),((J$47-E$57)/(Data!C16*(1+(Manuel!C$39/10)))),"FdF suffisante") -> 28201.09091 | H54: =IF((J$53>E$57),((J$53-E$57)/(Data!C16*(1+(C$39/10)))),"FdF suffisante") -> 36661.41818
B55: Tueuse | E55: =(Data!C17*$C55)*(1+(C$39/10)) -> 0 | G55: =IF((J$47>E$57),((J$47-E$57)/(Data!C17*(1+(Manuel!C$39/10)))),"FdF suffisante") -> 45121.74545 | H55: =IF((J$53>E$57),((J$53-E$57)/(Data!C17*(1+(C$39/10)))),"FdF suffisante") -> 58658.26909
B56: Tueuse d'élite | E56: =(Data!C18*$C56)*(1+(C$39/10)) -> 0 | G56: =IF((J$47>E$57),((J$47-E$57)/(Data!C18*(1+(Manuel!C$39/10)))),"FdF suffisante") -> 41019.7686 | H56: =IF((J$53>E$57),((J$53-E$57)/(Data!C18*(1+(C$39/10)))),"FdF suffisante") -> 53325.69917
B57: TOTAUX : | C57: =SUM(C43:C56) -> 0 | E57: =SUM(E43:E56) -> 0

Sheet Multiplicateurs vie
B1: Combinaisons bouclier/dôme et bouclier/loge (plus bas dans la page) => multiplicateur de vie
B2: Multiplicateur : | F2: 2.5 | J2: Saisissez ici le multiplicateur de vie trouvé sur une sonde pour voir les combinaison bouclier/dôme ou bouclier/loge possibles (selon le lieu de la sonde).
B4: Bouclier : | D4: =ROUND(($F$2-1-0.1-D5*0.05)*100,0)/10 -> 14 | E4: =D4-1 -> 13 | F4: =E4-1 -> 12 | G4: 11 | H4: 10 | I4: 9 | J4: 8 | K4: 7 | L4: 6 | M4: 5 | N4: 4 | O4: 3 | P4: 2 | Q4: 1 | R4: 0 | S4: -1 | T4: -2 | U4: -3 | V4: -4 | W4: -5 | X4: -6 | Y4: -7 | Z4: -8 | AA4: -9 | AB4: -10 | AC4: -11 | AD4: -12 | AE4: -13 | AF4: -14 | AG4: -15 | AH4: -16 | AI4: -17 | AJ4: -18 | AK4: -19 | AL4: -20 | AM4: -21 | AN4: -22 | AO4: -23 | AP4: -24 | AQ4: -25 | AR4: -26 | AS4: -27 | AT4: -28 | AU4: -29 | AV4: -30 | AW4: -31 | AX4: -32 | AY4: -33 | AZ4: -34 | BA4: -35
B5: Dôme : | D5: =IF(ROUND($F$2*10,0)/10=$F$2,0,1) -> 0 | E5: =($F$2-1-0.1*E4-0.1)/0.05 -> 2 | F5: 4 | G5: 6 | H5: 8 | I5: 10 | J5: 12 | K5: 14 | L5: 16 | M5: 18 | N5: 20 | O5: 22 | P5: 24 | Q5: 26 | R5: 28 | S5: 30 | T5: 32 | U5: 34 | V5: 36 | W5: 38 | X5: 40 | Y5: 42 | Z5: 44 | AA5: 46 | AB5: 48 | AC5: 50 | AD5: 52 | AE5: 54 | AF5: 56 | AG5: 58 | AH5: 60 | AI5: 62 | AJ5: 64 | AK5: =($F$2-1-0.1*AK4-0.1)/0.05 -> 66 | AL5: 68 | AM5: 70 | AN5: 72 | AO5: 74 | AP5: 76 | AQ5: 78 | AR5: 80 | AS5: 82 | AT5: 84 | AU5: 86 | AV5: 88 | AW5: 90 | AX5: 92 | AY5: 94 | AZ5: 96 | BA5: 98
B7: Bouclier : | D7: =ROUND(($F$2-1-0.3-D8*0.15)*100,0)/10 -> 12 | E7: =D7-3 -> 9 | F7: =E7-3 -> 6 | G7: 3 | H7: 0 | I7: -3 | J7: -6 | K7: -9 | L7: -12 | M7: -15 | N7: -18 | O7: -21 | P7: -24 | Q7: -27 | R7: -30 | S7: -33 | T7: -36 | U7: -39 | V7: -42 | W7: -45 | X7: -48 | Y7: -51 | Z7: -54 | AA7: -57 | AB7: -60 | AC7: -63 | AD7: -66 | AE7: -69 | AF7: -72 | AG7: -75 | AH7: -78 | AI7: -81 | AJ7: -84 | AK7: -87 | AL7: -90 | AM7: -93 | AN7: -96 | AO7: -99 | AP7: -102 | AQ7: -105 | AR7: -108 | AS7: -111 | AT7: -114 | AU7: -117 | AV7: -120 | AW7: -123 | AX7: -126 | AY7: -129 | AZ7: -132 | BA7: -135
B8: Loge : | D8: =IF(ROUND($F$2*10,0)/10=$F$2,0,1) -> 0 | E8: =($F$2-1-0.1*E7-0.3)/0.15 -> 2 | F8: =($F$2-1-0.1*F7-0.3)/0.15 -> 4 | G8: 6 | H8: 8 | I8: 10 | J8: 12 | K8: 14 | L8: 16 | M8: 18 | N8: 20 | O8: 22 | P8: 24 | Q8: 26 | R8: 28 | S8: 30 | T8: 32 | U8: 34 | V8: 36 | W8: 38 | X8: 40 | Y8: 42 | Z8: 44 | AA8: 46 | AB8: 48 | AC8: 50 | AD8: 52 | AE8: 54 | AF8: 56 | AG8: 58 | AH8: 60 | AI8: 62 | AJ8: 64 | AK8: 66 | AL8: 68 | AM8: 70 | AN8: 72 | AO8: 74 | AP8: 76 | AQ8: 78 | AR8: 80 | AS8: 82 | AT8: 84 | AU8: 86 | AV8: 88 | AW8: 90 | AX8: 92 | AY8: 94 | AZ8: 96 | BA8: 98
C10: Dôme
B11: Bouclier | C11: 0 | D11: 1 | E11: 2 | F11: 3 | G11: 4 | H11: 5 | I11: 6 | J11: 7 | K11: 8 | L11: 9 | M11: 10 | N11: 11 | O11: 12 | P11: 13 | Q11: 14 | R11: 15 | S11: 16 | T11: 17 | U11: 18 | V11: 19 | W11: 20 | X11: 21 | Y11: 22 | Z11: 23 | AA11: 24 | AB11: 25 | AC11: 26 | AD11: 27 | AE11: 28 | AF11: 29 | AG11: 30 | AH11: 31 | AI11: 32 | AJ11: 33 | AK11: 34 | AL11: 35 | AM11: 36 | AN11: 37 | AO11: 38 | AP11: 39 | AQ11: 40 | AR11: 41 | AS11: 42 | AT11: 43 | AU11: 44 | AV11: 45 | AW11: 46 | AX11: 47 | AY11: 48 | AZ11: 49 | BA11: 50
B12: 0 | C12: =1+$B12*0.1+0.1+C$11*0.05 -> 1.1 | D12: =1+$B12*0.1+0.1+D$11*0.05 -> 1.15 | E12: 1.2 | F12: 1.25 | G12: 1.3 | H12: 1.35 | I12: 1.4 | J12: 1.45 | K12: 1.5 | L12: 1.55 | M12: 1.6 | N12: 1.65 | O12: 1.7 | P12: 1.75 | Q12: 1.8 | R12: 1.85 | S12: 1.9 | T12: 1.95 | U12: 2 | V12: 2.05 | W12: 2.1 | X12: 2.15 | Y12: 2.2 | Z12: 2.25 | AA12: 2.3 | AB12: 2.35 | AC12: 2.4 | AD12: 2.45 | AE12: 2.5 | AF12: 2.55 | AG12: 2.6 | AH12: 2.65 | AI12: 2.7 | AJ12: 2.75 | AK12: 2.8 | AL12: 2.85 | AM12: 2.9 | AN12: 2.95 | AO12: 3 | AP12: 3.05 | AQ12: 3.1 | AR12: 3.15 | AS12: 3.2 | AT12: 3.25 | AU12: 3.3 | AV12: 3.35 | AW12: 3.4 | AX12: 3.45 | AY12: 3.5 | AZ12: 3.55 | BA12: =1+$B12*0.1+0.1+BA$11*0.05 -> 3.6
B13: 1 | C13: 1.2 | D13: =1+$B13*0.1+0.1+D$11*0.05 -> 1.25 | E13: 1.3 | F13: 1.35 | G13: 1.4 | H13: 1.45 | I13: 1.5 | J13: 1.55 | K13: 1.6 | L13: 1.65 | M13: 1.7 | N13: 1.75 | O13: 1.8 | P13: 1.85 | Q13: 1.9 | R13: 1.95 | S13: 2 | T13: 2.05 | U13: 2.1 | V13: 2.15 | W13: 2.2 | X13: 2.25 | Y13: 2.3 | Z13: 2.35 | AA13: 2.4 | AB13: 2.45 | AC13: 2.5 | AD13: 2.55 | AE13: 2.6 | AF13: 2.65 | AG13: 2.7 | AH13: 2.75 | AI13: 2.8 | AJ13: 2.85 | AK13: 2.9 | AL13: 2.95 | AM13: 3 | AN13: 3.05 | AO13: 3.1 | AP13: 3.15 | AQ13: 3.2 | AR13: 3.25 | AS13: 3.3 | AT13: 3.35 | AU13: 3.4 | AV13: 3.45 | AW13: 3.5 | AX13: 3.55 | AY13: 3.6 | AZ13: 3.65 | BA13: 3.7
B14: 2 | C14: 1.3 | D14: 1.35 | E14: 1.4 | F14: 1.45 | G14: 1.5 | H14: 1.55 | I14: 1.6 | J14: 1.65 | K14: 1.7 | L14: 1.75 | M14: 1.8 | N14: 1.85 | O14: 1.9 | P14: 1.95 | Q14: 2 | R14: 2.05 | S14: 2.1 | T14: 2.15 | U14: 2.2 | V14: 2.25 | W14: 2.3 | X14: 2.35 | Y14: 2.4 | Z14: 2.45 | AA14: 2.5 | AB14: 2.55 | AC14: 2.6 | AD14: 2.65 | AE14: 2.7 | AF14: 2.75 | AG14: 2.8 | AH14: 2.85 | AI14: 2.9 | AJ14: 2.95 | AK14: 3 | AL14: 3.05 | AM14: 3.1 | AN14: 3.15 | AO14: 3.2 | AP14: 3.25 | AQ14: 3.3 | AR14: 3.35 | AS14: 3.4 | AT14: 3.45 | AU14: 3.5 | AV14: 3.55 | AW14: 3.6 | AX14: 3.65 | AY14: 3.7 | AZ14: 3.75 | BA14: 3.8
B15: 3 | C15: 1.4 | D15: 1.45 | E15: 1.5 | F15: 1.55 | G15: 1.6 | H15: 1.65 | I15: 1.7 | J15: 1.75 | K15: 1.8 | L15: 1.85 | M15: 1.9 | N15: 1.95 | O15: 2 | P15: 2.05 | Q15: 2.1 | R15: 2.15 | S15: 2.2 | T15: 2.25 | U15: 2.3 | V15: 2.35 | W15: 2.4 | X15: 2.45 | Y15: 2.5 | Z15: 2.55 | AA15: 2.6 | AB15: 2.65 | AC15: 2.7 | AD15: 2.75 | AE15: 2.8 | AF15: 2.85 | AG15: 2.9 | AH15: 2.95 | AI15: 3 | AJ15: 3.05 | AK15: 3.1 | AL15: 3.15 | AM15: 3.2 | AN15: 3.25 | AO15: 3.3 | AP15: 3.35 | AQ15: 3.4 | AR15: 3.45 | AS15: 3.5 | AT15: 3.55 | AU15: 3.6 | AV15: 3.65 | AW15: 3.7 | AX15: 3.75 | AY15: 3.8 | AZ15: 3.85 | BA15: 3.9
B16: 4 | C16: 1.5 | D16: 1.55 | E16: 1.6 | F16: 1.65 | G16: 1.7 | H16: 1.75 | I16: 1.8 | J16: 1.85 | K16: 1.9 | L16: 1.95 | M16: 2 | N16: 2.05 | O16: 2.1 | P16: 2.15 | Q16: 2.2 | R16: 2.25 | S16: 2.3 | T16: 2.35 | U16: 2.4 | V16: 2.45 | W16: 2.5 | X16: 2.55 | Y16: 2.6 | Z16: 2.65 | AA16: 2.7 | AB16: 2.75 | AC16: 2.8 | AD16: 2.85 | AE16: 2.9 | AF16: 2.95 | AG16: 3 | AH16: 3.05 | AI16: 3.1 | AJ16: 3.15 | AK16: 3.2 | AL16: 3.25 | AM16: 3.3 | AN16: 3.35 | AO16: 3.4 | AP16: 3.45 | AQ16: 3.5 | AR16: 3.55 | AS16: 3.6 | AT16: 3.65 | AU16: 3.7 | AV16: 3.75 | AW16: 3.8 | AX16: 3.85 | AY16: 3.9 | AZ16: 3.95 | BA16: 4
B17: 5 | C17: 1.6 | D17: 1.65 | E17: 1.7 | F17: 1.75 | G17: 1.8 | H17: 1.85 | I17: 1.9 | J17: 1.95 | K17: 2 | L17: 2.05 | M17: 2.1 | N17: 2.15 | O17: 2.2 | P17: 2.25 | Q17: 2.3 | R17: 2.35 | S17: 2.4 | T17: 2.45 | U17: 2.5 | V17: 2.55 | W17: 2.6 | X17: 2.65 | Y17: 2.7 | Z17: 2.75 | AA17: 2.8 | AB17: 2.85 | AC17: =1+$B17*0.1+0.1+AC$11*0.05 -> 2.9 | AD17: 2.95 | AE17: 3 | AF17: 3.05 | AG17: 3.1 | AH17: 3.15 | AI17: 3.2 | AJ17: 3.25 | AK17: 3.3 | AL17: 3.35 | AM17: 3.4 | AN17: 3.45 | AO17: 3.5 | AP17: 3.55 | AQ17: 3.6 | AR17: 3.65 | AS17: 3.7 | AT17: 3.75 | AU17: 3.8 | AV17: 3.85 | AW17: 3.9 | AX17: 3.95 | AY17: 4 | AZ17: 4.05 | BA17: 4.1
B18: 6 | C18: 1.7 | D18: 1.75 | E18: 1.8 | F18: 1.85 | G18: 1.9 | H18: 1.95 | I18: 2 | J18: 2.05 | K18: 2.1 | L18: 2.15 | M18: 2.2 | N18: 2.25 | O18: 2.3 | P18: 2.35 | Q18: 2.4 | R18: 2.45 | S18: 2.5 | T18: 2.55 | U18: 2.6 | V18: 2.65 | W18: 2.7 | X18: 2.75 | Y18: 2.8 | Z18: 2.85 | AA18: 2.9 | AB18: 2.95 | AC18: 3 | AD18: 3.05 | AE18: 3.1 | AF18: 3.15 | AG18: 3.2 | AH18: 3.25 | AI18: 3.3 | AJ18: 3.35 | AK18: 3.4 | AL18: 3.45 | AM18: 3.5 | AN18: 3.55 | AO18: 3.6 | AP18: 3.65 | AQ18: 3.7 | AR18: 3.75 | AS18: 3.8 | AT18: 3.85 | AU18: 3.9 | AV18: 3.95 | AW18: 4 | AX18: 4.05 | AY18: 4.1 | AZ18: 4.15 | BA18: 4.2
B19: 7 | C19: 1.8 | D19: 1.85 | E19: 1.9 | F19: 1.95 | G19: 2 | H19: 2.05 | I19: 2.1 | J19: 2.15 | K19: 2.2 | L19: 2.25 | M19: 2.3 | N19: 2.35 | O19: 2.4 | P19: 2.45 | Q19: 2.5 | R19: 2.55 | S19: 2.6 | T19: 2.65 | U19: 2.7 | V19: 2.75 | W19: 2.8 | X19: 2.85 | Y19: 2.9 | Z19: 2.95 | AA19: 3 | AB19: 3.05 | AC19: 3.1 | AD19: 3.15 | AE19: 3.2 | AF19: 3.25 | AG19: 3.3 | AH19: 3.35 | AI19: 3.4 | AJ19: 3.45 | AK19: 3.5 | AL19: 3.55 | AM19: 3.6 | AN19: 3.65 | AO19: 3.7 | AP19: 3.75 | AQ19: 3.8 | AR19: 3.85 | AS19: 3.9 | AT19: 3.95 | AU19: 4 | AV19: 4.05 | AW19: 4.1 | AX19: 4.15 | AY19: 4.2 | AZ19: 4.25 | BA19: 4.3
B20: 8 | C20: 1.9 | D20: 1.95 | E20: 2 | F20: 2.05 | G20: 2.1 | H20: 2.15 | I20: 2.2 | J20: 2.25 | K20: 2.3 | L20: 2.35 | M20: 2.4 | N20: 2.45 | O20: 2.5 | P20: 2.55 | Q20: 2.6 | R20: 2.65 | S20: 2.7 | T20: 2.75 | U20: 2.8 | V20: 2.85 | W20: 2.9 | X20: 2.95 | Y20: 3 | Z20: 3.05 | AA20: 3.1 | AB20: 3.15 | AC20: 3.2 | AD20: 3.25 | AE20: 3.3 | AF20: 3.35 | AG20: 3.4 | AH20: 3.45 | AI20: 3.5 | AJ20: 3.55 | AK20: 3.6 | AL20: 3.65 | AM20: 3.7 | AN20: 3.75 | AO20: 3.8 | AP20: 3.85 | AQ20: 3.9 | AR20: 3.95 | AS20: 4 | AT20: 4.05 | AU20: 4.1 | AV20: 4.15 | AW20: 4.2 | AX20: 4.25 | AY20: 4.3 | AZ20: 4.35 | BA20: 4.4
B21: 9 | C21: 2 | D21: 2.05 | E21: 2.1 | F21: 2.15 | G21: 2.2 | H21: 2.25 | I21: 2.3 | J21: 2.35 | K21: 2.4 | L21: 2.45 | M21: 2.5 | N21: 2.55 | O21: 2.6 | P21: 2.65 | Q21: 2.7 | R21: 2.75 | S21: 2.8 | T21: 2.85 | U21: 2.9 | V21: 2.95 | W21: 3 | X21: 3.05 | Y21: 3.1 | Z21: 3.15 | AA21: 3.2 | AB21: 3.25 | AC21: 3.3 | AD21: 3.35 | AE21: 3.4 | AF21: 3.45 | AG21: 3.5 | AH21: 3.55 | AI21: 3.6 | AJ21: 3.65 | AK21: 3.7 | AL21: 3.75 | AM21: 3.8 | AN21: 3.85 | AO21: 3.9 | AP21: 3.95 | AQ21: 4 | AR21: 4.05 | AS21: 4.1 | AT21: 4.15 | AU21: 4.2 | AV21: 4.25 | AW21: 4.3 | AX21: 4.35 | AY21: 4.4 | AZ21: 4.45 | BA21: 4.5
B22: 10 | C22: 2.1 | D22: 2.15 | E22: 2.2 | F22: 2.25 | G22: 2.3 | H22: 2.35 | I22: 2.4 | J22: 2.45 | K22: 2.5 | L22: 2.55 | M22: 2.6 | N22: 2.65 | O22: 2.7 | P22: 2.75 | Q22: 2.8 | R22: 2.85 | S22: 2.9 | T22: 2.95 | U22: 3 | V22: 3.05 | W22: 3.1 | X22: 3.15 | Y22: 3.2 | Z22: 3.25 | AA22: 3.3 | AB22: 3.35 | AC22: 3.4 | AD22: 3.45 | AE22: 3.5 | AF22: 3.55 | AG22: 3.6 | AH22: 3.65 | AI22: 3.7 | AJ22: 3.75 | AK22: 3.8 | AL22: 3.85 | AM22: =1+$B22*0.1+0.1+AM$11*0.05 -> 3.9 | AN22: 3.95 | AO22: 4 | AP22: 4.05 | AQ22: 4.1 | AR22: 4.15 | AS22: 4.2 | AT22: 4.25 | AU22: 4.3 | AV22: 4.35 | AW22: 4.4 | AX22: 4.45 | AY22: 4.5 | AZ22: 4.55 | BA22: 4.6
B23: 11 | C23: 2.2 | D23: 2.25 | E23: 2.3 | F23: 2.35 | G23: 2.4 | H23: 2.45 | I23: 2.5 | J23: 2.55 | K23: 2.6 | L23: 2.65 | M23: 2.7 | N23: 2.75 | O23: 2.8 | P23: 2.85 | Q23: 2.9 | R23: 2.95 | S23: 3 | T23: 3.05 | U23: 3.1 | V23: 3.15 | W23: 3.2 | X23: 3.25 | Y23: 3.3 | Z23: 3.35 | AA23: 3.4 | AB23: 3.45 | AC23: 3.5 | AD23: 3.55 | AE23: 3.6 | AF23: 3.65 | AG23: 3.7 | AH23: 3.75 | AI23: 3.8 | AJ23: 3.85 | AK23: 3.9 | AL23: 3.95 | AM23: 4 | AN23: 4.05 | AO23: 4.1 | AP23: 4.15 | AQ23: 4.2 | AR23: 4.25 | AS23: 4.3 | AT23: 4.35 | AU23: 4.4 | AV23: 4.45 | AW23: 4.5 | AX23: 4.55 | AY23: 4.6 | AZ23: 4.65 | BA23: 4.7
B24: 12 | C24: 2.3 | D24: 2.35 | E24: 2.4 | F24: 2.45 | G24: 2.5 | H24: 2.55 | I24: 2.6 | J24: 2.65 | K24: 2.7 | L24: 2.75 | M24: 2.8 | N24: 2.85 | O24: 2.9 | P24: 2.95 | Q24: 3 | R24: 3.05 | S24: 3.1 | T24: 3.15 | U24: 3.2 | V24: 3.25 | W24: 3.3 | X24: 3.35 | Y24: 3.4 | Z24: 3.45 | AA24: 3.5 | AB24: 3.55 | AC24: 3.6 | AD24: 3.65 | AE24: 3.7 | AF24: 3.75 | AG24: 3.8 | AH24: 3.85 | AI24: 3.9 | AJ24: 3.95 | AK24: 4 | AL24: 4.05 | AM24: 4.1 | AN24: 4.15 | AO24: 4.2 | AP24: 4.25 | AQ24: 4.3 | AR24: 4.35 | AS24: 4.4 | AT24: 4.45 | AU24: 4.5 | AV24: 4.55 | AW24: 4.6 | AX24: 4.65 | AY24: 4.7 | AZ24: 4.75 | BA24: 4.8
B25: 13 | C25: 2.4 | D25: 2.45 | E25: 2.5 | F25: 2.55 | G25: 2.6 | H25: 2.65 | I25: 2.7 | J25: 2.75 | K25: 2.8 | L25: 2.85 | M25: 2.9 | N25: 2.95 | O25: 3 | P25: 3.05 | Q25: 3.1 | R25: 3.15 | S25: 3.2 | T25: 3.25 | U25: 3.3 | V25: 3.35 | W25: 3.4 | X25: 3.45 | Y25: 3.5 | Z25: 3.55 | AA25: 3.6 | AB25: 3.65 | AC25: 3.7 | AD25: 3.75 | AE25: 3.8 | AF25: 3.85 | AG25: 3.9 | AH25: 3.95 | AI25: 4 | AJ25: 4.05 | AK25: 4.1 | AL25: 4.15 | AM25: 4.2 | AN25: 4.25 | AO25: 4.3 | AP25: 4.35 | AQ25: 4.4 | AR25: 4.45 | AS25: 4.5 | AT25: 4.55 | AU25: 4.6 | AV25: 4.65 | AW25: 4.7 | AX25: 4.75 | AY25: 4.8 | AZ25: 4.85 | BA25: 4.9
B26: 14 | C26: 2.5 | D26: 2.55 | E26: 2.6 | F26: 2.65 | G26: 2.7 | H26: 2.75 | I26: 2.8 | J26: 2.85 | K26: 2.9 | L26: 2.95 | M26: 3 | N26: 3.05 | O26: 3.1 | P26: 3.15 | Q26: 3.2 | R26: 3.25 | S26: 3.3 | T26: 3.35 | U26: 3.4 | V26: 3.45 | W26: 3.5 | X26: 3.55 | Y26: 3.6 | Z26: 3.65 | AA26: 3.7 | AB26: 3.75 | AC26: 3.8 | AD26: 3.85 | AE26: 3.9 | AF26: 3.95 | AG26: 4 | AH26: 4.05 | AI26: 4.1 | AJ26: 4.15 | AK26: 4.2 | AL26: 4.25 | AM26: 4.3 | AN26: 4.35 | AO26: 4.4 | AP26: 4.45 | AQ26: 4.5 | AR26: 4.55 | AS26: 4.6 | AT26: 4.65 | AU26: 4.7 | AV26: 4.75 | AW26: 4.8 | AX26: 4.85 | AY26: 4.9 | AZ26: 4.95 | BA26: 5
B27: 15 | C27: 2.6 | D27: 2.65 | E27: 2.7 | F27: 2.75 | G27: 2.8 | H27: 2.85 | I27: 2.9 | J27: 2.95 | K27: 3 | L27: 3.05 | M27: 3.1 | N27: 3.15 | O27: 3.2 | P27: 3.25 | Q27: 3.3 | R27: 3.35 | S27: 3.4 | T27: 3.45 | U27: 3.5 | V27: 3.55 | W27: 3.6 | X27: 3.65 | Y27: 3.7 | Z27: 3.75 | AA27: 3.8 | AB27: 3.85 | AC27: 3.9 | AD27: 3.95 | AE27: 4 | AF27: 4.05 | AG27: 4.1 | AH27: 4.15 | AI27: 4.2 | AJ27: 4.25 | AK27: 4.3 | AL27: 4.35 | AM27: 4.4 | AN27: 4.45 | AO27: 4.5 | AP27: 4.55 | AQ27: 4.6 | AR27: 4.65 | AS27: 4.7 | AT27: 4.75 | AU27: 4.8 | AV27: 4.85 | AW27: =1+$B27*0.1+0.1+AW$11*0.05 -> 4.9 | AX27: 4.95 | AY27: 5 | AZ27: 5.05 | BA27: 5.1
B28: 16 | C28: 2.7 | D28: 2.75 | E28: 2.8 | F28: 2.85 | G28: 2.9 | H28: 2.95 | I28: 3 | J28: 3.05 | K28: 3.1 | L28: 3.15 | M28: 3.2 | N28: 3.25 | O28: 3.3 | P28: 3.35 | Q28: 3.4 | R28: 3.45 | S28: 3.5 | T28: 3.55 | U28: 3.6 | V28: 3.65 | W28: 3.7 | X28: 3.75 | Y28: 3.8 | Z28: 3.85 | AA28: 3.9 | AB28: 3.95 | AC28: 4 | AD28: 4.05 | AE28: 4.1 | AF28: 4.15 | AG28: 4.2 | AH28: 4.25 | AI28: 4.3 | AJ28: 4.35 | AK28: 4.4 | AL28: 4.45 | AM28: 4.5 | AN28: 4.55 | AO28: 4.6 | AP28: 4.65 | AQ28: 4.7 | AR28: 4.75 | AS28: 4.8 | AT28: 4.85 | AU28: 4.9 | AV28: 4.95 | AW28: 5 | AX28: 5.05 | AY28: 5.1 | AZ28: 5.15 | BA28: 5.2
B29: 17 | C29: 2.8 | D29: 2.85 | E29: 2.9 | F29: 2.95 | G29: 3 | H29: 3.05 | I29: 3.1 | J29: 3.15 | K29: 3.2 | L29: 3.25 | M29: 3.3 | N29: 3.35 | O29: 3.4 | P29: 3.45 | Q29: 3.5 | R29: 3.55 | S29: 3.6 | T29: 3.65 | U29: 3.7 | V29: 3.75 | W29: 3.8 | X29: 3.85 | Y29: 3.9 | Z29: 3.95 | AA29: 4 | AB29: 4.05 | AC29: 4.1 | AD29: 4.15 | AE29: 4.2 | AF29: 4.25 | AG29: 4.3 | AH29: 4.35 | AI29: 4.4 | AJ29: 4.45 | AK29: 4.5 | AL29: 4.55 | AM29: 4.6 | AN29: 4.65 | AO29: 4.7 | AP29: 4.75 | AQ29: 4.8 | AR29: 4.85 | AS29: 4.9 | AT29: 4.95 | AU29: 5 | AV29: 5.05 | AW29: 5.1 | AX29: 5.15 | AY29: 5.2 | AZ29: 5.25 | BA29: 5.3
B30: 18 | C30: 2.9 | D30: 2.95 | E30: 3 | F30: 3.05 | G30: 3.1 | H30: 3.15 | I30: 3.2 | J30: 3.25 | K30: 3.3 | L30: 3.35 | M30: 3.4 | N30: 3.45 | O30: 3.5 | P30: 3.55 | Q30: 3.6 | R30: 3.65 | S30: 3.7 | T30: 3.75 | U30: 3.8 | V30: 3.85 | W30: 3.9 | X30: 3.95 | Y30: 4 | Z30: 4.05 | AA30: 4.1 | AB30: 4.15 | AC30: 4.2 | AD30: 4.25 | AE30: 4.3 | AF30: 4.35 | AG30: 4.4 | AH30: 4.45 | AI30: 4.5 | AJ30: 4.55 | AK30: 4.6 | AL30: 4.65 | AM30: 4.7 | AN30: 4.75 | AO30: 4.8 | AP30: 4.85 | AQ30: 4.9 | AR30: 4.95 | AS30: 5 | AT30: 5.05 | AU30: 5.1 | AV30: 5.15 | AW30: 5.2 | AX30: 5.25 | AY30: 5.3 | AZ30: 5.35 | BA30: 5.4
B31: 19 | C31: 3 | D31: 3.05 | E31: 3.1 | F31: 3.15 | G31: 3.2 | H31: 3.25 | I31: 3.3 | J31: 3.35 | K31: 3.4 | L31: 3.45 | M31: 3.5 | N31: 3.55 | O31: 3.6 | P31: 3.65 | Q31: 3.7 | R31: 3.75 | S31: 3.8 | T31: 3.85 | U31: 3.9 | V31: 3.95 | W31: 4 | X31: 4.05 | Y31: 4.1 | Z31: 4.15 | AA31: 4.2 | AB31: 4.25 | AC31: 4.3 | AD31: 4.35 | AE31: 4.4 | AF31: 4.45 | AG31: 4.5 | AH31: 4.55 | AI31: 4.6 | AJ31: 4.65 | AK31: 4.7 | AL31: 4.75 | AM31: 4.8 | AN31: 4.85 | AO31: 4.9 | AP31: 4.95 | AQ31: 5 | AR31: 5.05 | AS31: 5.1 | AT31: 5.15 | AU31: 5.2 | AV31: 5.25 | AW31: 5.3 | AX31: 5.35 | AY31: 5.4 | AZ31: 5.45 | BA31: 5.5
B32: 20 | C32: 3.1 | D32: 3.15 | E32: 3.2 | F32: 3.25 | G32: 3.3 | H32: 3.35 | I32: 3.4 | J32: 3.45 | K32: 3.5 | L32: 3.55 | M32: 3.6 | N32: 3.65 | O32: 3.7 | P32: 3.75 | Q32: 3.8 | R32: 3.85 | S32: 3.9 | T32: 3.95 | U32: 4 | V32: 4.05 | W32: 4.1 | X32: 4.15 | Y32: 4.2 | Z32: 4.25 | AA32: 4.3 | AB32: 4.35 | AC32: 4.4 | AD32: 4.45 | AE32: 4.5 | AF32: 4.55 | AG32: 4.6 | AH32: 4.65 | AI32: 4.7 | AJ32: 4.75 | AK32: 4.8 | AL32: 4.85 | AM32: 4.9 | AN32: 4.95 | AO32: 5 | AP32: 5.05 | AQ32: 5.1 | AR32: 5.15 | AS32: 5.2 | AT32: 5.25 | AU32: 5.3 | AV32: 5.35 | AW32: 5.4 | AX32: 5.45 | AY32: 5.5 | AZ32: 5.55 | BA32: 5.6
B33: 21 | C33: 3.2 | D33: 3.25 | E33: 3.3 | F33: 3.35 | G33: 3.4 | H33: 3.45 | I33: 3.5 | J33: =1+$B33*0.1+0.1+J$11*0.05 -> 3.55 | K33: 3.6 | L33: 3.65 | M33: 3.7 | N33: 3.75 | O33: 3.8 | P33: 3.85 | Q33: 3.9 | R33: 3.95 | S33: 4 | T33: 4.05 | U33: 4.1 | V33: 4.15 | W33: 4.2 | X33: 4.25 | Y33: 4.3 | Z33: 4.35 | AA33: 4.4 | AB33: 4.45 | AC33: 4.5 | AD33: 4.55 | AE33: 4.6 | AF33: 4.65 | AG33: 4.7 | AH33: 4.75 | AI33: 4.8 | AJ33: 4.85 | AK33: 4.9 | AL33: 4.95 | AM33: 5 | AN33: 5.05 | AO33: 5.1 | AP33: 5.15 | AQ33: 5.2 | AR33: 5.25 | AS33: 5.3 | AT33: 5.35 | AU33: 5.4 | AV33: 5.45 | AW33: 5.5 | AX33: 5.55 | AY33: 5.6 | AZ33: 5.65 | BA33: 5.7
B34: 22 | C34: 3.3 | D34: 3.35 | E34: 3.4 | F34: 3.45 | G34: 3.5 | H34: 3.55 | I34: 3.6 | J34: 3.65 | K34: 3.7 | L34: 3.75 | M34: 3.8 | N34: 3.85 | O34: 3.9 | P34: 3.95 | Q34: 4 | R34: 4.05 | S34: 4.1 | T34: 4.15 | U34: 4.2 | V34: 4.25 | W34: 4.3 | X34: 4.35 | Y34: 4.4 | Z34: 4.45 | AA34: 4.5 | AB34: 4.55 | AC34: 4.6 | AD34: 4.65 | AE34: 4.7 | AF34: 4.75 | AG34: 4.8 | AH34: 4.85 | AI34: 4.9 | AJ34: 4.95 | AK34: 5 | AL34: 5.05 | AM34: 5.1 | AN34: 5.15 | AO34: 5.2 | AP34: 5.25 | AQ34: 5.3 | AR34: 5.35 | AS34: 5.4 | AT34: 5.45 | AU34: 5.5 | AV34: 5.55 | AW34: 5.6 | AX34: 5.65 | AY34: 5.7 | AZ34: 5.75 | BA34: 5.8
B35: 23 | C35: 3.4 | D35: 3.45 | E35: 3.5 | F35: 3.55 | G35: 3.6 | H35: 3.65 | I35: 3.7 | J35: 3.75 | K35: 3.8 | L35: 3.85 | M35: 3.9 | N35: 3.95 | O35: 4 | P35: 4.05 | Q35: 4.1 | R35: 4.15 | S35: 4.2 | T35: 4.25 | U35: 4.3 | V35: 4.35 | W35: 4.4 | X35: 4.45 | Y35: 4.5 | Z35: 4.55 | AA35: 4.6 | AB35: 4.65 | AC35: 4.7 | AD35: 4.75 | AE35: 4.8 | AF35: 4.85 | AG35: 4.9 | AH35: 4.95 | AI35: 5 | AJ35: 5.05 | AK35: 5.1 | AL35: 5.15 | AM35: 5.2 | AN35: 5.25 | AO35: 5.3 | AP35: 5.35 | AQ35: 5.4 | AR35: 5.45 | AS35: 5.5 | AT35: 5.55 | AU35: 5.6 | AV35: 5.65 | AW35: 5.7 | AX35: 5.75 | AY35: 5.8 | AZ35: 5.85 | BA35: 5.9
B36: 24 | C36: 3.5 | D36: 3.55 | E36: 3.6 | F36: 3.65 | G36: 3.7 | H36: 3.75 | I36: 3.8 | J36: 3.85 | K36: 3.9 | L36: 3.95 | M36: 4 | N36: 4.05 | O36: 4.1 | P36: 4.15 | Q36: 4.2 | R36: 4.25 | S36: 4.3 | T36: 4.35 | U36: 4.4 | V36: 4.45 | W36: 4.5 | X36: 4.55 | Y36: 4.6 | Z36: 4.65 | AA36: 4.7 | AB36: 4.75 | AC36: 4.8 | AD36: 4.85 | AE36: 4.9 | AF36: 4.95 | AG36: 5 | AH36: 5.05 | AI36: 5.1 | AJ36: 5.15 | AK36: 5.2 | AL36: 5.25 | AM36: 5.3 | AN36: 5.35 | AO36: 5.4 | AP36: 5.45 | AQ36: 5.5 | AR36: 5.55 | AS36: 5.6 | AT36: 5.65 | AU36: 5.7 | AV36: 5.75 | AW36: 5.8 | AX36: 5.85 | AY36: 5.9 | AZ36: 5.95 | BA36: 6
B37: 25 | C37: 3.6 | D37: 3.65 | E37: 3.7 | F37: 3.75 | G37: 3.8 | H37: 3.85 | I37: 3.9 | J37: 3.95 | K37: 4 | L37: 4.05 | M37: 4.1 | N37: 4.15 | O37: 4.2 | P37: 4.25 | Q37: 4.3 | R37: 4.35 | S37: 4.4 | T37: 4.45 | U37: 4.5 | V37: 4.55 | W37: 4.6 | X37: 4.65 | Y37: 4.7 | Z37: 4.75 | AA37: 4.8 | AB37: 4.85 | AC37: 4.9 | AD37: 4.95 | AE37: 5 | AF37: 5.05 | AG37: 5.1 | AH37: 5.15 | AI37: 5.2 | AJ37: 5.25 | AK37: 5.3 | AL37: 5.35 | AM37: 5.4 | AN37: 5.45 | AO37: 5.5 | AP37: 5.55 | AQ37: 5.6 | AR37: 5.65 | AS37: 5.7 | AT37: 5.75 | AU37: 5.8 | AV37: 5.85 | AW37: 5.9 | AX37: 5.95 | AY37: 6 | AZ37: 6.05 | BA37: 6.1
B38: 26 | C38: 3.7 | D38: 3.75 | E38: 3.8 | F38: 3.85 | G38: 3.9 | H38: 3.95 | I38: 4 | J38: 4.05 | K38: 4.1 | L38: 4.15 | M38: 4.2 | N38: 4.25 | O38: 4.3 | P38: 4.35 | Q38: 4.4 | R38: 4.45 | S38: 4.5 | T38: =1+$B38*0.1+0.1+T$11*0.05 -> 4.55 | U38: 4.6 | V38: 4.65 | W38: 4.7 | X38: 4.75 | Y38: 4.8 | Z38: 4.85 | AA38: 4.9 | AB38: 4.95 | AC38: 5 | AD38: 5.05 | AE38: 5.1 | AF38: 5.15 | AG38: 5.2 | AH38: 5.25 | AI38: 5.3 | AJ38: 5.35 | AK38: 5.4 | AL38: 5.45 | AM38: 5.5 | AN38: 5.55 | AO38: 5.6 | AP38: 5.65 | AQ38: 5.7 | AR38: 5.75 | AS38: 5.8 | AT38: 5.85 | AU38: 5.9 | AV38: 5.95 | AW38: 6 | AX38: 6.05 | AY38: 6.1 | AZ38: 6.15 | BA38: 6.2
B39: 27 | C39: 3.8 | D39: 3.85 | E39: 3.9 | F39: 3.95 | G39: 4 | H39: 4.05 | I39: 4.1 | J39: 4.15 | K39: 4.2 | L39: 4.25 | M39: 4.3 | N39: 4.35 | O39: 4.4 | P39: 4.45 | Q39: 4.5 | R39: 4.55 | S39: 4.6 | T39: 4.65 | U39: 4.7 | V39: 4.75 | W39: 4.8 | X39: 4.85 | Y39: 4.9 | Z39: 4.95 | AA39: 5 | AB39: 5.05 | AC39: 5.1 | AD39: 5.15 | AE39: 5.2 | AF39: 5.25 | AG39: 5.3 | AH39: 5.35 | AI39: 5.4 | AJ39: 5.45 | AK39: 5.5 | AL39: 5.55 | AM39: 5.6 | AN39: 5.65 | AO39: 5.7 | AP39: 5.75 | AQ39: 5.8 | AR39: 5.85 | AS39: 5.9 | AT39: 5.95 | AU39: 6 | AV39: 6.05 | AW39: 6.1 | AX39: 6.15 | AY39: 6.2 | AZ39: 6.25 | BA39: 6.3
B40: 28 | C40: 3.9 | D40: 3.95 | E40: 4 | F40: 4.05 | G40: 4.1 | H40: 4.15 | I40: 4.2 | J40: 4.25 | K40: 4.3 | L40: 4.35 | M40: 4.4 | N40: 4.45 | O40: 4.5 | P40: 4.55 | Q40: 4.6 | R40: 4.65 | S40: 4.7 | T40: 4.75 | U40: 4.8 | V40: 4.85 | W40: 4.9 | X40: 4.95 | Y40: 5 | Z40: 5.05 | AA40: 5.1 | AB40: 5.15 | AC40: 5.2 | AD40: 5.25 | AE40: 5.3 | AF40: 5.35 | AG40: 5.4 | AH40: 5.45 | AI40: 5.5 | AJ40: 5.55 | AK40: 5.6 | AL40: 5.65 | AM40: 5.7 | AN40: 5.75 | AO40: 5.8 | AP40: 5.85 | AQ40: 5.9 | AR40: 5.95 | AS40: 6 | AT40: 6.05 | AU40: 6.1 | AV40: 6.15 | AW40: 6.2 | AX40: 6.25 | AY40: 6.3 | AZ40: 6.35 | BA40: 6.4
B41: 29 | C41: 4 | D41: 4.05 | E41: 4.1 | F41: 4.15 | G41: 4.2 | H41: 4.25 | I41: 4.3 | J41: 4.35 | K41: 4.4 | L41: 4.45 | M41: 4.5 | N41: 4.55 | O41: 4.6 | P41: 4.65 | Q41: 4.7 | R41: 4.75 | S41: 4.8 | T41: 4.85 | U41: 4.9 | V41: 4.95 | W41: 5 | X41: 5.05 | Y41: 5.1 | Z41: 5.15 | AA41: 5.2 | AB41: 5.25 | AC41: 5.3 | AD41: 5.35 | AE41: 5.4 | AF41: 5.45 | AG41: 5.5 | AH41: 5.55 | AI41: 5.6 | AJ41: 5.65 | AK41: 5.7 | AL41: 5.75 | AM41: 5.8 | AN41: 5.85 | AO41: 5.9 | AP41: 5.95 | AQ41: 6 | AR41: 6.05 | AS41: 6.1 | AT41: 6.15 | AU41: 6.2 | AV41: 6.25 | AW41: 6.3 | AX41: 6.35 | AY41: 6.4 | AZ41: 6.45 | BA41: 6.5
B42: 30 | C42: 4.1 | D42: 4.15 | E42: 4.2 | F42: 4.25 | G42: 4.3 | H42: 4.35 | I42: 4.4 | J42: 4.45 | K42: 4.5 | L42: 4.55 | M42: 4.6 | N42: 4.65 | O42: 4.7 | P42: 4.75 | Q42: 4.8 | R42: 4.85 | S42: 4.9 | T42: 4.95 | U42: 5 | V42: 5.05 | W42: 5.1 | X42: 5.15 | Y42: 5.2 | Z42: 5.25 | AA42: 5.3 | AB42: 5.35 | AC42: 5.4 | AD42: 5.45 | AE42: 5.5 | AF42: 5.55 | AG42: 5.6 | AH42: 5.65 | AI42: 5.7 | AJ42: 5.75 | AK42: 5.8 | AL42: 5.85 | AM42: 5.9 | AN42: 5.95 | AO42: 6 | AP42: 6.05 | AQ42: 6.1 | AR42: 6.15 | AS42: 6.2 | AT42: 6.25 | AU42: 6.3 | AV42: 6.35 | AW42: 6.4 | AX42: 6.45 | AY42: 6.5 | AZ42: 6.55 | BA42: 6.6
B43: 31 | C43: 4.2 | D43: 4.25 | E43: 4.3 | F43: 4.35 | G43: 4.4 | H43: 4.45 | I43: 4.5 | J43: 4.55 | K43: 4.6 | L43: 4.65 | M43: 4.7 | N43: 4.75 | O43: 4.8 | P43: 4.85 | Q43: 4.9 | R43: 4.95 | S43: 5 | T43: 5.05 | U43: 5.1 | V43: 5.15 | W43: 5.2 | X43: 5.25 | Y43: 5.3 | Z43: 5.35 | AA43: 5.4 | AB43: 5.45 | AC43: 5.5 | AD43: =1+$B43*0.1+0.1+AD$11*0.05 -> 5.55 | AE43: 5.6 | AF43: 5.65 | AG43: 5.7 | AH43: 5.75 | AI43: 5.8 | AJ43: 5.85 | AK43: 5.9 | AL43: 5.95 | AM43: 6 | AN43: 6.05 | AO43: 6.1 | AP43: 6.15 | AQ43: 6.2 | AR43: 6.25 | AS43: 6.3 | AT43: 6.35 | AU43: 6.4 | AV43: 6.45 | AW43: 6.5 | AX43: 6.55 | AY43: 6.6 | AZ43: 6.65 | BA43: 6.7
B44: 32 | C44: =1+$B44*0.1+0.1+C$11*0.05 -> 4.3 | D44: 4.35 | E44: 4.4 | F44: 4.45 | G44: 4.5 | H44: 4.55 | I44: 4.6 | J44: 4.65 | K44: 4.7 | L44: 4.75 | M44: 4.8 | N44: 4.85 | O44: 4.9 | P44: 4.95 | Q44: 5 | R44: 5.05 | S44: 5.1 | T44: 5.15 | U44: 5.2 | V44: 5.25 | W44: 5.3 | X44: 5.35 | Y44: 5.4 | Z44: 5.45 | AA44: 5.5 | AB44: 5.55 | AC44: 5.6 | AD44: 5.65 | AE44: 5.7 | AF44: 5.75 | AG44: 5.8 | AH44: 5.85 | AI44: 5.9 | AJ44: 5.95 | AK44: 6 | AL44: 6.05 | AM44: 6.1 | AN44: 6.15 | AO44: 6.2 | AP44: 6.25 | AQ44: 6.3 | AR44: 6.35 | AS44: 6.4 | AT44: 6.45 | AU44: 6.5 | AV44: 6.55 | AW44: 6.6 | AX44: 6.65 | AY44: 6.7 | AZ44: 6.75 | BA44: 6.8
B45: 33 | C45: 4.4 | D45: 4.45 | E45: 4.5 | F45: 4.55 | G45: 4.6 | H45: 4.65 | I45: 4.7 | J45: 4.75 | K45: 4.8 | L45: 4.85 | M45: 4.9 | N45: 4.95 | O45: 5 | P45: 5.05 | Q45: 5.1 | R45: 5.15 | S45: 5.2 | T45: 5.25 | U45: 5.3 | V45: 5.35 | W45: 5.4 | X45: 5.45 | Y45: 5.5 | Z45: 5.55 | AA45: 5.6 | AB45: 5.65 | AC45: 5.7 | AD45: 5.75 | AE45: 5.8 | AF45: 5.85 | AG45: 5.9 | AH45: 5.95 | AI45: 6 | AJ45: 6.05 | AK45: 6.1 | AL45: 6.15 | AM45: 6.2 | AN45: 6.25 | AO45: 6.3 | AP45: 6.35 | AQ45: 6.4 | AR45: 6.45 | AS45: 6.5 | AT45: 6.55 | AU45: 6.6 | AV45: 6.65 | AW45: 6.7 | AX45: 6.75 | AY45: 6.8 | AZ45: 6.85 | BA45: 6.9
B46: 34 | C46: 4.5 | D46: 4.55 | E46: 4.6 | F46: 4.65 | G46: 4.7 | H46: 4.75 | I46: 4.8 | J46: 4.85 | K46: 4.9 | L46: 4.95 | M46: 5 | N46: 5.05 | O46: 5.1 | P46: 5.15 | Q46: 5.2 | R46: 5.25 | S46: 5.3 | T46: 5.35 | U46: 5.4 | V46: 5.45 | W46: 5.5 | X46: 5.55 | Y46: 5.6 | Z46: 5.65 | AA46: 5.7 | AB46: 5.75 | AC46: 5.8 | AD46: 5.85 | AE46: 5.9 | AF46: 5.95 | AG46: 6 | AH46: 6.05 | AI46: 6.1 | AJ46: 6.15 | AK46: 6.2 | AL46: 6.25 | AM46: 6.3 | AN46: 6.35 | AO46: 6.4 | AP46: 6.45 | AQ46: 6.5 | AR46: 6.55 | AS46: 6.6 | AT46: 6.65 | AU46: 6.7 | AV46: 6.75 | AW46: 6.8 | AX46: 6.85 | AY46: 6.9 | AZ46: 6.95 | BA46: 7
B47: 35 | C47: 4.6 | D47: 4.65 | E47: 4.7 | F47: 4.75 | G47: 4.8 | H47: 4.85 | I47: 4.9 | J47: 4.95 | K47: 5 | L47: 5.05 | M47: 5.1 | N47: 5.15 | O47: 5.2 | P47: 5.25 | Q47: 5.3 | R47: 5.35 | S47: 5.4 | T47: 5.45 | U47: 5.5 | V47: 5.55 | W47: 5.6 | X47: 5.65 | Y47: 5.7 | Z47: 5.75 | AA47: 5.8 | AB47: 5.85 | AC47: 5.9 | AD47: 5.95 | AE47: 6 | AF47: 6.05 | AG47: 6.1 | AH47: 6.15 | AI47: 6.2 | AJ47: 6.25 | AK47: 6.3 | AL47: 6.35 | AM47: 6.4 | AN47: 6.45 | AO47: 6.5 | AP47: 6.55 | AQ47: 6.6 | AR47: 6.65 | AS47: 6.7 | AT47: 6.75 | AU47: 6.8 | AV47: 6.85 | AW47: 6.9 | AX47: 6.95 | AY47: 7 | AZ47: 7.05 | BA47: 7.1
B48: 36 | C48: 4.7 | D48: 4.75 | E48: 4.8 | F48: 4.85 | G48: 4.9 | H48: 4.95 | I48: 5 | J48: 5.05 | K48: 5.1 | L48: 5.15 | M48: 5.2 | N48: 5.25 | O48: 5.3 | P48: 5.35 | Q48: 5.4 | R48: 5.45 | S48: 5.5 | T48: 5.55 | U48: 5.6 | V48: 5.65 | W48: 5.7 | X48: 5.75 | Y48: 5.8 | Z48: 5.85 | AA48: 5.9 | AB48: 5.95 | AC48: 6 | AD48: 6.05 | AE48: 6.1 | AF48: 6.15 | AG48: 6.2 | AH48: 6.25 | AI48: 6.3 | AJ48: 6.35 | AK48: 6.4 | AL48: 6.45 | AM48: 6.5 | AN48: =1+$B48*0.1+0.1+AN$11*0.05 -> 6.55 | AO48: 6.6 | AP48: 6.65 | AQ48: 6.7 | AR48: 6.75 | AS48: 6.8 | AT48: 6.85 | AU48: 6.9 | AV48: 6.95 | AW48: 7 | AX48: 7.05 | AY48: 7.1 | AZ48: 7.15 | BA48: 7.2
B49: 37 | C49: 4.8 | D49: 4.85 | E49: 4.9 | F49: 4.95 | G49: 5 | H49: 5.05 | I49: 5.1 | J49: 5.15 | K49: 5.2 | L49: 5.25 | M49: 5.3 | N49: 5.35 | O49: 5.4 | P49: 5.45 | Q49: 5.5 | R49: 5.55 | S49: 5.6 | T49: 5.65 | U49: 5.7 | V49: 5.75 | W49: 5.8 | X49: 5.85 | Y49: 5.9 | Z49: 5.95 | AA49: 6 | AB49: 6.05 | AC49: 6.1 | AD49: 6.15 | AE49: 6.2 | AF49: 6.25 | AG49: 6.3 | AH49: 6.35 | AI49: 6.4 | AJ49: 6.45 | AK49: 6.5 | AL49: 6.55 | AM49: 6.6 | AN49: 6.65 | AO49: 6.7 | AP49: 6.75 | AQ49: 6.8 | AR49: 6.85 | AS49: 6.9 | AT49: 6.95 | AU49: 7 | AV49: 7.05 | AW49: 7.1 | AX49: 7.15 | AY49: 7.2 | AZ49: 7.25 | BA49: 7.3
B50: 38 | C50: 4.9 | D50: 4.95 | E50: 5 | F50: 5.05 | G50: 5.1 | H50: 5.15 | I50: 5.2 | J50: 5.25 | K50: 5.3 | L50: 5.35 | M50: 5.4 | N50: 5.45 | O50: 5.5 | P50: 5.55 | Q50: 5.6 | R50: 5.65 | S50: 5.7 | T50: 5.75 | U50: 5.8 | V50: 5.85 | W50: 5.9 | X50: 5.95 | Y50: 6 | Z50: 6.05 | AA50: 6.1 | AB50: 6.15 | AC50: 6.2 | AD50: 6.25 | AE50: 6.3 | AF50: 6.35 | AG50: 6.4 | AH50: 6.45 | AI50: 6.5 | AJ50: 6.55 | AK50: 6.6 | AL50: 6.65 | AM50: 6.7 | AN50: 6.75 | AO50: 6.8 | AP50: 6.85 | AQ50: 6.9 | AR50: 6.95 | AS50: 7 | AT50: 7.05 | AU50: 7.1 | AV50: 7.15 | AW50: 7.2 | AX50: 7.25 | AY50: 7.3 | AZ50: 7.35 | BA50: 7.4
B51: 39 | C51: 5 | D51: 5.05 | E51: 5.1 | F51: 5.15 | G51: 5.2 | H51: 5.25 | I51: 5.3 | J51: 5.35 | K51: 5.4 | L51: 5.45 | M51: 5.5 | N51: 5.55 | O51: 5.6 | P51: 5.65 | Q51: 5.7 | R51: 5.75 | S51: 5.8 | T51: 5.85 | U51: 5.9 | V51: 5.95 | W51: 6 | X51: 6.05 | Y51: 6.1 | Z51: 6.15 | AA51: 6.2 | AB51: 6.25 | AC51: 6.3 | AD51: 6.35 | AE51: 6.4 | AF51: 6.45 | AG51: 6.5 | AH51: 6.55 | AI51: 6.6 | AJ51: 6.65 | AK51: 6.7 | AL51: 6.75 | AM51: 6.8 | AN51: 6.85 | AO51: 6.9 | AP51: 6.95 | AQ51: 7 | AR51: 7.05 | AS51: 7.1 | AT51: 7.15 | AU51: 7.2 | AV51: 7.25 | AW51: 7.3 | AX51: 7.35 | AY51: 7.4 | AZ51: 7.45 | BA51: 7.5
B52: 40 | C52: 5.1 | D52: 5.15 | E52: 5.2 | F52: 5.25 | G52: 5.3 | H52: 5.35 | I52: 5.4 | J52: 5.45 | K52: 5.5 | L52: 5.55 | M52: 5.6 | N52: 5.65 | O52: 5.7 | P52: 5.75 | Q52: 5.8 | R52: 5.85 | S52: 5.9 | T52: 5.95 | U52: 6 | V52: 6.05 | W52: 6.1 | X52: 6.15 | Y52: 6.2 | Z52: 6.25 | AA52: 6.3 | AB52: 6.35 | AC52: 6.4 | AD52: 6.45 | AE52: 6.5 | AF52: 6.55 | AG52: 6.6 | AH52: 6.65 | AI52: 6.7 | AJ52: 6.75 | AK52: 6.8 | AL52: 6.85 | AM52: 6.9 | AN52: 6.95 | AO52: 7 | AP52: 7.05 | AQ52: 7.1 | AR52: 7.15 | AS52: 7.2 | AT52: 7.25 | AU52: 7.3 | AV52: 7.35 | AW52: 7.4 | AX52: 7.45 | AY52: 7.5 | AZ52: 7.55 | BA52: 7.6
B53: 41 | C53: 5.2 | D53: 5.25 | E53: 5.3 | F53: 5.35 | G53: 5.4 | H53: 5.45 | I53: 5.5 | J53: 5.55 | K53: 5.6 | L53: 5.65 | M53: 5.7 | N53: 5.75 | O53: 5.8 | P53: 5.85 | Q53: 5.9 | R53: 5.95 | S53: 6 | T53: 6.05 | U53: 6.1 | V53: 6.15 | W53: 6.2 | X53: 6.25 | Y53: 6.3 | Z53: 6.35 | AA53: 6.4 | AB53: 6.45 | AC53: 6.5 | AD53: 6.55 | AE53: 6.6 | AF53: 6.65 | AG53: 6.7 | AH53: 6.75 | AI53: 6.8 | AJ53: 6.85 | AK53: 6.9 | AL53: 6.95 | AM53: 7 | AN53: 7.05 | AO53: 7.1 | AP53: 7.15 | AQ53: 7.2 | AR53: 7.25 | AS53: 7.3 | AT53: 7.35 | AU53: 7.4 | AV53: 7.45 | AW53: 7.5 | AX53: =1+$B53*0.1+0.1+AX$11*0.05 -> 7.55 | AY53: 7.6 | AZ53: 7.65 | BA53: 7.7
B54: 42 | C54: 5.3 | D54: 5.35 | E54: 5.4 | F54: 5.45 | G54: 5.5 | H54: 5.55 | I54: 5.6 | J54: 5.65 | K54: 5.7 | L54: 5.75 | M54: 5.8 | N54: 5.85 | O54: 5.9 | P54: 5.95 | Q54: 6 | R54: 6.05 | S54: 6.1 | T54: 6.15 | U54: 6.2 | V54: 6.25 | W54: 6.3 | X54: 6.35 | Y54: 6.4 | Z54: 6.45 | AA54: 6.5 | AB54: 6.55 | AC54: 6.6 | AD54: 6.65 | AE54: 6.7 | AF54: 6.75 | AG54: 6.8 | AH54: 6.85 | AI54: 6.9 | AJ54: 6.95 | AK54: 7 | AL54: 7.05 | AM54: 7.1 | AN54: 7.15 | AO54: 7.2 | AP54: 7.25 | AQ54: 7.3 | AR54: 7.35 | AS54: 7.4 | AT54: 7.45 | AU54: 7.5 | AV54: 7.55 | AW54: 7.6 | AX54: 7.65 | AY54: 7.7 | AZ54: 7.75 | BA54: 7.8
B55: 43 | C55: 5.4 | D55: 5.45 | E55: 5.5 | F55: 5.55 | G55: 5.6 | H55: 5.65 | I55: 5.7 | J55: 5.75 | K55: 5.8 | L55: 5.85 | M55: 5.9 | N55: 5.95 | O55: 6 | P55: 6.05 | Q55: 6.1 | R55: 6.15 | S55: 6.2 | T55: 6.25 | U55: 6.3 | V55: 6.35 | W55: 6.4 | X55: 6.45 | Y55: 6.5 | Z55: 6.55 | AA55: 6.6 | AB55: 6.65 | AC55: 6.7 | AD55: 6.75 | AE55: 6.8 | AF55: 6.85 | AG55: 6.9 | AH55: 6.95 | AI55: 7 | AJ55: 7.05 | AK55: 7.1 | AL55: 7.15 | AM55: 7.2 | AN55: 7.25 | AO55: 7.3 | AP55: 7.35 | AQ55: 7.4 | AR55: 7.45 | AS55: 7.5 | AT55: 7.55 | AU55: 7.6 | AV55: 7.65 | AW55: 7.7 | AX55: 7.75 | AY55: 7.8 | AZ55: 7.85 | BA55: 7.9
B56: 44 | C56: 5.5 | D56: 5.55 | E56: 5.6 | F56: 5.65 | G56: 5.7 | H56: 5.75 | I56: 5.8 | J56: 5.85 | K56: 5.9 | L56: 5.95 | M56: 6 | N56: 6.05 | O56: 6.1 | P56: 6.15 | Q56: 6.2 | R56: 6.25 | S56: 6.3 | T56: 6.35 | U56: 6.4 | V56: 6.45 | W56: 6.5 | X56: 6.55 | Y56: 6.6 | Z56: 6.65 | AA56: 6.7 | AB56: 6.75 | AC56: 6.8 | AD56: 6.85 | AE56: 6.9 | AF56: 6.95 | AG56: 7 | AH56: 7.05 | AI56: 7.1 | AJ56: 7.15 | AK56: 7.2 | AL56: 7.25 | AM56: 7.3 | AN56: 7.35 | AO56: 7.4 | AP56: 7.45 | AQ56: 7.5 | AR56: 7.55 | AS56: 7.6 | AT56: 7.65 | AU56: 7.7 | AV56: 7.75 | AW56: 7.8 | AX56: 7.85 | AY56: 7.9 | AZ56: 7.95 | BA56: 8
B57: 45 | C57: 5.6 | D57: 5.65 | E57: 5.7 | F57: 5.75 | G57: 5.8 | H57: 5.85 | I57: 5.9 | J57: 5.95 | K57: 6 | L57: 6.05 | M57: 6.1 | N57: 6.15 | O57: 6.2 | P57: 6.25 | Q57: 6.3 | R57: 6.35 | S57: 6.4 | T57: 6.45 | U57: 6.5 | V57: 6.55 | W57: 6.6 | X57: 6.65 | Y57: 6.7 | Z57: 6.75 | AA57: 6.8 | AB57: 6.85 | AC57: 6.9 | AD57: 6.95 | AE57: 7 | AF57: 7.05 | AG57: 7.1 | AH57: 7.15 | AI57: 7.2 | AJ57: 7.25 | AK57: 7.3 | AL57: 7.35 | AM57: 7.4 | AN57: 7.45 | AO57: 7.5 | AP57: 7.55 | AQ57: 7.6 | AR57: 7.65 | AS57: 7.7 | AT57: 7.75 | AU57: 7.8 | AV57: 7.85 | AW57: 7.9 | AX57: 7.95 | AY57: 8 | AZ57: 8.05 | BA57: 8.1
B58: 46 | C58: 5.7 | D58: 5.75 | E58: 5.8 | F58: 5.85 | G58: 5.9 | H58: 5.95 | I58: 6 | J58: 6.05 | K58: 6.1 | L58: 6.15 | M58: 6.2 | N58: 6.25 | O58: 6.3 | P58: 6.35 | Q58: 6.4 | R58: 6.45 | S58: 6.5 | T58: 6.55 | U58: 6.6 | V58: 6.65 | W58: 6.7 | X58: 6.75 | Y58: 6.8 | Z58: 6.85 | AA58: 6.9 | AB58: 6.95 | AC58: 7 | AD58: 7.05 | AE58: 7.1 | AF58: 7.15 | AG58: 7.2 | AH58: 7.25 | AI58: 7.3 | AJ58: 7.35 | AK58: 7.4 | AL58: 7.45 | AM58: 7.5 | AN58: 7.55 | AO58: 7.6 | AP58: 7.65 | AQ58: 7.7 | AR58: 7.75 | AS58: 7.8 | AT58: 7.85 | AU58: 7.9 | AV58: 7.95 | AW58: 8 | AX58: 8.05 | AY58: 8.1 | AZ58: 8.15 | BA58: 8.2
B59: 47 | C59: 5.8 | D59: 5.85 | E59: 5.9 | F59: 5.95 | G59: 6 | H59: 6.05 | I59: 6.1 | J59: 6.15 | K59: =1+$B59*0.1+0.1+K$11*0.05 -> 6.2 | L59: 6.25 | M59: 6.3 | N59: 6.35 | O59: 6.4 | P59: 6.45 | Q59: 6.5 | R59: 6.55 | S59: 6.6 | T59: 6.65 | U59: 6.7 | V59: 6.75 | W59: 6.8 | X59: 6.85 | Y59: 6.9 | Z59: 6.95 | AA59: 7 | AB59: 7.05 | AC59: 7.1 | AD59: 7.15 | AE59: 7.2 | AF59: 7.25 | AG59: 7.3 | AH59: 7.35 | AI59: 7.4 | AJ59: 7.45 | AK59: 7.5 | AL59: 7.55 | AM59: 7.6 | AN59: 7.65 | AO59: 7.7 | AP59: 7.75 | AQ59: 7.8 | AR59: 7.85 | AS59: 7.9 | AT59: 7.95 | AU59: 8 | AV59: 8.05 | AW59: 8.1 | AX59: 8.15 | AY59: 8.2 | AZ59: 8.25 | BA59: 8.3
B60: 48 | C60: 5.9 | D60: 5.95 | E60: 6 | F60: 6.05 | G60: 6.1 | H60: 6.15 | I60: 6.2 | J60: 6.25 | K60: 6.3 | L60: 6.35 | M60: 6.4 | N60: 6.45 | O60: 6.5 | P60: 6.55 | Q60: 6.6 | R60: 6.65 | S60: 6.7 | T60: 6.75 | U60: 6.8 | V60: 6.85 | W60: 6.9 | X60: 6.95 | Y60: 7 | Z60: 7.05 | AA60: 7.1 | AB60: 7.15 | AC60: 7.2 | AD60: 7.25 | AE60: 7.3 | AF60: 7.35 | AG60: 7.4 | AH60: 7.45 | AI60: 7.5 | AJ60: 7.55 | AK60: 7.6 | AL60: 7.65 | AM60: 7.7 | AN60: 7.75 | AO60: 7.8 | AP60: 7.85 | AQ60: 7.9 | AR60: 7.95 | AS60: 8 | AT60: 8.05 | AU60: 8.1 | AV60: 8.15 | AW60: 8.2 | AX60: 8.25 | AY60: 8.3 | AZ60: 8.35 | BA60: 8.4
B61: 49 | C61: 6 | D61: 6.05 | E61: 6.1 | F61: 6.15 | G61: 6.2 | H61: 6.25 | I61: 6.3 | J61: 6.35 | K61: 6.4 | L61: 6.45 | M61: 6.5 | N61: 6.55 | O61: 6.6 | P61: 6.65 | Q61: 6.7 | R61: 6.75 | S61: 6.8 | T61: 6.85 | U61: 6.9 | V61: 6.95 | W61: 7 | X61: 7.05 | Y61: 7.1 | Z61: 7.15 | AA61: 7.2 | AB61: 7.25 | AC61: 7.3 | AD61: 7.35 | AE61: 7.4 | AF61: 7.45 | AG61: 7.5 | AH61: 7.55 | AI61: 7.6 | AJ61: 7.65 | AK61: 7.7 | AL61: 7.75 | AM61: 7.8 | AN61: 7.85 | AO61: 7.9 | AP61: 7.95 | AQ61: 8 | AR61: 8.05 | AS61: 8.1 | AT61: 8.15 | AU61: 8.2 | AV61: 8.25 | AW61: 8.3 | AX61: 8.35 | AY61: 8.4 | AZ61: 8.45 | BA61: 8.5
B62: 50 | C62: 6.1 | D62: 6.15 | E62: 6.2 | F62: 6.25 | G62: 6.3 | H62: 6.35 | I62: 6.4 | J62: 6.45 | K62: 6.5 | L62: 6.55 | M62: 6.6 | N62: 6.65 | O62: 6.7 | P62: 6.75 | Q62: 6.8 | R62: 6.85 | S62: 6.9 | T62: 6.95 | U62: 7 | V62: 7.05 | W62: 7.1 | X62: 7.15 | Y62: 7.2 | Z62: 7.25 | AA62: 7.3 | AB62: 7.35 | AC62: 7.4 | AD62: 7.45 | AE62: 7.5 | AF62: 7.55 | AG62: 7.6 | AH62: 7.65 | AI62: 7.7 | AJ62: 7.75 | AK62: 7.8 | AL62: 7.85 | AM62: 7.9 | AN62: 7.95 | AO62: 8 | AP62: 8.05 | AQ62: 8.1 | AR62: 8.15 | AS62: 8.2 | AT62: 8.25 | AU62: 8.3 | AV62: 8.35 | AW62: 8.4 | AX62: 8.45 | AY62: 8.5 | AZ62: 8.55 | BA62: 8.6
C64: Loge
B65: Bouclier | C65: 0 | D65: 1 | E65: 2 | F65: 3 | G65: 4 | H65: 5 | I65: 6 | J65: 7 | K65: 8 | L65: 9 | M65: 10 | N65: 11 | O65: 12 | P65: 13 | Q65: 14 | R65: 15 | S65: 16 | T65: 17 | U65: 18 | V65: 19 | W65: 20 | X65: 21 | Y65: 22 | Z65: 23 | AA65: 24 | AB65: 25 | AC65: 26 | AD65: 27 | AE65: 28 | AF65: 29 | AG65: 30 | AH65: 31 | AI65: 32 | AJ65: 33 | AK65: 34 | AL65: 35 | AM65: 36 | AN65: 37 | AO65: 38 | AP65: 39 | AQ65: 40 | AR65: 41 | AS65: 42 | AT65: 43 | AU65: 44 | AV65: 45 | AW65: 46 | AX65: 47 | AY65: 48 | AZ65: 49 | BA65: 50
B66: 0 | C66: =1+$B66*0.1+0.3+C$11*0.15 -> 1.3 | D66: =1+$B66*0.1+0.3+D$11*0.15 -> 1.45 | E66: 1.6 | F66: 1.75 | G66: 1.9 | H66: 2.05 | I66: 2.2 | J66: 2.35 | K66: 2.5 | L66: 2.65 | M66: 2.8 | N66: 2.95 | O66: 3.1 | P66: 3.25 | Q66: 3.4 | R66: 3.55 | S66: 3.7 | T66: 3.85 | U66: 4 | V66: 4.15 | W66: 4.3 | X66: 4.45 | Y66: 4.6 | Z66: 4.75 | AA66: 4.9 | AB66: 5.05 | AC66: 5.2 | AD66: 5.35 | AE66: 5.5 | AF66: 5.65 | AG66: 5.8 | AH66: 5.95 | AI66: 6.1 | AJ66: 6.25 | AK66: 6.4 | AL66: 6.55 | AM66: 6.7 | AN66: 6.85 | AO66: 7 | AP66: 7.15 | AQ66: 7.3 | AR66: 7.45 | AS66: 7.6 | AT66: 7.75 | AU66: 7.9 | AV66: 8.05 | AW66: 8.2 | AX66: 8.35 | AY66: 8.5 | AZ66: 8.65 | BA66: 8.8
B67: 1 | C67: 1.4 | D67: =1+$B67*0.1+0.3+D$11*0.15 -> 1.55 | E67: 1.7 | F67: 1.85 | G67: 2 | H67: 2.15 | I67: 2.3 | J67: 2.45 | K67: 2.6 | L67: 2.75 | M67: 2.9 | N67: 3.05 | O67: 3.2 | P67: 3.35 | Q67: 3.5 | R67: 3.65 | S67: 3.8 | T67: 3.95 | U67: 4.1 | V67: 4.25 | W67: 4.4 | X67: 4.55 | Y67: 4.7 | Z67: 4.85 | AA67: 5 | AB67: 5.15 | AC67: 5.3 | AD67: 5.45 | AE67: 5.6 | AF67: 5.75 | AG67: 5.9 | AH67: 6.05 | AI67: 6.2 | AJ67: 6.35 | AK67: 6.5 | AL67: 6.65 | AM67: 6.8 | AN67: 6.95 | AO67: 7.1 | AP67: 7.25 | AQ67: 7.4 | AR67: 7.55 | AS67: 7.7 | AT67: 7.85 | AU67: 8 | AV67: 8.15 | AW67: 8.3 | AX67: 8.45 | AY67: 8.6 | AZ67: 8.75 | BA67: 8.9
B68: 2 | C68: 1.5 | D68: 1.65 | E68: 1.8 | F68: 1.95 | G68: 2.1 | H68: 2.25 | I68: 2.4 | J68: 2.55 | K68: 2.7 | L68: 2.85 | M68: 3 | N68: 3.15 | O68: 3.3 | P68: 3.45 | Q68: 3.6 | R68: 3.75 | S68: 3.9 | T68: 4.05 | U68: 4.2 | V68: 4.35 | W68: 4.5 | X68: 4.65 | Y68: 4.8 | Z68: 4.95 | AA68: 5.1 | AB68: 5.25 | AC68: 5.4 | AD68: 5.55 | AE68: 5.7 | AF68: 5.85 | AG68: 6 | AH68: 6.15 | AI68: 6.3 | AJ68: 6.45 | AK68: 6.6 | AL68: 6.75 | AM68: 6.9 | AN68: 7.05 | AO68: 7.2 | AP68: 7.35 | AQ68: 7.5 | AR68: 7.65 | AS68: 7.8 | AT68: 7.95 | AU68: 8.1 | AV68: 8.25 | AW68: 8.4 | AX68: 8.55 | AY68: 8.7 | AZ68: 8.85 | BA68: 9
B69: 3 | C69: 1.6 | D69: 1.75 | E69: 1.9 | F69: 2.05 | G69: 2.2 | H69: 2.35 | I69: 2.5 | J69: 2.65 | K69: 2.8 | L69: 2.95 | M69: 3.1 | N69: 3.25 | O69: 3.4 | P69: 3.55 | Q69: 3.7 | R69: 3.85 | S69: 4 | T69: 4.15 | U69: 4.3 | V69: 4.45 | W69: 4.6 | X69: 4.75 | Y69: 4.9 | Z69: 5.05 | AA69: 5.2 | AB69: 5.35 | AC69: 5.5 | AD69: 5.65 | AE69: 5.8 | AF69: 5.95 | AG69: 6.1 | AH69: 6.25 | AI69: 6.4 | AJ69: 6.55 | AK69: 6.7 | AL69: 6.85 | AM69: 7 | AN69: 7.15 | AO69: 7.3 | AP69: 7.45 | AQ69: 7.6 | AR69: 7.75 | AS69: 7.9 | AT69: 8.05 | AU69: 8.2 | AV69: 8.35 | AW69: 8.5 | AX69: 8.65 | AY69: 8.8 | AZ69: 8.95 | BA69: 9.1
B70: 4 | C70: 1.7 | D70: 1.85 | E70: 2 | F70: 2.15 | G70: 2.3 | H70: 2.45 | I70: 2.6 | J70: 2.75 | K70: 2.9 | L70: 3.05 | M70: 3.2 | N70: 3.35 | O70: 3.5 | P70: 3.65 | Q70: 3.8 | R70: 3.95 | S70: 4.1 | T70: 4.25 | U70: 4.4 | V70: 4.55 | W70: 4.7 | X70: 4.85 | Y70: 5 | Z70: 5.15 | AA70: 5.3 | AB70: 5.45 | AC70: 5.6 | AD70: 5.75 | AE70: 5.9 | AF70: 6.05 | AG70: 6.2 | AH70: 6.35 | AI70: 6.5 | AJ70: 6.65 | AK70: 6.8 | AL70: 6.95 | AM70: 7.1 | AN70: 7.25 | AO70: 7.4 | AP70: 7.55 | AQ70: 7.7 | AR70: 7.85 | AS70: 8 | AT70: 8.15 | AU70: 8.3 | AV70: 8.45 | AW70: 8.6 | AX70: 8.75 | AY70: 8.9 | AZ70: 9.05 | BA70: 9.2
B71: 5 | C71: 1.8 | D71: 1.95 | E71: 2.1 | F71: 2.25 | G71: 2.4 | H71: 2.55 | I71: 2.7 | J71: 2.85 | K71: 3 | L71: 3.15 | M71: 3.3 | N71: 3.45 | O71: 3.6 | P71: 3.75 | Q71: 3.9 | R71: 4.05 | S71: 4.2 | T71: 4.35 | U71: 4.5 | V71: 4.65 | W71: 4.8 | X71: =1+$B71*0.1+0.3+X$11*0.15 -> 4.95 | Y71: 5.1 | Z71: 5.25 | AA71: 5.4 | AB71: 5.55 | AC71: 5.7 | AD71: 5.85 | AE71: 6 | AF71: 6.15 | AG71: 6.3 | AH71: 6.45 | AI71: 6.6 | AJ71: 6.75 | AK71: 6.9 | AL71: 7.05 | AM71: 7.2 | AN71: 7.35 | AO71: 7.5 | AP71: 7.65 | AQ71: 7.8 | AR71: 7.95 | AS71: 8.1 | AT71: 8.25 | AU71: 8.4 | AV71: 8.55 | AW71: 8.7 | AX71: 8.85 | AY71: 9 | AZ71: 9.15 | BA71: 9.3
B72: 6 | C72: 1.9 | D72: 2.05 | E72: 2.2 | F72: 2.35 | G72: 2.5 | H72: 2.65 | I72: 2.8 | J72: 2.95 | K72: 3.1 | L72: 3.25 | M72: 3.4 | N72: 3.55 | O72: 3.7 | P72: 3.85 | Q72: 4 | R72: 4.15 | S72: 4.3 | T72: 4.45 | U72: 4.6 | V72: 4.75 | W72: 4.9 | X72: 5.05 | Y72: 5.2 | Z72: 5.35 | AA72: 5.5 | AB72: 5.65 | AC72: 5.8 | AD72: 5.95 | AE72: 6.1 | AF72: 6.25 | AG72: 6.4 | AH72: 6.55 | AI72: 6.7 | AJ72: 6.85 | AK72: 7 | AL72: 7.15 | AM72: 7.3 | AN72: 7.45 | AO72: 7.6 | AP72: 7.75 | AQ72: 7.9 | AR72: 8.05 | AS72: 8.2 | AT72: 8.35 | AU72: 8.5 | AV72: 8.65 | AW72: 8.8 | AX72: 8.95 | AY72: 9.1 | AZ72: 9.25 | BA72: 9.4
B73: 7 | C73: 2 | D73: 2.15 | E73: 2.3 | F73: 2.45 | G73: 2.6 | H73: 2.75 | I73: 2.9 | J73: 3.05 | K73: 3.2 | L73: 3.35 | M73: 3.5 | N73: 3.65 | O73: 3.8 | P73: 3.95 | Q73: 4.1 | R73: 4.25 | S73: 4.4 | T73: 4.55 | U73: 4.7 | V73: 4.85 | W73: 5 | X73: 5.15 | Y73: 5.3 | Z73: 5.45 | AA73: 5.6 | AB73: 5.75 | AC73: 5.9 | AD73: 6.05 | AE73: 6.2 | AF73: 6.35 | AG73: 6.5 | AH73: 6.65 | AI73: 6.8 | AJ73: 6.95 | AK73: 7.1 | AL73: 7.25 | AM73: 7.4 | AN73: 7.55 | AO73: 7.7 | AP73: 7.85 | AQ73: 8 | AR73: 8.15 | AS73: 8.3 | AT73: 8.45 | AU73: 8.6 | AV73: 8.75 | AW73: 8.9 | AX73: 9.05 | AY73: 9.2 | AZ73: 9.35 | BA73: 9.5
B74: 8 | C74: 2.1 | D74: 2.25 | E74: 2.4 | F74: 2.55 | G74: 2.7 | H74: 2.85 | I74: 3 | J74: 3.15 | K74: 3.3 | L74: 3.45 | M74: 3.6 | N74: 3.75 | O74: 3.9 | P74: 4.05 | Q74: 4.2 | R74: 4.35 | S74: 4.5 | T74: 4.65 | U74: 4.8 | V74: 4.95 | W74: 5.1 | X74: 5.25 | Y74: 5.4 | Z74: 5.55 | AA74: 5.7 | AB74: 5.85 | AC74: 6 | AD74: 6.15 | AE74: 6.3 | AF74: 6.45 | AG74: 6.6 | AH74: 6.75 | AI74: 6.9 | AJ74: 7.05 | AK74: 7.2 | AL74: 7.35 | AM74: 7.5 | AN74: 7.65 | AO74: 7.8 | AP74: 7.95 | AQ74: 8.1 | AR74: 8.25 | AS74: 8.4 | AT74: 8.55 | AU74: 8.7 | AV74: 8.85 | AW74: 9 | AX74: 9.15 | AY74: 9.3 | AZ74: 9.45 | BA74: 9.6
B75: 9 | C75: 2.2 | D75: 2.35 | E75: 2.5 | F75: 2.65 | G75: 2.8 | H75: 2.95 | I75: 3.1 | J75: 3.25 | K75: 3.4 | L75: 3.55 | M75: 3.7 | N75: 3.85 | O75: 4 | P75: 4.15 | Q75: 4.3 | R75: 4.45 | S75: 4.6 | T75: 4.75 | U75: 4.9 | V75: 5.05 | W75: 5.2 | X75: 5.35 | Y75: 5.5 | Z75: 5.65 | AA75: 5.8 | AB75: 5.95 | AC75: 6.1 | AD75: 6.25 | AE75: 6.4 | AF75: 6.55 | AG75: 6.7 | AH75: 6.85 | AI75: 7 | AJ75: 7.15 | AK75: 7.3 | AL75: 7.45 | AM75: 7.6 | AN75: 7.75 | AO75: 7.9 | AP75: 8.05 | AQ75: 8.2 | AR75: 8.35 | AS75: 8.5 | AT75: 8.65 | AU75: 8.8 | AV75: 8.95 | AW75: 9.1 | AX75: 9.25 | AY75: 9.4 | AZ75: 9.55 | BA75: 9.7
B76: 10 | C76: 2.3 | D76: 2.45 | E76: 2.6 | F76: 2.75 | G76: 2.9 | H76: 3.05 | I76: 3.2 | J76: 3.35 | K76: 3.5 | L76: 3.65 | M76: 3.8 | N76: 3.95 | O76: 4.1 | P76: 4.25 | Q76: 4.4 | R76: 4.55 | S76: 4.7 | T76: 4.85 | U76: 5 | V76: 5.15 | W76: 5.3 | X76: 5.45 | Y76: 5.6 | Z76: 5.75 | AA76: 5.9 | AB76: 6.05 | AC76: =1+$B76*0.1+0.3+AC$11*0.15 -> 6.2 | AD76: 6.35 | AE76: 6.5 | AF76: 6.65 | AG76: 6.8 | AH76: 6.95 | AI76: 7.1 | AJ76: 7.25 | AK76: 7.4 | AL76: 7.55 | AM76: 7.7 | AN76: 7.85 | AO76: 8 | AP76: 8.15 | AQ76: 8.3 | AR76: 8.45 | AS76: 8.6 | AT76: 8.75 | AU76: 8.9 | AV76: 9.05 | AW76: 9.2 | AX76: 9.35 | AY76: 9.5 | AZ76: 9.65 | BA76: 9.8
B77: 11 | C77: 2.4 | D77: 2.55 | E77: 2.7 | F77: 2.85 | G77: 3 | H77: 3.15 | I77: 3.3 | J77: 3.45 | K77: 3.6 | L77: 3.75 | M77: 3.9 | N77: 4.05 | O77: 4.2 | P77: 4.35 | Q77: 4.5 | R77: 4.65 | S77: 4.8 | T77: 4.95 | U77: 5.1 | V77: 5.25 | W77: 5.4 | X77: 5.55 | Y77: 5.7 | Z77: 5.85 | AA77: 6 | AB77: 6.15 | AC77: 6.3 | AD77: 6.45 | AE77: 6.6 | AF77: 6.75 | AG77: 6.9 | AH77: 7.05 | AI77: 7.2 | AJ77: 7.35 | AK77: 7.5 | AL77: 7.65 | AM77: 7.8 | AN77: 7.95 | AO77: 8.1 | AP77: 8.25 | AQ77: 8.4 | AR77: 8.55 | AS77: 8.7 | AT77: 8.85 | AU77: 9 | AV77: 9.15 | AW77: 9.3 | AX77: 9.45 | AY77: 9.6 | AZ77: 9.75 | BA77: 9.9
B78: 12 | C78: 2.5 | D78: 2.65 | E78: 2.8 | F78: 2.95 | G78: 3.1 | H78: 3.25 | I78: 3.4 | J78: 3.55 | K78: 3.7 | L78: 3.85 | M78: 4 | N78: 4.15 | O78: 4.3 | P78: 4.45 | Q78: 4.6 | R78: 4.75 | S78: 4.9 | T78: 5.05 | U78: 5.2 | V78: 5.35 | W78: 5.5 | X78: 5.65 | Y78: 5.8 | Z78: 5.95 | AA78: 6.1 | AB78: 6.25 | AC78: 6.4 | AD78: 6.55 | AE78: 6.7 | AF78: 6.85 | AG78: 7 | AH78: 7.15 | AI78: 7.3 | AJ78: 7.45 | AK78: 7.6 | AL78: 7.75 | AM78: 7.9 | AN78: 8.05 | AO78: 8.2 | AP78: 8.35 | AQ78: 8.5 | AR78: 8.65 | AS78: 8.8 | AT78: 8.95 | AU78: 9.1 | AV78: 9.25 | AW78: 9.4 | AX78: 9.55 | AY78: 9.7 | AZ78: 9.85 | BA78: 10
B79: 13 | C79: 2.6 | D79: 2.75 | E79: 2.9 | F79: 3.05 | G79: 3.2 | H79: 3.35 | I79: 3.5 | J79: 3.65 | K79: 3.8 | L79: 3.95 | M79: 4.1 | N79: 4.25 | O79: 4.4 | P79: 4.55 | Q79: 4.7 | R79: 4.85 | S79: 5 | T79: 5.15 | U79: 5.3 | V79: 5.45 | W79: 5.6 | X79: 5.75 | Y79: 5.9 | Z79: 6.05 | AA79: 6.2 | AB79: 6.35 | AC79: 6.5 | AD79: 6.65 | AE79: 6.8 | AF79: 6.95 | AG79: 7.1 | AH79: 7.25 | AI79: 7.4 | AJ79: 7.55 | AK79: 7.7 | AL79: 7.85 | AM79: 8 | AN79: 8.15 | AO79: 8.3 | AP79: 8.45 | AQ79: 8.6 | AR79: 8.75 | AS79: 8.9 | AT79: 9.05 | AU79: 9.2 | AV79: 9.35 | AW79: 9.5 | AX79: 9.65 | AY79: 9.8 | AZ79: 9.95 | BA79: 10.1
B80: 14 | C80: 2.7 | D80: 2.85 | E80: 3 | F80: 3.15 | G80: 3.3 | H80: 3.45 | I80: 3.6 | J80: 3.75 | K80: 3.9 | L80: 4.05 | M80: 4.2 | N80: 4.35 | O80: 4.5 | P80: 4.65 | Q80: 4.8 | R80: 4.95 | S80: 5.1 | T80: 5.25 | U80: 5.4 | V80: 5.55 | W80: 5.7 | X80: 5.85 | Y80: 6 | Z80: 6.15 | AA80: 6.3 | AB80: 6.45 | AC80: 6.6 | AD80: 6.75 | AE80: 6.9 | AF80: 7.05 | AG80: 7.2 | AH80: 7.35 | AI80: 7.5 | AJ80: 7.65 | AK80: 7.8 | AL80: 7.95 | AM80: 8.1 | AN80: 8.25 | AO80: 8.4 | AP80: 8.55 | AQ80: 8.7 | AR80: 8.85 | AS80: 9 | AT80: 9.15 | AU80: 9.3 | AV80: 9.45 | AW80: 9.6 | AX80: 9.75 | AY80: 9.9 | AZ80: 10.05 | BA80: 10.2
B81: 15 | C81: 2.8 | D81: 2.95 | E81: 3.1 | F81: 3.25 | G81: 3.4 | H81: 3.55 | I81: 3.7 | J81: 3.85 | K81: 4 | L81: 4.15 | M81: 4.3 | N81: 4.45 | O81: 4.6 | P81: 4.75 | Q81: 4.9 | R81: 5.05 | S81: 5.2 | T81: 5.35 | U81: 5.5 | V81: 5.65 | W81: 5.8 | X81: 5.95 | Y81: 6.1 | Z81: 6.25 | AA81: 6.4 | AB81: 6.55 | AC81: 6.7 | AD81: 6.85 | AE81: 7 | AF81: 7.15 | AG81: 7.3 | AH81: =1+$B81*0.1+0.3+AH$11*0.15 -> 7.45 | AI81: 7.6 | AJ81: 7.75 | AK81: 7.9 | AL81: 8.05 | AM81: 8.2 | AN81: 8.35 | AO81: 8.5 | AP81: 8.65 | AQ81: 8.8 | AR81: 8.95 | AS81: 9.1 | AT81: 9.25 | AU81: 9.4 | AV81: 9.55 | AW81: 9.7 | AX81: 9.85 | AY81: 10 | AZ81: 10.15 | BA81: 10.3
B82: 16 | C82: 2.9 | D82: 3.05 | E82: 3.2 | F82: 3.35 | G82: 3.5 | H82: 3.65 | I82: 3.8 | J82: 3.95 | K82: 4.1 | L82: 4.25 | M82: 4.4 | N82: 4.55 | O82: 4.7 | P82: 4.85 | Q82: 5 | R82: 5.15 | S82: 5.3 | T82: 5.45 | U82: 5.6 | V82: 5.75 | W82: 5.9 | X82: 6.05 | Y82: 6.2 | Z82: 6.35 | AA82: 6.5 | AB82: 6.65 | AC82: 6.8 | AD82: 6.95 | AE82: 7.1 | AF82: 7.25 | AG82: 7.4 | AH82: 7.55 | AI82: 7.7 | AJ82: 7.85 | AK82: 8 | AL82: 8.15 | AM82: 8.3 | AN82: 8.45 | AO82: 8.6 | AP82: 8.75 | AQ82: 8.9 | AR82: 9.05 | AS82: 9.2 | AT82: 9.35 | AU82: 9.5 | AV82: 9.65 | AW82: 9.8 | AX82: 9.95 | AY82: 10.1 | AZ82: 10.25 | BA82: 10.4
B83: 17 | C83: 3 | D83: 3.15 | E83: 3.3 | F83: 3.45 | G83: 3.6 | H83: 3.75 | I83: 3.9 | J83: 4.05 | K83: 4.2 | L83: 4.35 | M83: 4.5 | N83: 4.65 | O83: 4.8 | P83: 4.95 | Q83: 5.1 | R83: 5.25 | S83: 5.4 | T83: 5.55 | U83: 5.7 | V83: 5.85 | W83: 6 | X83: 6.15 | Y83: 6.3 | Z83: 6.45 | AA83: 6.6 | AB83: 6.75 | AC83: 6.9 | AD83: 7.05 | AE83: 7.2 | AF83: 7.35 | AG83: 7.5 | AH83: 7.65 | AI83: 7.8 | AJ83: 7.95 | AK83: 8.1 | AL83: 8.25 | AM83: 8.4 | AN83: 8.55 | AO83: 8.7 | AP83: 8.85 | AQ83: 9 | AR83: 9.15 | AS83: 9.3 | AT83: 9.45 | AU83: 9.6 | AV83: 9.75 | AW83: 9.9 | AX83: 10.05 | AY83: 10.2 | AZ83: 10.35 | BA83: 10.5
B84: 18 | C84: 3.1 | D84: 3.25 | E84: 3.4 | F84: 3.55 | G84: 3.7 | H84: 3.85 | I84: 4 | J84: 4.15 | K84: 4.3 | L84: 4.45 | M84: 4.6 | N84: 4.75 | O84: 4.9 | P84: 5.05 | Q84: 5.2 | R84: 5.35 | S84: 5.5 | T84: 5.65 | U84: 5.8 | V84: 5.95 | W84: 6.1 | X84: 6.25 | Y84: 6.4 | Z84: 6.55 | AA84: 6.7 | AB84: 6.85 | AC84: 7 | AD84: 7.15 | AE84: 7.3 | AF84: 7.45 | AG84: 7.6 | AH84: 7.75 | AI84: 7.9 | AJ84: 8.05 | AK84: 8.2 | AL84: 8.35 | AM84: 8.5 | AN84: 8.65 | AO84: 8.8 | AP84: 8.95 | AQ84: 9.1 | AR84: 9.25 | AS84: 9.4 | AT84: 9.55 | AU84: 9.7 | AV84: 9.85 | AW84: 10 | AX84: 10.15 | AY84: 10.3 | AZ84: 10.45 | BA84: 10.6
B85: 19 | C85: 3.2 | D85: 3.35 | E85: 3.5 | F85: 3.65 | G85: 3.8 | H85: 3.95 | I85: 4.1 | J85: 4.25 | K85: 4.4 | L85: 4.55 | M85: 4.7 | N85: 4.85 | O85: 5 | P85: 5.15 | Q85: 5.3 | R85: 5.45 | S85: 5.6 | T85: 5.75 | U85: 5.9 | V85: 6.05 | W85: 6.2 | X85: 6.35 | Y85: 6.5 | Z85: 6.65 | AA85: 6.8 | AB85: 6.95 | AC85: 7.1 | AD85: 7.25 | AE85: 7.4 | AF85: 7.55 | AG85: 7.7 | AH85: 7.85 | AI85: 8 | AJ85: 8.15 | AK85: 8.3 | AL85: 8.45 | AM85: 8.6 | AN85: 8.75 | AO85: 8.9 | AP85: 9.05 | AQ85: 9.2 | AR85: 9.35 | AS85: 9.5 | AT85: 9.65 | AU85: 9.8 | AV85: 9.95 | AW85: 10.1 | AX85: 10.25 | AY85: 10.4 | AZ85: 10.55 | BA85: 10.7
B86: 20 | C86: 3.3 | D86: 3.45 | E86: 3.6 | F86: 3.75 | G86: 3.9 | H86: 4.05 | I86: 4.2 | J86: 4.35 | K86: 4.5 | L86: 4.65 | M86: 4.8 | N86: 4.95 | O86: 5.1 | P86: 5.25 | Q86: 5.4 | R86: 5.55 | S86: 5.7 | T86: 5.85 | U86: 6 | V86: 6.15 | W86: 6.3 | X86: 6.45 | Y86: 6.6 | Z86: 6.75 | AA86: 6.9 | AB86: 7.05 | AC86: 7.2 | AD86: 7.35 | AE86: 7.5 | AF86: 7.65 | AG86: 7.8 | AH86: 7.95 | AI86: 8.1 | AJ86: 8.25 | AK86: 8.4 | AL86: 8.55 | AM86: =1+$B86*0.1+0.3+AM$11*0.15 -> 8.7 | AN86: 8.85 | AO86: 9 | AP86: 9.15 | AQ86: 9.3 | AR86: 9.45 | AS86: 9.6 | AT86: 9.75 | AU86: 9.9 | AV86: 10.05 | AW86: 10.2 | AX86: 10.35 | AY86: 10.5 | AZ86: 10.65 | BA86: 10.8
B87: 21 | C87: 3.4 | D87: 3.55 | E87: 3.7 | F87: 3.85 | G87: 4 | H87: 4.15 | I87: 4.3 | J87: 4.45 | K87: 4.6 | L87: 4.75 | M87: 4.9 | N87: 5.05 | O87: 5.2 | P87: 5.35 | Q87: 5.5 | R87: 5.65 | S87: 5.8 | T87: 5.95 | U87: 6.1 | V87: 6.25 | W87: 6.4 | X87: 6.55 | Y87: 6.7 | Z87: 6.85 | AA87: 7 | AB87: 7.15 | AC87: 7.3 | AD87: 7.45 | AE87: 7.6 | AF87: 7.75 | AG87: 7.9 | AH87: 8.05 | AI87: 8.2 | AJ87: 8.35 | AK87: 8.5 | AL87: 8.65 | AM87: 8.8 | AN87: 8.95 | AO87: 9.1 | AP87: 9.25 | AQ87: 9.4 | AR87: 9.55 | AS87: 9.7 | AT87: 9.85 | AU87: 10 | AV87: 10.15 | AW87: 10.3 | AX87: 10.45 | AY87: 10.6 | AZ87: 10.75 | BA87: 10.9
B88: 22 | C88: 3.5 | D88: 3.65 | E88: 3.8 | F88: 3.95 | G88: 4.1 | H88: 4.25 | I88: 4.4 | J88: 4.55 | K88: 4.7 | L88: 4.85 | M88: 5 | N88: 5.15 | O88: 5.3 | P88: 5.45 | Q88: 5.6 | R88: 5.75 | S88: 5.9 | T88: 6.05 | U88: 6.2 | V88: 6.35 | W88: 6.5 | X88: 6.65 | Y88: 6.8 | Z88: 6.95 | AA88: 7.1 | AB88: 7.25 | AC88: 7.4 | AD88: 7.55 | AE88: 7.7 | AF88: 7.85 | AG88: 8 | AH88: 8.15 | AI88: 8.3 | AJ88: 8.45 | AK88: 8.6 | AL88: 8.75 | AM88: 8.9 | AN88: 9.05 | AO88: 9.2 | AP88: 9.35 | AQ88: 9.5 | AR88: 9.65 | AS88: 9.8 | AT88: 9.95 | AU88: 10.1 | AV88: 10.25 | AW88: 10.4 | AX88: 10.55 | AY88: 10.7 | AZ88: 10.85 | BA88: 11
B89: 23 | C89: 3.6 | D89: 3.75 | E89: 3.9 | F89: 4.05 | G89: 4.2 | H89: 4.35 | I89: 4.5 | J89: 4.65 | K89: 4.8 | L89: 4.95 | M89: 5.1 | N89: 5.25 | O89: 5.4 | P89: 5.55 | Q89: 5.7 | R89: 5.85 | S89: 6 | T89: 6.15 | U89: 6.3 | V89: 6.45 | W89: 6.6 | X89: 6.75 | Y89: 6.9 | Z89: 7.05 | AA89: 7.2 | AB89: 7.35 | AC89: 7.5 | AD89: 7.65 | AE89: 7.8 | AF89: 7.95 | AG89: 8.1 | AH89: 8.25 | AI89: 8.4 | AJ89: 8.55 | AK89: 8.7 | AL89: 8.85 | AM89: 9 | AN89: 9.15 | AO89: 9.3 | AP89: 9.45 | AQ89: 9.6 | AR89: 9.75 | AS89: 9.9 | AT89: 10.05 | AU89: 10.2 | AV89: 10.35 | AW89: 10.5 | AX89: 10.65 | AY89: 10.8 | AZ89: 10.95 | BA89: 11.1
B90: 24 | C90: 3.7 | D90: 3.85 | E90: 4 | F90: 4.15 | G90: 4.3 | H90: 4.45 | I90: 4.6 | J90: 4.75 | K90: 4.9 | L90: 5.05 | M90: 5.2 | N90: 5.35 | O90: 5.5 | P90: 5.65 | Q90: 5.8 | R90: 5.95 | S90: 6.1 | T90: 6.25 | U90: 6.4 | V90: 6.55 | W90: 6.7 | X90: 6.85 | Y90: 7 | Z90: 7.15 | AA90: 7.3 | AB90: 7.45 | AC90: 7.6 | AD90: 7.75 | AE90: 7.9 | AF90: 8.05 | AG90: 8.2 | AH90: 8.35 | AI90: 8.5 | AJ90: 8.65 | AK90: 8.8 | AL90: 8.95 | AM90: 9.1 | AN90: 9.25 | AO90: 9.4 | AP90: 9.55 | AQ90: 9.7 | AR90: 9.85 | AS90: 10 | AT90: 10.15 | AU90: 10.3 | AV90: 10.45 | AW90: 10.6 | AX90: 10.75 | AY90: 10.9 | AZ90: 11.05 | BA90: 11.2
B91: 25 | C91: 3.8 | D91: 3.95 | E91: 4.1 | F91: 4.25 | G91: 4.4 | H91: 4.55 | I91: 4.7 | J91: 4.85 | K91: 5 | L91: 5.15 | M91: 5.3 | N91: 5.45 | O91: 5.6 | P91: 5.75 | Q91: 5.9 | R91: 6.05 | S91: 6.2 | T91: 6.35 | U91: 6.5 | V91: 6.65 | W91: 6.8 | X91: 6.95 | Y91: 7.1 | Z91: 7.25 | AA91: 7.4 | AB91: 7.55 | AC91: 7.7 | AD91: 7.85 | AE91: 8 | AF91: 8.15 | AG91: 8.3 | AH91: 8.45 | AI91: 8.6 | AJ91: 8.75 | AK91: 8.9 | AL91: 9.05 | AM91: 9.2 | AN91: 9.35 | AO91: 9.5 | AP91: 9.65 | AQ91: 9.8 | AR91: =1+$B91*0.1+0.3+AR$11*0.15 -> 9.95 | AS91: 10.1 | AT91: 10.25 | AU91: 10.4 | AV91: 10.55 | AW91: 10.7 | AX91: 10.85 | AY91: 11 | AZ91: 11.15 | BA91: 11.3
B92: 26 | C92: 3.9 | D92: 4.05 | E92: 4.2 | F92: 4.35 | G92: 4.5 | H92: 4.65 | I92: 4.8 | J92: 4.95 | K92: 5.1 | L92: 5.25 | M92: 5.4 | N92: 5.55 | O92: 5.7 | P92: 5.85 | Q92: 6 | R92: 6.15 | S92: 6.3 | T92: 6.45 | U92: 6.6 | V92: 6.75 | W92: 6.9 | X92: 7.05 | Y92: 7.2 | Z92: 7.35 | AA92: 7.5 | AB92: 7.65 | AC92: 7.8 | AD92: 7.95 | AE92: 8.1 | AF92: 8.25 | AG92: 8.4 | AH92: 8.55 | AI92: 8.7 | AJ92: 8.85 | AK92: 9 | AL92: 9.15 | AM92: 9.3 | AN92: 9.45 | AO92: 9.6 | AP92: 9.75 | AQ92: 9.9 | AR92: 10.05 | AS92: 10.2 | AT92: 10.35 | AU92: 10.5 | AV92: 10.65 | AW92: 10.8 | AX92: 10.95 | AY92: 11.1 | AZ92: 11.25 | BA92: 11.4
B93: 27 | C93: 4 | D93: 4.15 | E93: 4.3 | F93: 4.45 | G93: 4.6 | H93: 4.75 | I93: 4.9 | J93: 5.05 | K93: 5.2 | L93: 5.35 | M93: 5.5 | N93: 5.65 | O93: 5.8 | P93: 5.95 | Q93: 6.1 | R93: 6.25 | S93: 6.4 | T93: 6.55 | U93: 6.7 | V93: 6.85 | W93: 7 | X93: 7.15 | Y93: 7.3 | Z93: 7.45 | AA93: 7.6 | AB93: 7.75 | AC93: 7.9 | AD93: 8.05 | AE93: 8.2 | AF93: 8.35 | AG93: 8.5 | AH93: 8.65 | AI93: 8.8 | AJ93: 8.95 | AK93: 9.1 | AL93: 9.25 | AM93: 9.4 | AN93: 9.55 | AO93: 9.7 | AP93: 9.85 | AQ93: 10 | AR93: 10.15 | AS93: 10.3 | AT93: 10.45 | AU93: 10.6 | AV93: 10.75 | AW93: 10.9 | AX93: 11.05 | AY93: 11.2 | AZ93: 11.35 | BA93: 11.5
B94: 28 | C94: 4.1 | D94: 4.25 | E94: 4.4 | F94: 4.55 | G94: 4.7 | H94: 4.85 | I94: 5 | J94: 5.15 | K94: 5.3 | L94: 5.45 | M94: 5.6 | N94: 5.75 | O94: 5.9 | P94: 6.05 | Q94: 6.2 | R94: 6.35 | S94: 6.5 | T94: 6.65 | U94: 6.8 | V94: 6.95 | W94: 7.1 | X94: 7.25 | Y94: 7.4 | Z94: 7.55 | AA94: 7.7 | AB94: 7.85 | AC94: 8 | AD94: 8.15 | AE94: 8.3 | AF94: 8.45 | AG94: 8.6 | AH94: 8.75 | AI94: 8.9 | AJ94: 9.05 | AK94: 9.2 | AL94: 9.35 | AM94: 9.5 | AN94: 9.65 | AO94: 9.8 | AP94: 9.95 | AQ94: 10.1 | AR94: 10.25 | AS94: 10.4 | AT94: 10.55 | AU94: 10.7 | AV94: 10.85 | AW94: 11 | AX94: 11.15 | AY94: 11.3 | AZ94: 11.45 | BA94: 11.6
B95: 29 | C95: 4.2 | D95: 4.35 | E95: 4.5 | F95: 4.65 | G95: 4.8 | H95: 4.95 | I95: 5.1 | J95: 5.25 | K95: 5.4 | L95: 5.55 | M95: 5.7 | N95: 5.85 | O95: 6 | P95: 6.15 | Q95: 6.3 | R95: 6.45 | S95: 6.6 | T95: 6.75 | U95: 6.9 | V95: 7.05 | W95: 7.2 | X95: 7.35 | Y95: 7.5 | Z95: 7.65 | AA95: 7.8 | AB95: 7.95 | AC95: 8.1 | AD95: 8.25 | AE95: 8.4 | AF95: 8.55 | AG95: 8.7 | AH95: 8.85 | AI95: 9 | AJ95: 9.15 | AK95: 9.3 | AL95: 9.45 | AM95: 9.6 | AN95: 9.75 | AO95: 9.9 | AP95: 10.05 | AQ95: 10.2 | AR95: 10.35 | AS95: 10.5 | AT95: 10.65 | AU95: 10.8 | AV95: 10.95 | AW95: 11.1 | AX95: 11.25 | AY95: 11.4 | AZ95: 11.55 | BA95: 11.7
B96: 30 | C96: 4.3 | D96: 4.45 | E96: 4.6 | F96: 4.75 | G96: 4.9 | H96: 5.05 | I96: 5.2 | J96: 5.35 | K96: 5.5 | L96: 5.65 | M96: 5.8 | N96: 5.95 | O96: 6.1 | P96: 6.25 | Q96: 6.4 | R96: 6.55 | S96: 6.7 | T96: 6.85 | U96: 7 | V96: 7.15 | W96: 7.3 | X96: 7.45 | Y96: 7.6 | Z96: 7.75 | AA96: 7.9 | AB96: 8.05 | AC96: 8.2 | AD96: 8.35 | AE96: 8.5 | AF96: 8.65 | AG96: 8.8 | AH96: 8.95 | AI96: 9.1 | AJ96: 9.25 | AK96: 9.4 | AL96: 9.55 | AM96: 9.7 | AN96: 9.85 | AO96: 10 | AP96: 10.15 | AQ96: 10.3 | AR96: 10.45 | AS96: 10.6 | AT96: 10.75 | AU96: 10.9 | AV96: 11.05 | AW96: =1+$B96*0.1+0.3+AW$11*0.15 -> 11.2 | AX96: 11.35 | AY96: 11.5 | AZ96: 11.65 | BA96: 11.8
B97: 31 | C97: 4.4 | D97: 4.55 | E97: 4.7 | F97: 4.85 | G97: 5 | H97: 5.15 | I97: 5.3 | J97: 5.45 | K97: 5.6 | L97: 5.75 | M97: 5.9 | N97: 6.05 | O97: 6.2 | P97: 6.35 | Q97: 6.5 | R97: 6.65 | S97: 6.8 | T97: 6.95 | U97: 7.1 | V97: 7.25 | W97: 7.4 | X97: 7.55 | Y97: 7.7 | Z97: 7.85 | AA97: 8 | AB97: 8.15 | AC97: 8.3 | AD97: 8.45 | AE97: 8.6 | AF97: 8.75 | AG97: 8.9 | AH97: 9.05 | AI97: 9.2 | AJ97: 9.35 | AK97: 9.5 | AL97: 9.65 | AM97: 9.8 | AN97: 9.95 | AO97: 10.1 | AP97: 10.25 | AQ97: 10.4 | AR97: 10.55 | AS97: 10.7 | AT97: 10.85 | AU97: 11 | AV97: 11.15 | AW97: 11.3 | AX97: 11.45 | AY97: 11.6 | AZ97: 11.75 | BA97: 11.9
B98: 32 | C98: =1+$B98*0.1+0.3+C$11*0.15 -> 4.5 | D98: 4.65 | E98: 4.8 | F98: 4.95 | G98: 5.1 | H98: 5.25 | I98: 5.4 | J98: 5.55 | K98: 5.7 | L98: 5.85 | M98: 6 | N98: 6.15 | O98: 6.3 | P98: 6.45 | Q98: 6.6 | R98: 6.75 | S98: 6.9 | T98: 7.05 | U98: 7.2 | V98: 7.35 | W98: 7.5 | X98: 7.65 | Y98: 7.8 | Z98: 7.95 | AA98: 8.1 | AB98: 8.25 | AC98: 8.4 | AD98: 8.55 | AE98: 8.7 | AF98: 8.85 | AG98: 9 | AH98: 9.15 | AI98: 9.3 | AJ98: 9.45 | AK98: 9.6 | AL98: 9.75 | AM98: 9.9 | AN98: 10.05 | AO98: 10.2 | AP98: 10.35 | AQ98: 10.5 | AR98: 10.65 | AS98: 10.8 | AT98: 10.95 | AU98: 11.1 | AV98: 11.25 | AW98: 11.4 | AX98: 11.55 | AY98: 11.7 | AZ98: 11.85 | BA98: 12
B99: 33 | C99: 4.6 | D99: 4.75 | E99: 4.9 | F99: 5.05 | G99: 5.2 | H99: 5.35 | I99: 5.5 | J99: 5.65 | K99: 5.8 | L99: 5.95 | M99: 6.1 | N99: 6.25 | O99: 6.4 | P99: 6.55 | Q99: 6.7 | R99: 6.85 | S99: 7 | T99: 7.15 | U99: 7.3 | V99: 7.45 | W99: 7.6 | X99: 7.75 | Y99: 7.9 | Z99: 8.05 | AA99: 8.2 | AB99: 8.35 | AC99: 8.5 | AD99: 8.65 | AE99: 8.8 | AF99: 8.95 | AG99: 9.1 | AH99: 9.25 | AI99: 9.4 | AJ99: 9.55 | AK99: 9.7 | AL99: 9.85 | AM99: 10 | AN99: 10.15 | AO99: 10.3 | AP99: 10.45 | AQ99: 10.6 | AR99: 10.75 | AS99: 10.9 | AT99: 11.05 | AU99: 11.2 | AV99: 11.35 | AW99: 11.5 | AX99: 11.65 | AY99: 11.8 | AZ99: 11.95 | BA99: 12.1
B100: 34 | C100: 4.7 | D100: 4.85 | E100: 5 | F100: 5.15 | G100: 5.3 | H100: 5.45 | I100: 5.6 | J100: 5.75 | K100: 5.9 | L100: 6.05 | M100: 6.2 | N100: 6.35 | O100: 6.5 | P100: 6.65 | Q100: 6.8 | R100: 6.95 | S100: 7.1 | T100: 7.25 | U100: 7.4 | V100: 7.55 | W100: 7.7 | X100: 7.85 | Y100: 8 | Z100: 8.15 | AA100: 8.3 | AB100: 8.45 | AC100: 8.6 | AD100: 8.75 | AE100: 8.9 | AF100: 9.05 | AG100: 9.2 | AH100: 9.35 | AI100: 9.5 | AJ100: 9.65 | AK100: 9.8 | AL100: 9.95 | AM100: 10.1 | AN100: 10.25 | AO100: 10.4 | AP100: 10.55 | AQ100: 10.7 | AR100: 10.85 | AS100: 11 | AT100: 11.15 | AU100: 11.3 | AV100: 11.45 | AW100: 11.6 | AX100: 11.75 | AY100: 11.9 | AZ100: 12.05 | BA100: 12.2
B101: 35 | C101: 4.8 | D101: 4.95 | E101: 5.1 | F101: 5.25 | G101: 5.4 | H101: 5.55 | I101: 5.7 | J101: 5.85 | K101: 6 | L101: 6.15 | M101: 6.3 | N101: 6.45 | O101: 6.6 | P101: 6.75 | Q101: 6.9 | R101: 7.05 | S101: 7.2 | T101: 7.35 | U101: 7.5 | V101: 7.65 | W101: 7.8 | X101: 7.95 | Y101: 8.1 | Z101: 8.25 | AA101: 8.4 | AB101: 8.55 | AC101: 8.7 | AD101: 8.85 | AE101: 9 | AF101: 9.15 | AG101: 9.3 | AH101: 9.45 | AI101: 9.6 | AJ101: 9.75 | AK101: 9.9 | AL101: 10.05 | AM101: 10.2 | AN101: 10.35 | AO101: 10.5 | AP101: 10.65 | AQ101: 10.8 | AR101: 10.95 | AS101: 11.1 | AT101: 11.25 | AU101: 11.4 | AV101: 11.55 | AW101: 11.7 | AX101: 11.85 | AY101: 12 | AZ101: 12.15 | BA101: 12.3
B102: 36 | C102: 4.9 | D102: =1+$B102*0.1+0.3+D$11*0.15 -> 5.05 | E102: 5.2 | F102: 5.35 | G102: 5.5 | H102: 5.65 | I102: 5.8 | J102: 5.95 | K102: 6.1 | L102: 6.25 | M102: 6.4 | N102: 6.55 | O102: 6.7 | P102: 6.85 | Q102: 7 | R102: 7.15 | S102: 7.3 | T102: 7.45 | U102: 7.6 | V102: 7.75 | W102: 7.9 | X102: 8.05 | Y102: 8.2 | Z102: 8.35 | AA102: 8.5 | AB102: 8.65 | AC102: 8.8 | AD102: 8.95 | AE102: 9.1 | AF102: 9.25 | AG102: 9.4 | AH102: 9.55 | AI102: 9.7 | AJ102: 9.85 | AK102: 10 | AL102: 10.15 | AM102: 10.3 | AN102: 10.45 | AO102: 10.6 | AP102: 10.75 | AQ102: 10.9 | AR102: 11.05 | AS102: 11.2 | AT102: 11.35 | AU102: 11.5 | AV102: 11.65 | AW102: 11.8 | AX102: 11.95 | AY102: 12.1 | AZ102: 12.25 | BA102: 12.4
B103: 37 | C103: 5 | D103: 5.15 | E103: 5.3 | F103: 5.45 | G103: 5.6 | H103: 5.75 | I103: 5.9 | J103: 6.05 | K103: 6.2 | L103: 6.35 | M103: 6.5 | N103: 6.65 | O103: 6.8 | P103: 6.95 | Q103: 7.1 | R103: 7.25 | S103: 7.4 | T103: 7.55 | U103: 7.7 | V103: 7.85 | W103: 8 | X103: 8.15 | Y103: 8.3 | Z103: 8.45 | AA103: 8.6 | AB103: 8.75 | AC103: 8.9 | AD103: 9.05 | AE103: 9.2 | AF103: 9.35 | AG103: 9.5 | AH103: 9.65 | AI103: 9.8 | AJ103: 9.95 | AK103: 10.1 | AL103: 10.25 | AM103: 10.4 | AN103: 10.55 | AO103: 10.7 | AP103: 10.85 | AQ103: 11 | AR103: 11.15 | AS103: 11.3 | AT103: 11.45 | AU103: 11.6 | AV103: 11.75 | AW103: 11.9 | AX103: 12.05 | AY103: 12.2 | AZ103: 12.35 | BA103: 12.5
B104: 38 | C104: 5.1 | D104: 5.25 | E104: 5.4 | F104: 5.55 | G104: 5.7 | H104: 5.85 | I104: 6 | J104: 6.15 | K104: 6.3 | L104: 6.45 | M104: 6.6 | N104: 6.75 | O104: 6.9 | P104: 7.05 | Q104: 7.2 | R104: 7.35 | S104: 7.5 | T104: 7.65 | U104: 7.8 | V104: 7.95 | W104: 8.1 | X104: 8.25 | Y104: 8.4 | Z104: 8.55 | AA104: 8.7 | AB104: 8.85 | AC104: 9 | AD104: 9.15 | AE104: 9.3 | AF104: 9.45 | AG104: 9.6 | AH104: 9.75 | AI104: 9.9 | AJ104: 10.05 | AK104: 10.2 | AL104: 10.35 | AM104: 10.5 | AN104: 10.65 | AO104: 10.8 | AP104: 10.95 | AQ104: 11.1 | AR104: 11.25 | AS104: 11.4 | AT104: 11.55 | AU104: 11.7 | AV104: 11.85 | AW104: 12 | AX104: 12.15 | AY104: 12.3 | AZ104: 12.45 | BA104: 12.6
B105: 39 | C105: 5.2 | D105: 5.35 | E105: 5.5 | F105: 5.65 | G105: 5.8 | H105: 5.95 | I105: 6.1 | J105: 6.25 | K105: 6.4 | L105: 6.55 | M105: 6.7 | N105: 6.85 | O105: 7 | P105: 7.15 | Q105: 7.3 | R105: 7.45 | S105: 7.6 | T105: 7.75 | U105: 7.9 | V105: 8.05 | W105: 8.2 | X105: 8.35 | Y105: 8.5 | Z105: 8.65 | AA105: 8.8 | AB105: 8.95 | AC105: 9.1 | AD105: 9.25 | AE105: 9.4 | AF105: 9.55 | AG105: 9.7 | AH105: 9.85 | AI105: 10 | AJ105: 10.15 | AK105: 10.3 | AL105: 10.45 | AM105: 10.6 | AN105: 10.75 | AO105: 10.9 | AP105: 11.05 | AQ105: 11.2 | AR105: 11.35 | AS105: 11.5 | AT105: 11.65 | AU105: 11.8 | AV105: 11.95 | AW105: 12.1 | AX105: 12.25 | AY105: 12.4 | AZ105: 12.55 | BA105: 12.7
B106: 40 | C106: 5.3 | D106: 5.45 | E106: 5.6 | F106: 5.75 | G106: 5.9 | H106: 6.05 | I106: 6.2 | J106: 6.35 | K106: 6.5 | L106: 6.65 | M106: 6.8 | N106: 6.95 | O106: 7.1 | P106: 7.25 | Q106: 7.4 | R106: 7.55 | S106: 7.7 | T106: 7.85 | U106: 8 | V106: 8.15 | W106: 8.3 | X106: 8.45 | Y106: 8.6 | Z106: 8.75 | AA106: 8.9 | AB106: 9.05 | AC106: 9.2 | AD106: 9.35 | AE106: 9.5 | AF106: 9.65 | AG106: 9.8 | AH106: 9.95 | AI106: 10.1 | AJ106: 10.25 | AK106: 10.4 | AL106: 10.55 | AM106: 10.7 | AN106: 10.85 | AO106: 11 | AP106: 11.15 | AQ106: 11.3 | AR106: 11.45 | AS106: 11.6 | AT106: 11.75 | AU106: 11.9 | AV106: 12.05 | AW106: 12.2 | AX106: 12.35 | AY106: 12.5 | AZ106: 12.65 | BA106: 12.8
B107: 41 | C107: 5.4 | D107: 5.55 | E107: 5.7 | F107: 5.85 | G107: 6 | H107: 6.15 | I107: =1+$B107*0.1+0.3+I$11*0.15 -> 6.3 | J107: 6.45 | K107: 6.6 | L107: 6.75 | M107: 6.9 | N107: 7.05 | O107: 7.2 | P107: 7.35 | Q107: 7.5 | R107: 7.65 | S107: 7.8 | T107: 7.95 | U107: 8.1 | V107: 8.25 | W107: 8.4 | X107: 8.55 | Y107: 8.7 | Z107: 8.85 | AA107: 9 | AB107: 9.15 | AC107: 9.3 | AD107: 9.45 | AE107: 9.6 | AF107: 9.75 | AG107: 9.9 | AH107: 10.05 | AI107: 10.2 | AJ107: 10.35 | AK107: 10.5 | AL107: 10.65 | AM107: 10.8 | AN107: 10.95 | AO107: 11.1 | AP107: 11.25 | AQ107: 11.4 | AR107: 11.55 | AS107: 11.7 | AT107: 11.85 | AU107: 12 | AV107: 12.15 | AW107: 12.3 | AX107: 12.45 | AY107: 12.6 | AZ107: 12.75 | BA107: 12.9
B108: 42 | C108: 5.5 | D108: 5.65 | E108: 5.8 | F108: 5.95 | G108: 6.1 | H108: 6.25 | I108: 6.4 | J108: 6.55 | K108: 6.7 | L108: 6.85 | M108: 7 | N108: 7.15 | O108: 7.3 | P108: 7.45 | Q108: 7.6 | R108: 7.75 | S108: 7.9 | T108: 8.05 | U108: 8.2 | V108: 8.35 | W108: 8.5 | X108: 8.65 | Y108: 8.8 | Z108: 8.95 | AA108: 9.1 | AB108: 9.25 | AC108: 9.4 | AD108: 9.55 | AE108: 9.7 | AF108: 9.85 | AG108: 10 | AH108: 10.15 | AI108: 10.3 | AJ108: 10.45 | AK108: 10.6 | AL108: 10.75 | AM108: 10.9 | AN108: 11.05 | AO108: 11.2 | AP108: 11.35 | AQ108: 11.5 | AR108: 11.65 | AS108: 11.8 | AT108: 11.95 | AU108: 12.1 | AV108: 12.25 | AW108: 12.4 | AX108: 12.55 | AY108: 12.7 | AZ108: 12.85 | BA108: 13
B109: 43 | C109: 5.6 | D109: 5.75 | E109: 5.9 | F109: 6.05 | G109: 6.2 | H109: 6.35 | I109: 6.5 | J109: 6.65 | K109: 6.8 | L109: 6.95 | M109: 7.1 | N109: 7.25 | O109: 7.4 | P109: 7.55 | Q109: 7.7 | R109: 7.85 | S109: 8 | T109: 8.15 | U109: 8.3 | V109: 8.45 | W109: 8.6 | X109: 8.75 | Y109: 8.9 | Z109: 9.05 | AA109: 9.2 | AB109: 9.35 | AC109: 9.5 | AD109: 9.65 | AE109: 9.8 | AF109: 9.95 | AG109: 10.1 | AH109: 10.25 | AI109: 10.4 | AJ109: 10.55 | AK109: 10.7 | AL109: 10.85 | AM109: 11 | AN109: 11.15 | AO109: 11.3 | AP109: 11.45 | AQ109: 11.6 | AR109: 11.75 | AS109: 11.9 | AT109: 12.05 | AU109: 12.2 | AV109: 12.35 | AW109: 12.5 | AX109: 12.65 | AY109: 12.8 | AZ109: 12.95 | BA109: 13.1
B110: 44 | C110: 5.7 | D110: 5.85 | E110: 6 | F110: 6.15 | G110: 6.3 | H110: 6.45 | I110: 6.6 | J110: 6.75 | K110: 6.9 | L110: 7.05 | M110: 7.2 | N110: 7.35 | O110: 7.5 | P110: 7.65 | Q110: 7.8 | R110: 7.95 | S110: 8.1 | T110: 8.25 | U110: 8.4 | V110: 8.55 | W110: 8.7 | X110: 8.85 | Y110: 9 | Z110: 9.15 | AA110: 9.3 | AB110: 9.45 | AC110: 9.6 | AD110: 9.75 | AE110: 9.9 | AF110: 10.05 | AG110: 10.2 | AH110: 10.35 | AI110: 10.5 | AJ110: 10.65 | AK110: 10.8 | AL110: 10.95 | AM110: 11.1 | AN110: 11.25 | AO110: 11.4 | AP110: 11.55 | AQ110: 11.7 | AR110: 11.85 | AS110: 12 | AT110: 12.15 | AU110: 12.3 | AV110: 12.45 | AW110: 12.6 | AX110: 12.75 | AY110: 12.9 | AZ110: 13.05 | BA110: 13.2
B111: 45 | C111: 5.8 | D111: 5.95 | E111: 6.1 | F111: 6.25 | G111: 6.4 | H111: 6.55 | I111: 6.7 | J111: 6.85 | K111: 7 | L111: 7.15 | M111: 7.3 | N111: 7.45 | O111: 7.6 | P111: 7.75 | Q111: 7.9 | R111: 8.05 | S111: 8.2 | T111: 8.35 | U111: 8.5 | V111: 8.65 | W111: 8.8 | X111: 8.95 | Y111: 9.1 | Z111: 9.25 | AA111: 9.4 | AB111: 9.55 | AC111: 9.7 | AD111: 9.85 | AE111: 10 | AF111: 10.15 | AG111: 10.3 | AH111: 10.45 | AI111: 10.6 | AJ111: 10.75 | AK111: 10.9 | AL111: 11.05 | AM111: 11.2 | AN111: 11.35 | AO111: 11.5 | AP111: 11.65 | AQ111: 11.8 | AR111: 11.95 | AS111: 12.1 | AT111: 12.25 | AU111: 12.4 | AV111: 12.55 | AW111: 12.7 | AX111: 12.85 | AY111: 13 | AZ111: 13.15 | BA111: 13.3
B112: 46 | C112: 5.9 | D112: 6.05 | E112: 6.2 | F112: 6.35 | G112: 6.5 | H112: 6.65 | I112: 6.8 | J112: 6.95 | K112: 7.1 | L112: 7.25 | M112: 7.4 | N112: =1+$B112*0.1+0.3+N$11*0.15 -> 7.55 | O112: 7.7 | P112: 7.85 | Q112: 8 | R112: 8.15 | S112: 8.3 | T112: 8.45 | U112: 8.6 | V112: 8.75 | W112: 8.9 | X112: 9.05 | Y112: 9.2 | Z112: 9.35 | AA112: 9.5 | AB112: 9.65 | AC112: 9.8 | AD112: 9.95 | AE112: 10.1 | AF112: 10.25 | AG112: 10.4 | AH112: 10.55 | AI112: 10.7 | AJ112: 10.85 | AK112: 11 | AL112: 11.15 | AM112: 11.3 | AN112: 11.45 | AO112: 11.6 | AP112: 11.75 | AQ112: 11.9 | AR112: 12.05 | AS112: 12.2 | AT112: 12.35 | AU112: 12.5 | AV112: 12.65 | AW112: 12.8 | AX112: 12.95 | AY112: 13.1 | AZ112: 13.25 | BA112: 13.4
B113: 47 | C113: 6 | D113: 6.15 | E113: 6.3 | F113: 6.45 | G113: 6.6 | H113: 6.75 | I113: 6.9 | J113: 7.05 | K113: 7.2 | L113: 7.35 | M113: 7.5 | N113: 7.65 | O113: 7.8 | P113: 7.95 | Q113: 8.1 | R113: 8.25 | S113: 8.4 | T113: 8.55 | U113: 8.7 | V113: 8.85 | W113: 9 | X113: 9.15 | Y113: 9.3 | Z113: 9.45 | AA113: 9.6 | AB113: 9.75 | AC113: 9.9 | AD113: 10.05 | AE113: 10.2 | AF113: 10.35 | AG113: 10.5 | AH113: 10.65 | AI113: 10.8 | AJ113: 10.95 | AK113: 11.1 | AL113: 11.25 | AM113: 11.4 | AN113: 11.55 | AO113: 11.7 | AP113: 11.85 | AQ113: 12 | AR113: 12.15 | AS113: 12.3 | AT113: 12.45 | AU113: 12.6 | AV113: 12.75 | AW113: 12.9 | AX113: 13.05 | AY113: 13.2 | AZ113: 13.35 | BA113: 13.5
B114: 48 | C114: 6.1 | D114: 6.25 | E114: 6.4 | F114: 6.55 | G114: 6.7 | H114: 6.85 | I114: 7 | J114: 7.15 | K114: 7.3 | L114: 7.45 | M114: 7.6 | N114: 7.75 | O114: 7.9 | P114: 8.05 | Q114: 8.2 | R114: 8.35 | S114: 8.5 | T114: 8.65 | U114: 8.8 | V114: 8.95 | W114: 9.1 | X114: 9.25 | Y114: 9.4 | Z114: 9.55 | AA114: 9.7 | AB114: 9.85 | AC114: 10 | AD114: 10.15 | AE114: 10.3 | AF114: 10.45 | AG114: 10.6 | AH114: 10.75 | AI114: 10.9 | AJ114: 11.05 | AK114: 11.2 | AL114: 11.35 | AM114: 11.5 | AN114: 11.65 | AO114: 11.8 | AP114: 11.95 | AQ114: 12.1 | AR114: 12.25 | AS114: 12.4 | AT114: 12.55 | AU114: 12.7 | AV114: 12.85 | AW114: 13 | AX114: 13.15 | AY114: 13.3 | AZ114: 13.45 | BA114: 13.6
B115: 49 | C115: 6.2 | D115: 6.35 | E115: 6.5 | F115: 6.65 | G115: 6.8 | H115: 6.95 | I115: 7.1 | J115: 7.25 | K115: 7.4 | L115: 7.55 | M115: 7.7 | N115: 7.85 | O115: 8 | P115: 8.15 | Q115: 8.3 | R115: 8.45 | S115: 8.6 | T115: 8.75 | U115: 8.9 | V115: 9.05 | W115: 9.2 | X115: 9.35 | Y115: 9.5 | Z115: 9.65 | AA115: 9.8 | AB115: 9.95 | AC115: 10.1 | AD115: 10.25 | AE115: 10.4 | AF115: 10.55 | AG115: 10.7 | AH115: 10.85 | AI115: 11 | AJ115: 11.15 | AK115: 11.3 | AL115: 11.45 | AM115: 11.6 | AN115: 11.75 | AO115: 11.9 | AP115: 12.05 | AQ115: 12.2 | AR115: 12.35 | AS115: 12.5 | AT115: 12.65 | AU115: 12.8 | AV115: 12.95 | AW115: 13.1 | AX115: 13.25 | AY115: 13.4 | AZ115: 13.55 | BA115: 13.7
B116: 50 | C116: 6.3 | D116: 6.45 | E116: 6.6 | F116: 6.75 | G116: 6.9 | H116: 7.05 | I116: 7.2 | J116: 7.35 | K116: 7.5 | L116: 7.65 | M116: 7.8 | N116: 7.95 | O116: 8.1 | P116: 8.25 | Q116: 8.4 | R116: 8.55 | S116: 8.7 | T116: 8.85 | U116: 9 | V116: 9.15 | W116: 9.3 | X116: 9.45 | Y116: 9.6 | Z116: 9.75 | AA116: 9.9 | AB116: 10.05 | AC116: 10.2 | AD116: 10.35 | AE116: 10.5 | AF116: 10.65 | AG116: 10.8 | AH116: 10.95 | AI116: 11.1 | AJ116: 11.25 | AK116: 11.4 | AL116: 11.55 | AM116: 11.7 | AN116: 11.85 | AO116: 12 | AP116: 12.15 | AQ116: 12.3 | AR116: 12.45 | AS116: 12.6 | AT116: 12.75 | AU116: 12.9 | AV116: 13.05 | AW116: 13.2 | AX116: 13.35 | AY116: 13.5 | AZ116: 13.65 | BA116: 13.8

Sheet tdp
A1: TDP | B1: ouv | C1: jsn | D1: sn | E1: ne | F1: js | G1: so | H1: con | I1: art | J1: arte | K1: se | L1: tk | M1: tu | N1: tue | P1: ouvri | Q1: jsn | R1: sn | S1: ne | T1: js | U1: so | V1: con | W1: art | X1: arte | Y1: se | Z1: tk | AA1: tu | AB1: tue
P2: 60 | Q2: 300 | R2: 450 | S2: 570 | T2: 740 | U2: 1000 | V2: 1410 | W2: 1440 | X2: 1520 | Y2: 1450 | Z2: 1860 | AA2: 2740 | AB2: 2740
A3: 1 | B3: =P2*0.9^(A3) -> 54 | C3: =Q2*0.9^(A3) -> 270 | D3: =R3*0.9^(A3) -> 405 | E3: =S3*0.9^(A3) -> 513 | F3: =T3*0.9^(A3) -> 666 | G3: =U3*0.9^(A3) -> 900 | H3: =V3*0.9^(A3) -> 1269 | I3: =W3*0.9^(A3) -> 1296 | J3: =X3*0.9^(A3) -> 1368 | K3: =Y3*0.9^(A3) -> 1305 | L3: =Z3*0.9^(A3) -> 1674 | M3: =AA3*0.9^(A3) -> 2466 | N3: =AB3*0.9^(A3) -> 2466 | P3: 60 | Q3: 300 | R3: 450 | S3: 570 | T3: 740 | U3: 1000 | V3: 1410 | W3: 1440 | X3: 1520 | Y3: 1450 | Z3: 1860 | AA3: 2740 | AB3: 2740
A4: 2 | B4: =P3*0.9^(A4) -> 48.6 | C4: =Q3*0.9^(A4) -> 243 | D4: =R4*0.9^(A4) -> 364.5 | E4: =S4*0.9^(A4) -> 461.7 | F4: =T4*0.9^(A4) -> 599.4 | G4: =U4*0.9^(A4) -> 810 | H4: =V4*0.9^(A4) -> 1142.1 | I4: =W4*0.9^(A4) -> 1166.4 | J4: =X4*0.9^(A4) -> 1231.2 | K4: =Y4*0.9^(A4) -> 1174.5 | L4: =Z4*0.9^(A4) -> 1506.6 | M4: =AA4*0.9^(A4) -> 2219.4 | N4: =AB4*0.9^(A4) -> 2219.4 | P4: 60 | Q4: 300 | R4: 450 | S4: 570 | T4: 740 | U4: 1000 | V4: 1410 | W4: 1440 | X4: 1520 | Y4: 1450 | Z4: 1860 | AA4: 2740 | AB4: 2740
A5: 3 | B5: 43.74 | C5: 218.7 | D5: 328.05 | E5: 415.53 | F5: 539.46 | G5: 729 | H5: 1027.89 | I5: 1049.76 | J5: 1108.08 | K5: 1057.05 | L5: 1355.94 | M5: 1997.46 | N5: 1997.46 | P5: 60 | Q5: 300 | R5: 450 | S5: 570 | T5: 740 | U5: 1000 | V5: 1410 | W5: 1440 | X5: 1520 | Y5: 1450 | Z5: 1860 | AA5: 2740 | AB5: 2740
A6: 4 | B6: 39.366 | C6: 196.83 | D6: 295.245 | E6: 373.977 | F6: 485.514 | G6: 656.1 | H6: 925.101 | I6: 944.784 | J6: 997.272 | K6: 951.345 | L6: 1220.346 | M6: 1797.714 | N6: 1797.714 | P6: 60 | Q6: 300 | R6: 450 | S6: 570 | T6: 740 | U6: 1000 | V6: 1410 | W6: 1440 | X6: 1520 | Y6: 1450 | Z6: 1860 | AA6: 2740 | AB6: 2740
A7: 5 | B7: 35.4294 | C7: 177.147 | D7: 265.7205 | E7: 336.5793 | F7: 436.9626 | G7: 590.49 | H7: 832.5909 | I7: 850.3056 | J7: 897.5448 | K7: 856.2105 | L7: 1098.3114 | M7: 1617.9426 | N7: 1617.9426 | P7: 60 | Q7: 300 | R7: 450 | S7: 570 | T7: 740 | U7: 1000 | V7: 1410 | W7: 1440 | X7: 1520 | Y7: 1450 | Z7: 1860 | AA7: 2740 | AB7: 2740
A8: 6 | B8: 31.88646 | C8: 159.4323 | D8: 239.14845 | E8: 302.92137 | F8: 393.26634 | G8: 531.441 | H8: 749.33181 | I8: 765.27504 | J8: 807.79032 | K8: 770.58945 | L8: 988.48026 | M8: 1456.14834 | N8: 1456.14834 | P8: 60 | Q8: 300 | R8: 450 | S8: 570 | T8: 740 | U8: 1000 | V8: 1410 | W8: 1440 | X8: 1520 | Y8: 1450 | Z8: 1860 | AA8: 2740 | AB8: 2740
A9: 7 | B9: 28.697814 | C9: 143.48907 | D9: 215.233605 | E9: 272.629233 | F9: 353.939706 | G9: 478.2969 | H9: 674.398629 | I9: 688.747536 | J9: 727.011288 | K9: 693.530505 | L9: 889.632234 | M9: 1310.533506 | N9: 1310.533506 | P9: 60 | Q9: 300 | R9: 450 | S9: 570 | T9: 740 | U9: 1000 | V9: 1410 | W9: 1440 | X9: 1520 | Y9: 1450 | Z9: 1860 | AA9: 2740 | AB9: 2740
A10: 8 | B10: 25.8280326 | C10: 129.140163 | D10: 193.7102445 | E10: 245.3663097 | F10: 318.5457354 | G10: 430.46721 | H10: 606.9587661 | I10: 619.8727824 | J10: 654.3101592 | K10: 624.1774545 | L10: 800.6690106 | M10: 1179.480155 | N10: 1179.480155 | P10: 60 | Q10: 300 | R10: 450 | S10: 570 | T10: 740 | U10: 1000 | V10: 1410 | W10: 1440 | X10: 1520 | Y10: 1450 | Z10: 1860 | AA10: 2740 | AB10: 2740
A11: 9 | B11: 23.24522934 | C11: 116.2261467 | D11: 174.3392201 | E11: 220.8296787 | F11: 286.6911619 | G11: 387.420489 | H11: 546.2628895 | I11: 557.8855042 | J11: 588.8791433 | K11: 561.7597091 | L11: 720.6021095 | M11: 1061.53214 | N11: 1061.53214 | P11: 60 | Q11: 300 | R11: 450 | S11: 570 | T11: 740 | U11: 1000 | V11: 1410 | W11: 1440 | X11: 1520 | Y11: 1450 | Z11: 1860 | AA11: 2740 | AB11: 2740
A12: 10 | B12: 20.92070641 | C12: 104.603532 | D12: 156.905298 | E12: 198.7467109 | F12: 258.0220457 | G12: 348.6784401 | H12: 491.6366005 | I12: 502.0969537 | J12: 529.991229 | K12: 505.5837381 | L12: 648.5418986 | M12: 955.3789259 | N12: 955.3789259 | P12: 60 | Q12: 300 | R12: 450 | S12: 570 | T12: 740 | U12: 1000 | V12: 1410 | W12: 1440 | X12: 1520 | Y12: 1450 | Z12: 1860 | AA12: 2740 | AB12: 2740
A13: 11 | B13: 18.82863577 | C13: 94.14317883 | D13: 141.2147682 | E13: 178.8720398 | F13: 232.2198411 | G13: 313.8105961 | H13: 442.4729405 | I13: 451.8872584 | J13: 476.9921061 | K13: 455.0253643 | L13: 583.6877087 | M13: 859.8410333 | N13: 859.8410333 | P13: 60 | Q13: 300 | R13: 450 | S13: 570 | T13: 740 | U13: 1000 | V13: 1410 | W13: 1440 | X13: 1520 | Y13: 1450 | Z13: 1860 | AA13: 2740 | AB13: 2740
A14: 12 | B14: 16.94577219 | C14: 84.72886094 | D14: 127.0932914 | E14: 160.9848358 | F14: 208.997857 | G14: 282.4295365 | H14: 398.2256464 | I14: 406.6985325 | J14: 429.2928955 | K14: 409.5228279 | L14: 525.3189379 | M14: 773.85693 | N14: 773.85693 | P14: 60 | Q14: 300 | R14: 450 | S14: 570 | T14: 740 | U14: 1000 | V14: 1410 | W14: 1440 | X14: 1520 | Y14: 1450 | Z14: 1860 | AA14: 2740 | AB14: 2740
A15: 13 | B15: 15.25119497 | C15: 76.25597485 | D15: 114.3839623 | E15: 144.8863522 | F15: 188.0980713 | G15: 254.1865828 | H15: 358.4030818 | I15: 366.0286793 | J15: 386.3636059 | K15: 368.5705451 | L15: 472.7870441 | M15: 696.471237 | N15: 696.471237 | P15: 60 | Q15: 300 | R15: 450 | S15: 570 | T15: 740 | U15: 1000 | V15: 1410 | W15: 1440 | X15: 1520 | Y15: 1450 | Z15: 1860 | AA15: 2740 | AB15: 2740
A16: 14 | B16: 13.72607547 | C16: 68.63037736 | D16: 102.945566 | E16: 130.397717 | F16: 169.2882642 | G16: 228.7679245 | H16: 322.5627736 | I16: 329.4258114 | J16: 347.7272453 | K16: 331.7134906 | L16: 425.5083397 | M16: 626.8241133 | N16: 626.8241133 | P16: 60 | Q16: 300 | R16: 450 | S16: 570 | T16: 740 | U16: 1000 | V16: 1410 | W16: 1440 | X16: 1520 | Y16: 1450 | Z16: 1860 | AA16: 2740 | AB16: 2740
A17: 15 | B17: 12.35346793 | C17: 61.76733963 | D17: 92.65100944 | E17: 117.3579453 | F17: 152.3594378 | G17: 205.8911321 | H17: 290.3064963 | I17: 296.4832302 | J17: 312.9545208 | K17: 298.5421415 | L17: 382.9575057 | M17: 564.1417019 | N17: 564.1417019 | P17: 60 | Q17: 300 | R17: 450 | S17: 570 | T17: 740 | U17: 1000 | V17: 1410 | W17: 1440 | X17: 1520 | Y17: 1450 | Z17: 1860 | AA17: 2740 | AB17: 2740
A18: 16 | B18: 11.11812113 | C18: 55.59060567 | D18: 83.3859085 | E18: 105.6221508 | F18: 137.123494 | G18: 185.3020189 | H18: 261.2758466 | I18: 266.8349072 | J18: 281.6590687 | K18: 268.6879274 | L18: 344.6617551 | M18: 507.7275317 | N18: 507.7275317 | P18: 60 | Q18: 300 | R18: 450 | S18: 570 | T18: 740 | U18: 1000 | V18: 1410 | W18: 1440 | X18: 1520 | Y18: 1450 | Z18: 1860 | AA18: 2740 | AB18: 2740
A19: 17 | B19: 10.00630902 | C19: 50.0315451 | D19: 75.04731765 | E19: 95.05993569 | F19: 123.4111446 | G19: 166.771817 | H19: 235.148262 | I19: 240.1514165 | J19: 253.4931618 | K19: 241.8191346 | L19: 310.1955796 | M19: 456.9547786 | N19: 456.9547786 | P19: 60 | Q19: 300 | R19: 450 | S19: 570 | T19: 740 | U19: 1000 | V19: 1410 | W19: 1440 | X19: 1520 | Y19: 1450 | Z19: 1860 | AA19: 2740 | AB19: 2740
A20: 18 | B20: 9.005678118 | C20: 45.02839059 | D20: 67.54258588 | E20: 85.55394212 | F20: 111.0700301 | G20: 150.0946353 | H20: 211.6334358 | I20: 216.1362748 | J20: 228.1438457 | K20: 217.6372212 | L20: 279.1760217 | M20: 411.2593007 | N20: 411.2593007 | P20: 60 | Q20: 300 | R20: 450 | S20: 570 | T20: 740 | U20: 1000 | V20: 1410 | W20: 1440 | X20: 1520 | Y20: 1450 | Z20: 1860 | AA20: 2740 | AB20: 2740
A21: 19 | B21: 8.105110306 | C21: 40.52555153 | D21: 60.7883273 | E21: 76.99854791 | F21: 99.96302711 | G21: 135.0851718 | H21: 190.4700922 | I21: 194.5226473 | J21: 205.3294611 | K21: 195.8734991 | L21: 251.2584195 | M21: 370.1333706 | N21: 370.1333706 | P21: 60 | Q21: 300 | R21: 450 | S21: 570 | T21: 740 | U21: 1000 | V21: 1410 | W21: 1440 | X21: 1520 | Y21: 1450 | Z21: 1860 | AA21: 2740 | AB21: 2740
A22: 20 | B22: 7.294599275 | C22: 36.47299638 | D22: 54.70949457 | E22: 69.29869312 | F22: 89.9667244 | G22: 121.5766546 | H22: 171.423083 | I22: 175.0703826 | J22: 184.796515 | K22: 176.2861492 | L22: 226.1325775 | M22: 333.1200336 | N22: 333.1200336 | P22: 60 | Q22: 300 | R22: 450 | S22: 570 | T22: 740 | U22: 1000 | V22: 1410 | W22: 1440 | X22: 1520 | Y22: 1450 | Z22: 1860 | AA22: 2740 | AB22: 2740
A23: 21 | B23: 6.565139348 | C23: 32.82569674 | D23: 49.23854511 | E23: 62.3688238 | F23: 80.97005196 | G23: 109.4189891 | H23: 154.2807747 | I23: 157.5633443 | J23: 166.3168635 | K23: 158.6575342 | L23: 203.5193198 | M23: 299.8080302 | N23: 299.8080302 | P23: 60 | Q23: 300 | R23: 450 | S23: 570 | T23: 740 | U23: 1000 | V23: 1410 | W23: 1440 | X23: 1520 | Y23: 1450 | Z23: 1860 | AA23: 2740 | AB23: 2740
A24: 22 | B24: 5.908625413 | C24: 29.54312707 | D24: 44.3146906 | E24: 56.13194142 | F24: 72.87304676 | G24: 98.47709022 | H24: 138.8526972 | I24: 141.8070099 | J24: 149.6851771 | K24: 142.7917808 | L24: 183.1673878 | M24: 269.8272272 | N24: 269.8272272 | P24: 60 | Q24: 300 | R24: 450 | S24: 570 | T24: 740 | U24: 1000 | V24: 1410 | W24: 1440 | X24: 1520 | Y24: 1450 | Z24: 1860 | AA24: 2740 | AB24: 2740
A25: 23 | B25: 5.317762872 | C25: 26.58881436 | D25: 39.88322154 | E25: 50.51874728 | F25: 65.58574209 | G25: 88.6293812 | H25: 124.9674275 | I25: 127.6263089 | J25: 134.7166594 | K25: 128.5126027 | L25: 164.850649 | M25: 242.8445045 | N25: 242.8445045 | P25: 60 | Q25: 300 | R25: 450 | S25: 570 | T25: 740 | U25: 1000 | V25: 1410 | W25: 1440 | X25: 1520 | Y25: 1450 | Z25: 1860 | AA25: 2740 | AB25: 2740
A26: 24 | B26: 4.785986585 | C26: 23.92993292 | D26: 35.89489938 | E26: 45.46687255 | F26: 59.02716788 | G26: 79.76644308 | H26: 112.4706847 | I26: 114.863678 | J26: 121.2449935 | K26: 115.6613425 | L26: 148.3655841 | M26: 218.560054 | N26: 218.560054 | P26: 60 | Q26: 300 | R26: 450 | S26: 570 | T26: 740 | U26: 1000 | V26: 1410 | W26: 1440 | X26: 1520 | Y26: 1450 | Z26: 1860 | AA26: 2740 | AB26: 2740
A27: 25 | B27: 4.307387926 | C27: 21.53693963 | D27: 32.30540945 | E27: 40.9201853 | F27: 53.12445109 | G27: 71.78979877 | H27: 101.2236163 | I27: 103.3773102 | J27: 109.1204941 | K27: 104.0952082 | L27: 133.5290257 | M27: 196.7040486 | N27: 196.7040486 | P27: 60 | Q27: 300 | R27: 450 | S27: 570 | T27: 740 | U27: 1000 | V27: 1410 | W27: 1440 | X27: 1520 | Y27: 1450 | Z27: 1860 | AA27: 2740 | AB27: 2740
A28: 26 | B28: 3.876649134 | C28: 19.38324567 | D28: 29.0748685 | E28: 36.82816677 | F28: 47.81200598 | G28: 64.61081889 | H28: 91.10125464 | I28: 93.0395792 | J28: 98.20844472 | K28: 93.68568739 | L28: 120.1761231 | M28: 177.0336438 | N28: 177.0336438 | P28: 60 | Q28: 300 | R28: 450 | S28: 570 | T28: 740 | U28: 1000 | V28: 1410 | W28: 1440 | X28: 1520 | Y28: 1450 | Z28: 1860 | AA28: 2740 | AB28: 2740
A29: 27 | B29: 3.48898422 | C29: 17.4449211 | D29: 26.16738165 | E29: 33.14535009 | F29: 43.03080538 | G29: 58.149737 | H29: 81.99112917 | I29: 83.73562128 | J29: 88.38760024 | K29: 84.31711865 | L29: 108.1585108 | M29: 159.3302794 | N29: 159.3302794 | P29: 60 | Q29: 300 | R29: 450 | S29: 570 | T29: 740 | U29: 1000 | V29: 1410 | W29: 1440 | X29: 1520 | Y29: 1450 | Z29: 1860 | AA29: 2740 | AB29: 2740
A30: 28 | B30: 3.140085798 | C30: 15.70042899 | D30: 23.55064349 | E30: 29.83081508 | F30: 38.72772484 | G30: 52.3347633 | H30: 73.79201626 | I30: 75.36205916 | J30: 79.54884022 | K30: 75.88540679 | L30: 97.34265974 | M30: 143.3972514 | N30: 143.3972514 | P30: 60 | Q30: 300 | R30: 450 | S30: 570 | T30: 740 | U30: 1000 | V30: 1410 | W30: 1440 | X30: 1520 | Y30: 1450 | Z30: 1860 | AA30: 2740 | AB30: 2740
A31: 29 | B31: 2.826077218 | C31: 14.13038609 | D31: 21.19557914 | E31: 26.84773357 | F31: 34.85495236 | G31: 47.10128697 | H31: 66.41281463 | I31: 67.82585324 | J31: 71.5939562 | K31: 68.29686611 | L31: 87.60839377 | M31: 129.0575263 | N31: 129.0575263 | P31: 60 | Q31: 300 | R31: 450 | S31: 570 | T31: 740 | U31: 1000 | V31: 1410 | W31: 1440 | X31: 1520 | Y31: 1450 | Z31: 1860 | AA31: 2740 | AB31: 2740
A32: 30 | B32: 2.543469497 | C32: 12.71734748 | D32: 19.07602122 | E32: 24.16296022 | F32: 31.36945712 | G32: 42.39115828 | H32: 59.77153317 | I32: 61.04326792 | J32: 64.43456058 | K32: 61.4671795 | L32: 78.84755439 | M32: 116.1517737 | N32: 116.1517737 | P32: 60 | Q32: 300 | R32: 450 | S32: 570 | T32: 740 | U32: 1000 | V32: 1410 | W32: 1440 | X32: 1520 | Y32: 1450 | Z32: 1860 | AA32: 2740 | AB32: 2740
A33: 31 | B33: 2.289122547 | C33: 11.44561273 | D33: 17.1684191 | E33: 21.7466642 | F33: 28.23251141 | G33: 38.15204245 | H33: 53.79437985 | I33: 54.93894112 | J33: 57.99110452 | K33: 55.32046155 | L33: 70.96279895 | M33: 104.5365963 | N33: 104.5365963 | P33: 60 | Q33: 300 | R33: 450 | S33: 570 | T33: 740 | U33: 1000 | V33: 1410 | W33: 1440 | X33: 1520 | Y33: 1450 | Z33: 1860 | AA33: 2740 | AB33: 2740
A34: 32 | B34: 2.060210292 | C34: 10.30105146 | D34: 15.45157719 | E34: 19.57199778 | F34: 25.40926027 | G34: 34.3368382 | H34: 48.41494187 | I34: 49.44504701 | J34: 52.19199407 | K34: 49.78841539 | L34: 63.86651906 | M34: 94.08293668 | N34: 94.08293668 | P34: 60 | Q34: 300 | R34: 450 | S34: 570 | T34: 740 | U34: 1000 | V34: 1410 | W34: 1440 | X34: 1520 | Y34: 1450 | Z34: 1860 | AA34: 2740 | AB34: 2740
A35: 33 | B35: 1.854189263 | C35: 9.270946315 | D35: 13.90641947 | E35: 17.614798 | F35: 22.86833424 | G35: 30.90315438 | H35: 43.57344768 | I35: 44.50054231 | J35: 46.97279466 | K35: 44.80957385 | L35: 57.47986715 | M35: 84.67464301 | N35: 84.67464301 | P35: 60 | Q35: 300 | R35: 450 | S35: 570 | T35: 740 | U35: 1000 | V35: 1410 | W35: 1440 | X35: 1520 | Y35: 1450 | Z35: 1860 | AA35: 2740 | AB35: 2740
A36: 34 | B36: 1.668770337 | C36: 8.343851683 | D36: 12.51577752 | E36: 15.8533182 | F36: 20.58150082 | G36: 27.81283894 | H36: 39.21610291 | I36: 40.05048808 | J36: 42.2755152 | K36: 40.32861647 | L36: 51.73188044 | M36: 76.20717871 | N36: 76.20717871 | P36: 60 | Q36: 300 | R36: 450 | S36: 570 | T36: 740 | U36: 1000 | V36: 1410 | W36: 1440 | X36: 1520 | Y36: 1450 | Z36: 1860 | AA36: 2740 | AB36: 2740
A37: 35 | B37: 1.501893303 | C37: 7.509466515 | D37: 11.26419977 | E37: 14.26798638 | F37: 18.52335074 | G37: 25.03155505 | H37: 35.29449262 | I37: 36.04543927 | J37: 38.04796368 | K37: 36.29575482 | L37: 46.55869239 | M37: 68.58646084 | N37: 68.58646084 | P37: 60 | Q37: 300 | R37: 450 | S37: 570 | T37: 740 | U37: 1000 | V37: 1410 | W37: 1440 | X37: 1520 | Y37: 1450 | Z37: 1860 | AA37: 2740 | AB37: 2740
A38: 36 | B38: 1.351703973 | C38: 6.758519863 | D38: 10.1377798 | E38: 12.84118774 | F38: 16.67101566 | G38: 22.52839954 | H38: 31.76504336 | I38: 32.44089534 | J38: 34.24316731 | K38: 32.66617934 | L38: 41.90282315 | M38: 61.72781475 | N38: 61.72781475 | P38: 60 | Q38: 300 | R38: 450 | S38: 570 | T38: 740 | U38: 1000 | V38: 1410 | W38: 1440 | X38: 1520 | Y38: 1450 | Z38: 1860 | AA38: 2740 | AB38: 2740
A39: 37 | B39: 1.216533575 | C39: 6.082667877 | D39: 9.124001816 | E39: 11.55706897 | F39: 15.0039141 | G39: 20.27555959 | H39: 28.58853902 | I39: 29.19680581 | J39: 30.81885058 | K39: 29.39956141 | L39: 37.71254084 | M39: 55.55503328 | N39: 55.55503328 | P39: 60 | Q39: 300 | R39: 450 | S39: 570 | T39: 740 | U39: 1000 | V39: 1410 | W39: 1440 | X39: 1520 | Y39: 1450 | Z39: 1860 | AA39: 2740 | AB39: 2740
A40: 38 | B40: 1.094880218 | C40: 5.474401089 | D40: 8.211601634 | E40: 10.40136207 | F40: 13.50352269 | G40: 18.24800363 | H40: 25.72968512 | I40: 26.27712523 | J40: 27.73696552 | K40: 26.45960527 | L40: 33.94128675 | M40: 49.99952995 | N40: 49.99952995 | P40: 60 | Q40: 300 | R40: 450 | S40: 570 | T40: 740 | U40: 1000 | V40: 1410 | W40: 1440 | X40: 1520 | Y40: 1450 | Z40: 1860 | AA40: 2740 | AB40: 2740
A41: 39 | B41: =P40*0.9^(A41) -> 0.9853921961 | C41: 4.92696098 | D41: 7.390441471 | E41: 9.361225863 | F41: 12.15317042 | G41: 16.42320327 | H41: 23.15671661 | I41: 23.64941271 | J41: 24.96326897 | K41: 23.81364474 | L41: 30.54715808 | M41: 44.99957696 | N41: 44.99957696 | P41: 60 | Q41: 300 | R41: 450 | S41: 570 | T41: 740 | U41: 1000 | V41: 1410 | W41: 1440 | X41: 1520 | Y41: 1450 | Z41: 1860 | AA41: 2740 | AB41: 2740
A42: 40 | B42: 0.8868529765 | C42: 4.434264882 | D42: 6.651397324 | E42: 8.425103277 | F42: 10.93785338 | G42: 14.78088294 | H42: 20.84104495 | I42: 21.28447144 | J42: 22.46694207 | K42: 21.43228027 | L42: 27.49244227 | M42: 40.49961926 | N42: 40.49961926 | P42: 60 | Q42: 300 | R42: 450 | S42: 570 | T42: 740 | U42: 1000 | V42: 1410 | W42: 1440 | X42: 1520 | Y42: 1450 | Z42: 1860 | AA42: 2740 | AB42: 2740
A43: 41 | B43: 0.7981676788 | C43: 3.990838394 | D43: 5.986257591 | E43: 7.582592949 | F43: 9.844068039 | G43: 13.30279465 | H43: 18.75694045 | I43: 19.15602429 | J43: 20.22024786 | K43: 19.28905224 | L43: 24.74319804 | M43: 36.44965733 | N43: 36.44965733 | P43: 60 | Q43: 300 | R43: 450 | S43: 570 | T43: 740 | U43: 1000 | V43: 1410 | W43: 1440 | X43: 1520 | Y43: 1450 | Z43: 1860 | AA43: 2740 | AB43: 2740
A44: 42 | B44: 0.718350911 | C44: 3.591754555 | D44: 5.387631832 | E44: 6.824333654 | F44: 8.859661235 | G44: 11.97251518 | H44: 16.88124641 | I44: 17.24042186 | J44: 18.19822308 | K44: 17.36014701 | L44: 22.26887824 | M44: 32.8046916 | N44: 32.8046916 | P44: 60 | Q44: 300 | R44: 450 | S44: 570 | T44: 740 | U44: 1000 | V44: 1410 | W44: 1440 | X44: 1520 | Y44: 1450 | Z44: 1860 | AA44: 2740 | AB44: 2740
A45: 43 | B45: 0.6465158199 | C45: 3.232579099 | D45: 4.848868649 | E45: 6.141900289 | F45: 7.973695112 | G45: 10.77526366 | H45: 15.19312177 | I45: 15.51637968 | J45: 16.37840077 | K45: 15.62413231 | L45: 20.04199042 | M45: 29.52422244 | N45: 29.52422244 | P45: 60 | Q45: 300 | R45: 450 | S45: 570 | T45: 740 | U45: 1000 | V45: 1410 | W45: 1440 | X45: 1520 | Y45: 1450 | Z45: 1860 | AA45: 2740 | AB45: 2740
A46: 44 | B46: 0.5818642379 | C46: 2.909321189 | D46: 4.363981784 | E46: 5.52771026 | F46: 7.1763256 | G46: 9.697737298 | H46: 13.67380959 | I46: 13.96474171 | J46: 14.74056069 | K46: 14.06171908 | L46: 18.03779137 | M46: 26.5718002 | N46: 26.5718002 | P46: 60 | Q46: 300 | R46: 450 | S46: 570 | T46: 740 | U46: 1000 | V46: 1410 | W46: 1440 | X46: 1520 | Y46: 1450 | Z46: 1860 | AA46: 2740 | AB46: 2740
A47: 45 | B47: 0.5236778141 | C47: 2.61838907 | D47: 3.927583606 | E47: 4.974939234 | F47: 6.45869304 | G47: 8.727963568 | H47: 12.30642863 | I47: 12.56826754 | J47: 13.26650462 | K47: 12.65554717 | L47: 16.23401224 | M47: 23.91462018 | N47: 23.91462018 | P47: 60 | Q47: 300 | R47: 450 | S47: 570 | T47: 740 | U47: 1000 | V47: 1410 | W47: 1440 | X47: 1520 | Y47: 1450 | Z47: 1860 | AA47: 2740 | AB47: 2740
A48: 46 | B48: 0.4713100327 | C48: 2.356550163 | D48: 3.534825245 | E48: 4.47744531 | F48: 5.812823736 | G48: 7.855167211 | H48: 11.07578577 | I48: 11.31144078 | J48: 11.93985416 | K48: 11.38999246 | L48: 14.61061101 | M48: 21.52315816 | N48: 21.52315816 | P48: 60 | Q48: 300 | R48: 450 | S48: 570 | T48: 740 | U48: 1000 | V48: 1410 | W48: 1440 | X48: 1520 | Y48: 1450 | Z48: 1860 | AA48: 2740 | AB48: 2740
A49: 47 | B49: 0.4241790294 | C49: 2.120895147 | D49: 3.181342721 | E49: 4.029700779 | F49: 5.231541363 | G49: 7.06965049 | H49: 9.968207191 | I49: 10.18029671 | J49: 10.74586875 | K49: 10.25099321 | L49: 13.14954991 | M49: 19.37084234 | N49: 19.37084234 | P49: 60 | Q49: 300 | R49: 450 | S49: 570 | T49: 740 | U49: 1000 | V49: 1410 | W49: 1440 | X49: 1520 | Y49: 1450 | Z49: 1860 | AA49: 2740 | AB49: 2740
A50: 48 | B50: 0.3817611265 | C50: 1.908805632 | D50: 2.863208449 | E50: 3.626730701 | F50: 4.708387226 | G50: 6.362685441 | H50: 8.971386472 | I50: 9.162267035 | J50: 9.671281871 | K50: 9.22589389 | L50: 11.83459492 | M50: 17.43375811 | N50: 17.43375811 | P50: 60 | Q50: 300 | R50: 450 | S50: 570 | T50: 740 | U50: 1000 | V50: 1410 | W50: 1440 | X50: 1520 | Y50: 1450 | Z50: 1860 | AA50: 2740 | AB50: 2740
A51: 49 | B51: 0.3435850138 | C51: 1.717925069 | D51: 2.576887604 | E51: 3.264057631 | F51: 4.237548504 | G51: 5.726416897 | H51: 8.074247825 | I51: 8.246040332 | J51: 8.704153683 | K51: 8.303304501 | L51: 10.65113543 | M51: 15.6903823 | N51: 15.6903823 | P51: 60 | Q51: 300 | R51: 450 | S51: 570 | T51: 740 | U51: 1000 | V51: 1410 | W51: 1440 | X51: 1520 | Y51: 1450 | Z51: 1860 | AA51: 2740 | AB51: 2740
A52: 50 | B52: 0.3092265124 | C52: 1.546132562 | D52: 2.319198843 | E52: 2.937651868 | F52: 3.813793653 | G52: 5.153775207 | H52: 7.266823042 | I52: 7.421436299 | J52: 7.833738315 | K52: 7.472974051 | L52: 9.586021886 | M52: 14.12134407 | N52: 14.12134407 | P52: 60 | Q52: 300 | R52: 450 | S52: 570 | T52: 740 | U52: 1000 | V52: 1410 | W52: 1440 | X52: 1520 | Y52: 1450 | Z52: 1860 | AA52: 2740 | AB52: 2740
A53: 51 | B53: 0.2783038612 | C53: 1.391519306 | D53: 2.087278959 | E53: 2.643886681 | F53: 3.432414288 | G53: 4.638397687 | H53: 6.540140738 | I53: 6.679292669 | J53: 7.050364484 | K53: 6.725676646 | L53: 8.627419697 | M53: 12.70920966 | N53: 12.70920966 | P53: 60 | Q53: 300 | R53: 450 | S53: 570 | T53: 740 | U53: 1000 | V53: 1410 | W53: 1440 | X53: 1520 | Y53: 1450 | Z53: 1860 | AA53: 2740 | AB53: 2740
A54: 52 | B54: 0.2504734751 | C54: 1.252367375 | D54: 1.878551063 | E54: 2.379498013 | F54: 3.089172859 | G54: 4.174557918 | H54: 5.886126664 | I54: 6.011363402 | J54: 6.345328035 | K54: 6.053108981 | L54: 7.764677727 | M54: 11.4382887 | N54: 11.4382887 | P54: 60 | Q54: 300 | R54: 450 | S54: 570 | T54: 740 | U54: 1000 | V54: 1410 | W54: 1440 | X54: 1520 | Y54: 1450 | Z54: 1860 | AA54: 2740 | AB54: 2740
A55: 53 | B55: 0.2254261276 | C55: 1.127130638 | D55: 1.690695957 | E55: 2.141548212 | F55: 2.780255573 | G55: 3.757102126 | H55: 5.297513998 | I55: 5.410227062 | J55: 5.710795232 | K55: 5.447798083 | L55: 6.988209955 | M55: 10.29445983 | N55: 10.29445983 | P55: 60 | Q55: 300 | R55: 450 | S55: 570 | T55: 740 | U55: 1000 | V55: 1410 | W55: 1440 | X55: 1520 | Y55: 1450 | Z55: 1860 | AA55: 2740 | AB55: 2740
A56: 54 | B56: 0.2028835148 | C56: 1.014417574 | D56: 1.521626361 | E56: 1.927393391 | F56: 2.502230016 | G56: 3.381391914 | H56: 4.767762598 | I56: 4.869204355 | J56: 5.139715709 | K56: 4.903018275 | L56: 6.289388959 | M56: 9.265013843 | N56: 9.265013843 | P56: 60 | Q56: 300 | R56: 450 | S56: 570 | T56: 740 | U56: 1000 | V56: 1410 | W56: 1440 | X56: 1520 | Y56: 1450 | Z56: 1860 | AA56: 2740 | AB56: 2740
A57: 55 | B57: 0.1825951633 | C57: 0.9129758167 | D57: 1.369463725 | E57: 1.734654052 | F57: 2.252007014 | G57: 3.043252722 | H57: 4.290986338 | I57: 4.38228392 | J57: 4.625744138 | K57: 4.412716447 | L57: 5.660450063 | M57: 8.338512459 | N57: 8.338512459 | P57: 60 | Q57: 300 | R57: 450 | S57: 570 | T57: 740 | U57: 1000 | V57: 1410 | W57: 1440 | X57: 1520 | Y57: 1450 | Z57: 1860 | AA57: 2740 | AB57: 2740
A58: 56 | B58: 0.164335647 | C58: 0.821678235 | D58: 1.232517352 | E58: 1.561188646 | F58: 2.026806313 | G58: 2.73892745 | H58: 3.861887704 | I58: 3.944055528 | J58: 4.163169724 | K58: 3.971444802 | L58: 5.094405057 | M58: 7.504661213 | N58: 7.504661213 | P58: 60 | Q58: 300 | R58: 450 | S58: 570 | T58: 740 | U58: 1000 | V58: 1410 | W58: 1440 | X58: 1520 | Y58: 1450 | Z58: 1860 | AA58: 2740 | AB58: 2740
A59: 57 | B59: 0.1479020823 | C59: 0.7395104115 | D59: 1.109265617 | E59: 1.405069782 | F59: 1.824125682 | G59: 2.465034705 | H59: 3.475698934 | I59: 3.549649975 | J59: 3.746852752 | K59: 3.574300322 | L59: 4.584964551 | M59: 6.754195092 | N59: 6.754195092 | P59: 60 | Q59: 300 | R59: 450 | S59: 570 | T59: 740 | U59: 1000 | V59: 1410 | W59: 1440 | X59: 1520 | Y59: 1450 | Z59: 1860 | AA59: 2740 | AB59: 2740
A60: 58 | B60: 0.1331118741 | C60: 0.6655593703 | D60: 0.9983390555 | E60: 1.264562804 | F60: 1.641713114 | G60: 2.218531234 | H60: 3.128129041 | I60: 3.194684978 | J60: 3.372167476 | K60: 3.21687029 | L60: 4.126468096 | M60: 6.078775582 | N60: 6.078775582 | P60: 60 | Q60: 300 | R60: 450 | S60: 570 | T60: 740 | U60: 1000 | V60: 1410 | W60: 1440 | X60: 1520 | Y60: 1450 | Z60: 1860 | AA60: 2740 | AB60: 2740
A61: 59 | B61: 0.1198006867 | C61: 0.5990034333 | D61: 0.89850515 | E61: 1.138106523 | F61: 1.477541802 | G61: 1.996678111 | H61: 2.815316137 | I61: 2.87521648 | J61: 3.034950729 | K61: 2.895183261 | L61: 3.713821286 | M61: 5.470898024 | N61: 5.470898024 | P61: 60 | Q61: 300 | R61: 450 | S61: 570 | T61: 740 | U61: 1000 | V61: 1410 | W61: 1440 | X61: 1520 | Y61: 1450 | Z61: 1860 | AA61: 2740 | AB61: 2740
A62: 60 | B62: 0.107820618 | C62: 0.53910309 | D62: 0.808654635 | E62: 1.024295871 | F62: 1.329787622 | G62: 1.7970103 | H62: 2.533784523 | I62: 2.587694832 | J62: 2.731455656 | K62: 2.605664935 | L62: 3.342439158 | M62: 4.923808222 | N62: 4.923808222 | P62: 60 | Q62: 300 | R62: 450 | S62: 570 | T62: 740 | U62: 1000 | V62: 1410 | W62: 1440 | X62: 1520 | Y62: 1450 | Z62: 1860 | AA62: 2740 | AB62: 2740
A63: 61 | B63: 0.0970385562 | C63: 0.485192781 | D63: 0.7277891715 | E63: 0.9218662839 | F63: 1.19680886 | G63: 1.61730927 | H63: 2.280406071 | I63: 2.328925349 | J63: 2.45831009 | K63: 2.345098441 | L63: 3.008195242 | M63: 4.4314274 | N63: 4.4314274 | P63: 60 | Q63: 300 | R63: 450 | S63: 570 | T63: 740 | U63: 1000 | V63: 1410 | W63: 1440 | X63: 1520 | Y63: 1450 | Z63: 1860 | AA63: 2740 | AB63: 2740
A64: 62 | B64: 0.08733470058 | C64: 0.4366735029 | D64: 0.6550102543 | E64: 0.8296796555 | F64: 1.077127974 | G64: 1.455578343 | H64: 2.052365464 | I64: 2.096032814 | J64: 2.212479081 | K64: 2.110588597 | L64: 2.707375718 | M64: 3.98828466 | N64: 3.98828466 | P64: 60 | Q64: 300 | R64: 450 | S64: 570 | T64: 740 | U64: 1000 | V64: 1410 | W64: 1440 | X64: 1520 | Y64: 1450 | Z64: 1860 | AA64: 2740 | AB64: 2740
A65: 63 | B65: 0.07860123052 | C65: 0.3930061526 | D65: 0.5895092289 | E65: 0.7467116899 | F65: 0.9694151764 | G65: 1.310020509 | H65: 1.847128917 | I65: 1.886429532 | J65: 1.991231173 | K65: 1.899529738 | L65: 2.436638146 | M65: 3.589456194 | N65: 3.589456194 | P65: 60 | Q65: 300 | R65: 450 | S65: 570 | T65: 740 | U65: 1000 | V65: 1410 | W65: 1440 | X65: 1520 | Y65: 1450 | Z65: 1860 | AA65: 2740 | AB65: 2740
A66: 64 | B66: 0.07074110747 | C66: 0.3537055373 | D66: 0.530558306 | E66: 0.6720405209 | F66: 0.8724736588 | G66: 1.179018458 | H66: 1.662416025 | I66: 1.697786579 | J66: 1.792108056 | K66: 1.709576764 | L66: 2.192974331 | M66: 3.230510574 | N66: 3.230510574 | P66: 60 | Q66: 300 | R66: 450 | S66: 570 | T66: 740 | U66: 1000 | V66: 1410 | W66: 1440 | X66: 1520 | Y66: 1450 | Z66: 1860 | AA66: 2740 | AB66: 2740
A67: 65 | B67: 0.06366699672 | C67: 0.3183349836 | D67: 0.4775024754 | E67: 0.6048364688 | F67: 0.7852262929 | G67: 1.061116612 | H67: 1.496174423 | I67: 1.528007921 | J67: 1.61289725 | K67: 1.538619087 | L67: 1.973676898 | M67: 2.907459517 | N67: 2.907459517 | P67: 60 | Q67: 300 | R67: 450 | S67: 570 | T67: 740 | U67: 1000 | V67: 1410 | W67: 1440 | X67: 1520 | Y67: 1450 | Z67: 1860 | AA67: 2740 | AB67: 2740
A68: 66 | B68: =P67*0.9^(A68) -> 0.05730029705 | C68: =Q67*0.9^(A68) -> 0.2865014852 | D68: =R68*0.9^(A68) -> 0.4297522279 | E68: =S68*0.9^(A68) -> 0.544352822 | F68: =T68*0.9^(A68) -> 0.7067036636 | G68: =U68*0.9^(A68) -> 0.9550049508 | H68: =V68*0.9^(A68) -> 1.346556981 | I68: =W68*0.9^(A68) -> 1.375207129 | J68: =X68*0.9^(A68) -> 1.451607525 | K68: =Y68*0.9^(A68) -> 1.384757179 | L68: =Z68*0.9^(A68) -> 1.776309208 | M68: =AA68*0.9^(A68) -> 2.616713565 | N68: =AB68*0.9^(A68) -> 2.616713565 | P68: 60 | Q68: 300 | R68: 450 | S68: 570 | T68: 740 | U68: 1000 | V68: 1410 | W68: 1440 | X68: 1520 | Y68: 1450 | Z68: 1860 | AA68: 2740 | AB68: 2740
A69: 67 | B69: 0.05157026734 | C69: 0.2578513367 | D69: 0.3867770051 | E69: 0.4899175398 | F69: 0.6360332972 | G69: 0.8595044557 | H69: 1.211901283 | I69: 1.237686416 | J69: 1.306446773 | K69: 1.246281461 | L69: 1.598678288 | M69: 2.355042209 | N69: 2.355042209 | P69: 60 | Q69: 300 | R69: 450 | S69: 570 | T69: 740 | U69: 1000 | V69: 1410 | W69: 1440 | X69: 1520 | Y69: 1450 | Z69: 1860 | AA69: 2740 | AB69: 2740
A70: 68 | B70: 0.04641324061 | C70: 0.232066203 | D70: 0.3480993046 | E70: 0.4409257858 | F70: 0.5724299675 | G70: 0.7735540101 | H70: 1.090711154 | I70: 1.113917775 | J70: 1.175802095 | K70: 1.121653315 | L70: 1.438810459 | M70: 2.119537988 | N70: 2.119537988 | P70: 60 | Q70: 300 | R70: 450 | S70: 570 | T70: 740 | U70: 1000 | V70: 1410 | W70: 1440 | X70: 1520 | Y70: 1450 | Z70: 1860 | AA70: 2740 | AB70: 2740
A71: 69 | B71: 0.04177191655 | C71: 0.2088595827 | D71: 0.3132893741 | E71: 0.3968332072 | F71: 0.5151869708 | G71: 0.6961986091 | H71: 0.9816400389 | I71: 1.002525997 | J71: 1.058221886 | K71: 1.009487983 | L71: 1.294929413 | M71: 1.907584189 | N71: 1.907584189 | P71: 60 | Q71: 300 | R71: 450 | S71: 570 | T71: 740 | U71: 1000 | V71: 1410 | W71: 1440 | X71: 1520 | Y71: 1450 | Z71: 1860 | AA71: 2740 | AB71: 2740
A72: 70 | B72: 0.03759472489 | C72: 0.1879736245 | D72: 0.2819604367 | E72: 0.3571498865 | F72: 0.4636682737 | G72: 0.6265787482 | H72: 0.883476035 | I72: 0.9022733974 | J72: 0.9523996973 | K72: 0.9085391849 | L72: 1.165436472 | M72: 1.71682577 | N72: 1.71682577 | P72: 60 | Q72: 300 | R72: 450 | S72: 570 | T72: 740 | U72: 1000 | V72: 1410 | W72: 1440 | X72: 1520 | Y72: 1450 | Z72: 1860 | AA72: 2740 | AB72: 2740
A73: 71 | B73: 0.0338352524 | C73: 0.169176262 | D73: 0.253764393 | E73: 0.3214348978 | F73: 0.4173014463 | G73: 0.5639208734 | H73: 0.7951284315 | I73: 0.8120460577 | J73: 0.8571597276 | K73: 0.8176852664 | L73: 1.048892825 | M73: 1.545143193 | N73: 1.545143193 | P73: 60 | Q73: 300 | R73: 450 | S73: 570 | T73: 740 | U73: 1000 | V73: 1410 | W73: 1440 | X73: 1520 | Y73: 1450 | Z73: 1860 | AA73: 2740 | AB73: 2740
A74: 72 | B74: 0.03045172716 | C74: 0.1522586358 | D74: 0.2283879537 | E74: 0.2892914081 | F74: 0.3755713017 | G74: 0.5075287861 | H74: 0.7156155883 | I74: 0.7308414519 | J74: 0.7714437548 | K74: 0.7359167398 | L74: 0.9440035421 | M74: 1.390628874 | N74: 1.390628874 | P74: 60 | Q74: 300 | R74: 450 | S74: 570 | T74: 740 | U74: 1000 | V74: 1410 | W74: 1440 | X74: 1520 | Y74: 1450 | Z74: 1860 | AA74: 2740 | AB74: 2740
A75: 73 | B75: 0.02740655445 | C75: 0.1370327722 | D75: 0.2055491584 | E75: 0.2603622672 | F75: 0.3380141715 | G75: 0.4567759075 | H75: 0.6440540295 | I75: 0.6577573067 | J75: 0.6942993793 | K75: 0.6623250658 | L75: 0.8496031879 | M75: 1.251565986 | N75: 1.251565986 | P75: 60 | Q75: 300 | R75: 450 | S75: 570 | T75: 740 | U75: 1000 | V75: 1410 | W75: 1440 | X75: 1520 | Y75: 1450 | Z75: 1860 | AA75: 2740 | AB75: 2740
A76: 74 | B76: 0.024665899 | C76: 0.123329495 | D76: 0.1849942425 | E76: 0.2343260405 | F76: 0.3042127544 | G76: 0.4110983167 | H76: 0.5796486266 | I76: 0.5919815761 | J76: 0.6248694414 | K76: 0.5960925592 | L76: 0.7646428691 | M76: 1.126409388 | N76: 1.126409388 | P76: 60 | Q76: 300 | R76: 450 | S76: 570 | T76: 740 | U76: 1000 | V76: 1410 | W76: 1440 | X76: 1520 | Y76: 1450 | Z76: 1860 | AA76: 2740 | AB76: 2740
A77: 75 | B77: 0.0221993091 | C77: 0.1109965455 | D77: 0.1664948183 | E77: 0.2108934365 | F77: 0.2737914789 | G77: 0.369988485 | H77: 0.5216837639 | I77: 0.5327834185 | J77: 0.5623824973 | K77: 0.5364833033 | L77: 0.6881785822 | M77: 1.013768449 | N77: 1.013768449 | P77: 60 | Q77: 300 | R77: 450 | S77: 570 | T77: 740 | U77: 1000 | V77: 1410 | W77: 1440 | X77: 1520 | Y77: 1450 | Z77: 1860 | AA77: 2740 | AB77: 2740
A78: 76 | B78: 0.01997937819 | C78: 0.09989689096 | D78: 0.1498453364 | E78: 0.1898040928 | F78: 0.246412331 | G78: 0.3329896365 | H78: 0.4695153875 | I78: 0.4795050766 | J78: 0.5061442475 | K78: 0.482834973 | L78: 0.6193607239 | M78: 0.9123916041 | N78: 0.9123916041 | P78: 60 | Q78: 300 | R78: 450 | S78: 570 | T78: 740 | U78: 1000 | V78: 1410 | W78: 1440 | X78: 1520 | Y78: 1450 | Z78: 1860 | AA78: 2740 | AB78: 2740
A79: 77 | B79: 0.01798144037 | C79: 0.08990720186 | D79: 0.1348608028 | E79: 0.1708236835 | F79: 0.2217710979 | G79: 0.2996906729 | H79: 0.4225638488 | I79: 0.4315545689 | J79: 0.4555298228 | K79: 0.4345514757 | L79: 0.5574246516 | M79: 0.8211524437 | N79: 0.8211524437 | P79: 60 | Q79: 300 | R79: 450 | S79: 570 | T79: 740 | U79: 1000 | V79: 1410 | W79: 1440 | X79: 1520 | Y79: 1450 | Z79: 1860 | AA79: 2740 | AB79: 2740
A80: 78 | B80: 0.01618329634 | C80: 0.08091648168 | D80: 0.1213747225 | E80: 0.1537413152 | F80: 0.1995939881 | G80: 0.2697216056 | H80: 0.3803074639 | I80: 0.3883991121 | J80: 0.4099768405 | K80: 0.3910963281 | L80: 0.5016821864 | M80: 0.7390371993 | N80: 0.7390371993 | P80: 60 | Q80: 300 | R80: 450 | S80: 570 | T80: 740 | U80: 1000 | V80: 1410 | W80: 1440 | X80: 1520 | Y80: 1450 | Z80: 1860 | AA80: 2740 | AB80: 2740
A81: 79 | B81: 0.0145649667 | C81: 0.07282483351 | D81: 0.1092372503 | E81: 0.1383671837 | F81: 0.1796345893 | G81: 0.242749445 | H81: 0.3422767175 | I81: 0.3495592008 | J81: 0.3689791564 | K81: 0.3519866953 | L81: 0.4515139678 | M81: 0.6651334794 | N81: 0.6651334794 | P81: 60 | Q81: 300 | R81: 450 | S81: 570 | T81: 740 | U81: 1000 | V81: 1410 | W81: 1440 | X81: 1520 | Y81: 1450 | Z81: 1860 | AA81: 2740 | AB81: 2740
A82: 80 | B82: 0.01310847003 | C82: 0.06554235016 | D82: 0.09831352524 | E82: 0.1245304653 | F82: 0.1616711304 | G82: 0.2184745005 | H82: 0.3080490457 | I82: 0.3146032808 | J82: 0.3320812408 | K82: 0.3167880258 | L82: 0.406362571 | M82: 0.5986201314 | N82: 0.5986201314 | P82: 60 | Q82: 300 | R82: 450 | S82: 570 | T82: 740 | U82: 1000 | V82: 1410 | W82: 1440 | X82: 1520 | Y82: 1450 | Z82: 1860 | AA82: 2740 | AB82: 2740
A83: 81 | B83: 0.01179762303 | C83: 0.05898811514 | D83: 0.08848217271 | E83: 0.1120774188 | F83: 0.1455040174 | G83: 0.1966270505 | H83: 0.2772441412 | I83: 0.2831429527 | J83: 0.2988731167 | K83: 0.2851092232 | L83: 0.3657263139 | M83: 0.5387581183 | N83: 0.5387581183 | P83: 60 | Q83: 300 | R83: 450 | S83: 570 | T83: 740 | U83: 1000 | V83: 1410 | W83: 1440 | X83: 1520 | Y83: 1450 | Z83: 1860 | AA83: 2740 | AB83: 2740
A84: 82 | B84: 0.01061786073 | C84: 0.05308930363 | D84: 0.07963395544 | E84: 0.1008696769 | F84: 0.1309536156 | G84: 0.1769643454 | H84: 0.2495197271 | I84: 0.2548286574 | J84: 0.2689858051 | K84: 0.2565983009 | L84: 0.3291536825 | M84: 0.4848823065 | N84: 0.4848823065 | P84: 60 | Q84: 300 | R84: 450 | S84: 570 | T84: 740 | U84: 1000 | V84: 1410 | W84: 1440 | X84: 1520 | Y84: 1450 | Z84: 1860 | AA84: 2740 | AB84: 2740
A85: 83 | B85: 0.009556074653 | C85: 0.04778037327 | D85: 0.0716705599 | E85: 0.0907827092 | F85: 0.1178582541 | G85: 0.1592679109 | H85: 0.2245677543 | I85: 0.2293457917 | J85: 0.2420872245 | K85: 0.2309384708 | L85: 0.2962383142 | M85: 0.4363940758 | N85: 0.4363940758 | P85: 60 | Q85: 300 | R85: 450 | S85: 570 | T85: 740 | U85: 1000 | V85: 1410 | W85: 1440 | X85: 1520 | Y85: 1450 | Z85: 1860 | AA85: 2740 | AB85: 2740
A86: 84 | B86: 0.008600467188 | C86: 0.04300233594 | D86: 0.06450350391 | E86: 0.08170443828 | F86: 0.1060724286 | G86: 0.1433411198 | H86: 0.2021109789 | I86: 0.2064112125 | J86: 0.2178785021 | K86: 0.2078446237 | L86: 0.2666144828 | M86: 0.3927546682 | N86: 0.3927546682 | P86: 60 | Q86: 300 | R86: 450 | S86: 570 | T86: 740 | U86: 1000 | V86: 1410 | W86: 1440 | X86: 1520 | Y86: 1450 | Z86: 1860 | AA86: 2740 | AB86: 2740
A87: 85 | B87: 0.007740420469 | C87: 0.03870210235 | D87: 0.05805315352 | E87: 0.07353399446 | F87: 0.09546518578 | G87: 0.1290070078 | H87: 0.181899881 | I87: 0.1857700913 | J87: 0.1960906519 | K87: 0.1870601613 | L87: 0.2399530345 | M87: 0.3534792014 | N87: 0.3534792014 | P87: 60 | Q87: 300 | R87: 450 | S87: 570 | T87: 740 | U87: 1000 | V87: 1410 | W87: 1440 | X87: 1520 | Y87: 1450 | Z87: 1860 | AA87: 2740 | AB87: 2740
A88: 86 | B88: 0.006966378422 | C88: 0.03483189211 | D88: 0.05224783817 | E88: 0.06618059501 | F88: 0.08591866721 | G88: 0.116106307 | H88: 0.1637098929 | I88: 0.1671930821 | J88: 0.1764815867 | K88: 0.1683541452 | L88: 0.2159577311 | M88: 0.3181312813 | N88: 0.3181312813 | P88: 60 | Q88: 300 | R88: 450 | S88: 570 | T88: 740 | U88: 1000 | V88: 1410 | W88: 1440 | X88: 1520 | Y88: 1450 | Z88: 1860 | AA88: 2740 | AB88: 2740
A89: 87 | B89: 0.00626974058 | C89: 0.0313487029 | D89: 0.04702305435 | E89: 0.05956253551 | F89: 0.07732680049 | G89: 0.1044956763 | H89: 0.1473389036 | I89: 0.1504737739 | J89: 0.158833428 | K89: 0.1515187307 | L89: 0.194361958 | M89: 0.2863181531 | N89: 0.2863181531 | P89: 60 | Q89: 300 | R89: 450 | S89: 570 | T89: 740 | U89: 1000 | V89: 1410 | W89: 1440 | X89: 1520 | Y89: 1450 | Z89: 1860 | AA89: 2740 | AB89: 2740
A90: 88 | B90: 0.005642766522 | C90: 0.02821383261 | D90: 0.04232074891 | E90: 0.05360628196 | F90: 0.06959412044 | G90: 0.0940461087 | H90: 0.1326050133 | I90: 0.1354263965 | J90: 0.1429500852 | K90: 0.1363668576 | L90: 0.1749257622 | M90: 0.2576863378 | N90: 0.2576863378 | P90: 60 | Q90: 300 | R90: 450 | S90: 570 | T90: 740 | U90: 1000 | V90: 1410 | W90: 1440 | X90: 1520 | Y90: 1450 | Z90: 1860 | AA90: 2740 | AB90: 2740
A91: 89 | B91: 0.00507848987 | C91: 0.02539244935 | D91: 0.03808867402 | E91: 0.04824565376 | F91: 0.06263470839 | G91: 0.08464149783 | H91: 0.1193445119 | I91: 0.1218837569 | J91: 0.1286550767 | K91: 0.1227301719 | L91: 0.157433186 | M91: 0.2319177041 | N91: 0.2319177041 | P91: 60 | Q91: 300 | R91: 450 | S91: 570 | T91: 740 | U91: 1000 | V91: 1410 | W91: 1440 | X91: 1520 | Y91: 1450 | Z91: 1860 | AA91: 2740 | AB91: 2740
A92: 90 | B92: 0.004570640883 | C92: 0.02285320441 | D92: 0.03427980662 | E92: 0.04342108839 | F92: 0.05637123755 | G92: 0.07617734805 | H92: 0.1074100607 | I92: 0.1096953812 | J92: 0.115789569 | K92: 0.1104571547 | L92: 0.1416898674 | M92: 0.2087259336 | N92: 0.2087259336 | P92: 60 | Q92: 300 | R92: 450 | S92: 570 | T92: 740 | U92: 1000 | V92: 1410 | W92: 1440 | X92: 1520 | Y92: 1450 | Z92: 1860 | AA92: 2740 | AB92: 2740
A93: 91 | B93: 0.004113576794 | C93: 0.02056788397 | D93: 0.03085182596 | E93: 0.03907897955 | F93: 0.0507341138 | G93: 0.06855961324 | H93: 0.09666905467 | I93: 0.09872584307 | J93: 0.1042106121 | K93: 0.0994114392 | L93: 0.1275208806 | M93: 0.1878533403 | N93: 0.1878533403 | P93: 60 | Q93: 300 | R93: 450 | S93: 570 | T93: 740 | U93: 1000 | V93: 1410 | W93: 1440 | X93: 1520 | Y93: 1450 | Z93: 1860 | AA93: 2740 | AB93: 2740
A94: 92 | B94: 0.003702219115 | C94: 0.01851109558 | D94: 0.02776664336 | E94: 0.03517108159 | F94: 0.04566070242 | G94: 0.06170365192 | H94: 0.0870021492 | I94: 0.08885325876 | J94: 0.09378955091 | K94: 0.08947029528 | L94: 0.1147687926 | M94: 0.1690680063 | N94: 0.1690680063 | P94: 60 | Q94: 300 | R94: 450 | S94: 570 | T94: 740 | U94: 1000 | V94: 1410 | W94: 1440 | X94: 1520 | Y94: 1450 | Z94: 1860 | AA94: 2740 | AB94: 2740
A95: 93 | B95: 0.003331997204 | C95: 0.01665998602 | D95: 0.02498997903 | E95: 0.03165397343 | F95: 0.04109463218 | G95: 0.05553328673 | H95: 0.07830193428 | I95: 0.07996793288 | J95: 0.08441059582 | K95: 0.08052326575 | L95: 0.1032919133 | M95: 0.1521612056 | N95: 0.1521612056 | P95: 60 | Q95: 300 | R95: 450 | S95: 570 | T95: 740 | U95: 1000 | V95: 1410 | W95: 1440 | X95: 1520 | Y95: 1450 | Z95: 1860 | AA95: 2740 | AB95: 2740
A96: 94 | B96: 0.002998797483 | C96: 0.01499398742 | D96: 0.02249098112 | E96: 0.02848857609 | F96: 0.03698516896 | G96: 0.04997995805 | H96: 0.07047174085 | I96: 0.0719711396 | J96: 0.07596953624 | K96: 0.07247093918 | L96: 0.09296272198 | M96: 0.1369450851 | N96: 0.1369450851 | P96: 60 | Q96: 300 | R96: 450 | S96: 570 | T96: 740 | U96: 1000 | V96: 1410 | W96: 1440 | X96: 1520 | Y96: 1450 | Z96: 1860 | AA96: 2740 | AB96: 2740
A97: 95 | B97: 0.002698917735 | C97: 0.01349458867 | D97: 0.02024188301 | E97: 0.02563971848 | F97: 0.03328665206 | G97: 0.04498196225 | H97: 0.06342456677 | I97: 0.06477402564 | J97: 0.06837258262 | K97: 0.06522384526 | L97: 0.08366644978 | M97: 0.1232505766 | N97: 0.1232505766 | P97: 60 | Q97: 300 | R97: 450 | S97: 570 | T97: 740 | U97: 1000 | V97: 1410 | W97: 1440 | X97: 1520 | Y97: 1450 | Z97: 1860 | AA97: 2740 | AB97: 2740
A98: 96 | B98: 0.002429025961 | C98: 0.01214512981 | D98: 0.01821769471 | E98: 0.02307574663 | F98: 0.02995798686 | G98: 0.04048376602 | H98: 0.05708211009 | I98: 0.05829662307 | J98: 0.06153532435 | K98: 0.05870146073 | L98: 0.0752998048 | M98: 0.1109255189 | N98: 0.1109255189 | P98: 60 | Q98: 300 | R98: 450 | S98: 570 | T98: 740 | U98: 1000 | V98: 1410 | W98: 1440 | X98: 1520 | Y98: 1450 | Z98: 1860 | AA98: 2740 | AB98: 2740
A99: 97 | B99: 0.002186123365 | C99: 0.01093061683 | D99: 0.01639592524 | E99: 0.02076817197 | F99: 0.02696218817 | G99: 0.03643538942 | H99: 0.05137389908 | I99: 0.05246696077 | J99: 0.05538179192 | K99: 0.05283131466 | L99: 0.06776982432 | M99: 0.09983296701 | N99: 0.09983296701 | P99: 60 | Q99: 300 | R99: 450 | S99: 570 | T99: 740 | U99: 1000 | V99: 1410 | W99: 1440 | X99: 1520 | Y99: 1450 | Z99: 1860 | AA99: 2740 | AB99: 2740
A100: 98 | B100: 0.001967511029 | C100: 0.009837555144 | D100: 0.01475633272 | E100: 0.01869135477 | F100: 0.02426596935 | G100: 0.03279185048 | H100: 0.04623650917 | I100: 0.04722026469 | J100: 0.04984361273 | K100: 0.04754818319 | L100: 0.06099284189 | M100: 0.08984967031 | N100: 0.08984967031 | P100: 60 | Q100: 300 | R100: 450 | S100: 570 | T100: 740 | U100: 1000 | V100: 1410 | W100: 1440 | X100: 1520 | Y100: 1450 | Z100: 1860 | AA100: 2740 | AB100: 2740
A101: 99 | B101: 0.001770759926 | C101: 0.008853799629 | D101: 0.01328069944 | E101: 0.0168222193 | F101: 0.02183937242 | G101: 0.02951266543 | H101: 0.04161285826 | I101: 0.04249823822 | J101: 0.04485925145 | K101: 0.04279336487 | L101: 0.0548935577 | M101: 0.08086470328 | N101: 0.08086470328 | P101: 60 | Q101: 300 | R101: 450 | S101: 570 | T101: 740 | U101: 1000 | V101: 1410 | W101: 1440 | X101: 1520 | Y101: 1450 | Z101: 1860 | AA101: 2740 | AB101: 2740
A102: 100 | B102: 0.001593683933 | C102: 0.007968419666 | D102: 0.0119526295 | E102: 0.01513999737 | F102: 0.01965543518 | G102: 0.02656139889 | H102: 0.03745157243 | I102: 0.0382484144 | J102: 0.04037332631 | K102: 0.03851402839 | L102: 0.04940420193 | M102: 0.07277823295 | N102: 0.07277823295 | P102: 60 | Q102: 300 | R102: 450 | S102: 570 | T102: 740 | U102: 1000 | V102: 1410 | W102: 1440 | X102: 1520 | Y102: 1450 | Z102: 1860 | AA102: 2740 | AB102: 2740

Sheet Data
B4: Type d'unité | C4: Att | D4: Def | E4: Vie | F4: Nom 1 | G4: Nom 2
B5: Jeune Soldate Naine | C5: 3 | D5: 2 | E5: 8 | F5: Jeune Soldate Naine | G5: Jeunes Soldates Naines
B6: Soldate Naine | C6: 5 | D6: 4 | E6: 10 | F6: Soldate Naine | G6: Soldates Naines
B7: Naine d'Elite | C7: 7 | D7: 6 | E7: 13 | F7: Naine d'Elite | G7: Naines d'Elites
B8: Jeune Soldate | C8: 10 | D8: 9 | E8: 16 | F8: Jeune Soldate | G8: Jeunes Soldates
B9: Soldate | C9: 15 | D9: 14 | E9: 20 | F9: Soldate | G9: Soldates
B10: Concierge | C10: 1 | D10: 25 | E10: 30 | F10: Concierge | G10: Concierges
B11: Concierge d'élite | C11: 1 | D11: 35 | E11: 40 | F11: Concierge d'élite | G11: Concierges d'élites
B12: Artilleuse | C12: 30 | D12: 15 | E12: 10 | F12: Artilleuse | G12: Artilleuses
B13: Artilleuse d'élite | C13: 35 | D13: 18 | E13: 12 | F13: Artilleuse d'élite | G13: Artilleuses d'élites
B14: Soldate d'élite | C14: 24 | D14: 23 | E14: 27 | F14: Soldate d'élite | G14: Soldates d'élites
B15: Tank | C15: 55 | D15: 1 | E15: 35 | F15: Tank | G15: Tanks
B16: Tank d'élite | C16: 80 | D16: 1 | E16: 50 | F16: Tank d'élite | G16: Tanks d'élites
B17: Tueuse | C17: 50 | D17: 50 | E17: 50 | F17: Tueuse | G17: Tueuses
B18: Tueuse d'élite | C18: 55 | D18: 55 | E18: 55 | F18: Tueuse d'élite | G18: Tueuses d'élites

Sheet Révisions
B1: sonde et XP :
B2: Version | C2: Date | D2: Release note
B3: 1.00 | C3: 2013-01-19 | D3: Création (amélioration/automatisation d'un fichier d'ilidan), pour le "très vieux" que j'avais fait autrefois je ne le retrouve plus^^
B4: 1.01 | C4: 2013-01-22 | D4: Modifications de certaines formules pour éliminer des fonctions non compatibles avec certaines versions d'excel.
B5: 1.02 | C5: 2013-02-09 | D5: - Suppression de "ARRONDI.AU.MULTIPLE" pour des raisons de compatibilité inter-version d'excel. - Correction du nombre de point de vie de base des Tanks. - Prise en compte de la possibilité que la sonde n'ai pas tué que des JSN. - Suppression des unités ennemies tuées lors de la sonde. - Possibilité de corriger le nombre d'unité (pour tenir compte des pontes depuis le RC par exemple). - Ajout de mises en forme conditionnelles (alerte en rouge si nombre de JSN ou FdF insuffisants). - Ajout des feuilles "Manuel", "Multiplicateurs de vie" et "Révisions".
B7: armée :
B8: 2.0 | C8: 2013-11-20 | D8: calcul automatisé du % pour la ponte en fonction de l'armée actuelle, afin d'éviter de faire des calculs Mise en place et modification TDP VA VC nombre d'ouvrière Modification du texte par copie/colle pour transmission par mp, rendu plus lisible
B11: 2.1 | C11: 23 nov. 2013 | D11: Calul automatisé du temps de ponte en fonction du pourcentage efficace par catégorie de fourmis en vu du temps de ponte actuel
B13: 2.2 | C13: 24 nov. 2013 | D13: Mise en place de plusieur sujet de ponte Ajout de prévision d'objectif de ponte d'armée et colonne restant à pondre pour atteindre l'objectif de manière automatisée
